Workbook

Sheet Datos SGC (hidden)
J1: 1 | K1: 2 | L1: 3 | M1: 4 | N1: 5
J2: IMPACTO
B3: Procesos | C3: Tipos de Riesgos | D3: Escala probabilidad | E3: Escala impacto | J3: Insignificante | K3: Menor | L3: Moderado | M3: Mayor | N3: Catastrófico
B4: Admisiones, Registro y Control | C4: Estratégico | D4: Casi seguro | E4: Catastrófico | G4: 5 | H4: PROBABILIDAD | I4: Casi seguro | J4: ALTO | K4: ALTO | L4: EXTREMO | M4: EXTREMO | N4: EXTREMO | P4: Zona de Riesgo
B5: Autoevaluación y Acreditación | C5: Gerencial | D5: Probable | E5: Mayor | G5: 4 | I5: Probable | J5: MODERADO | K5: ALTO | L5: ALTO | M5: EXTREMO | N5: EXTREMO | Q5: BAJO
B6: Bienestar Institucional | C6: Operativo | D6: Posible | E6: Moderado | G6: 3 | I6: Posible | J6: BAJO | K6: MODERADO | L6: ALTO | M6: EXTREMO | N6: EXTREMO | Q6: MODERADO
B7: Comunicaciones | C7: Financiero | D7: Improbable | E7: Menor | G7: 2 | I7: Improbable | J7: BAJO | K7: BAJO | L7: MODERADO | M7: ALTO | N7: EXTREMO | Q7: ALTO
B8: Control Disciplinario | C8: Tecnológico | D8: Rara vez | E8: Insignificante | G8: 1 | I8: Rara vez | J8: BAJO | K8: BAJO | L8: MODERADO | M8: ALTO | N8: EXTREMO | Q8: EXTREMO
B9: Evaluación y Control | C9: Cumplimiento
B10: Extensión y Proyección Social | C10: Imagen o reputacional
B11: Gestión Contractual | E11: Escala impacto (eje de corrupción)
B12: Gestión de Docencia | E12: Catastrófico
B13: Gestión de Investigación | E13: Mayor | J13: 1 | K13: 2 | L13: 3 | M13: 4 | N13: 5
B14: Gestión de la Información Bibliográfica | E14: Moderado | J14: Insignificante | K14: Menor | L14: Moderado | M14: Mayor | N14: Catastrófico
B15: Gestión de la Infraestructura Física | H15: Casi seguro | I15: 5 | J15: ALTO | K15: ALTO | L15: EXTREMO | M15: EXTREMO | N15: EXTREMO
B16: Gestión de Laboratorios | H16: Probable | I16: 4 | J16: MODERADO | K16: ALTO | L16: ALTO | M16: EXTREMO | N16: EXTREMO
B17: Gestión de los Sistemas de la Información y las Telecomunicaciones | H17: Posible | I17: 3 | J17: BAJO | K17: MODERADO | L17: ALTO | M17: EXTREMO | N17: EXTREMO
B18: Gestión de Recursos Financieros | H18: Improbable | I18: 2 | J18: BAJO | K18: BAJO | L18: MODERADO | M18: ALTO | N18: EXTREMO
B19: Gestión Documental | H19: Rara vez | I19: 1 | J19: BAJO | K19: BAJO | L19: MODERADO | M19: ALTO | N19: EXTREMO
B20: Gestión Integrada
B21: Gestión Jurídica
B22: Gestión y Desarrollo del Talento Humano | H22: Probabilidad | J22: Impacto
B23: Interinstitucionalización e Internacionalización | H23: 5 | I23: Casi seguro | J23: 1 | K23: Insignificante
B24: Planeación Estratégica Institucional | H24: 4 | I24: Probable | J24: 2 | K24: Menor
B25: Servicio al Ciudadano | H25: 3 | I25: Posible | J25: 3 | K25: Moderado
H26: 2 | I26: Improbable | J26: 4 | K26: Mayor
B27: Solidez del Control | H27: 1 | I27: Rara vez | J27: 5 | K27: Catastrófico
B28: Variable | C28: Opción de respuesta | D28: Puntaje
B29: Asignación del Responsable | C29: Asignado | D29: 15
C30: No asignado | D30: 0
B31: Segregación y autoridad del Responsable | C31: Adecuado | D31: 15
C32: Inadecuado | D32: 0
B33: Periodicidad | C33: Oportuna | D33: 15
C34: No oportuna | D34: 0
B35: Propósito | C35: Prevenir | D35: 15
C36: Detectar | D36: 10
C37: No es un control | D37: 0
B38: Cómo se realiza la actividad de Control | C38: Confiable | D38: 15
C39: No confiable | D39: 0
B40: Qué pasa con las observaciones y desviaciones | C40: Se investigan y resuelven oportunamente | D40: 15
C41: No se investigan y resuelven oportunamente | D41: 0
B42: Evidencia de la Ejecución del Control | C42: Completa | D42: 10
C43: Incompleta | D43: 5
C44: No existe | D44: 0
B46: Ejecución del Control | C46: Disminución de probabilidad e impacto | D46: Disminución de probabilidad e impacto
B47: Se ejecuta de manera consistente por parte del responsable. | C47: Directamente | D47: Directamente
B48: Se ejecuta algunas veces por parte del responsable. | C48: No disminuye | D48: Indirectamente
B49: El control no se ejecuta por parte del responsable. | D49: No disminuye
B52: Opciones de tratamiento del Riesgo | C52: Opciones de tratamiento del Riesgo (Eje de corrupción)
B53: Aceptar | C53: Reducir
B54: Reducir | C54: Evitar
B55: Evitar | C55: Compartir
B56: Compartir
B59: Procesos | C59: Objetivos
B60: Admisiones, Registro y Control | C60: Garantizar el ingreso de nuevos estudiantes mediante la inscripción, selección, transferencia, así como el reingreso y la gestión del registro y control académico tanto de estudiantes como de los egresados, que se lleva a cabo en los distintos proyectos curriculares que oferta la Universidad, bajo preceptos de equidad y transparencia.
B61: Autoevaluación y Acreditación | C61: Realizar de manera sistemática y permanente un análisis valorativo y autónomo que permita verificar la calidad en la prestación de los servicios académicos y el grado de cumplimiento de los objetivos institucionales.
B62: Bienestar Institucional | C62: Contribuir al desarrollo integral de la comunidad universitaria, mediante la generación y promoción de espacios participativos de desarrollo humano, interacción social y reflexión, en aras de alcanzar entornos agradables que mejoren su calidad de vida.
B63: Comunicaciones | C63: Coordinar las actividades de comunicación institucional interna y externa, a través de la difusión y publicación oportuna de la información generada por la Universidad y de interés general de la misma, con el fin de garantizar la visibilidad, el posicionamiento y el mejoramiento de la imagen institucional.
B64: Control Disciplinario | C64: Evaluar y tramitar, de manera imparcial, oportuna y según la normativa aplicable, la totalidad de noticias disciplinarias que puedan implicar la responsabilidad de integrantes del personal administrativo y docentes de planta de la Universidad Distrital Francisco José de Caldas, esto con el fin de apoyar y fortalecer el proceso de control disciplinario en el Alma Mater.
B65: Evaluación y Control | C65: Medir y evaluar la eficiencia, eficacia y economía de los procesos de la Universidad Distrital Francisco José de Caldas, asesorando a la Alta Dirección en el mejoramiento continuo del proceso administrativo, para la evaluación de los planes establecidos y de los correctivos que sean necesarios para el cumplimiento de las metas y objetivos institucionales, basados en las diferentes funciones en las que se enmarca el rol de la Oficina de Control Interno, como son la valoración de riesgos, acompañamiento y asesoría, evaluación y seguimiento, fomento a la cultura de control y relación con entes externos.
B66: Extensión y Proyección Social | C66: Promover la vinculación de la Universidad Distrital Francisco José de Caldas con su entorno social, a través de la coordinación de los programas, planes y proyectos de Extensión y Proyección Social, en articulación a la Docencia y la Investigación.
B67: Gestión Contractual | C67: Gestionar de manera transparente y eficaz los recursos para la contratación de los bienes y/o servicios a través de los diferentes mecanismos de contratación necesarios para el cumplimiento de la misión y visión de la Universidad Distrital Francisco José de Caldas de acuerdo a los estándares y normatividad vigente.
B68: Gestión de Docencia | C68: Garantizar que los Planes de Estudio establecidos para cada Proyecto Curricular, ofrezcan al estudiante de la UDFJC una formación integral y de calidad, dirigida fundamentalmente a las necesidades de la sociedad, contando con la cantidad e idoneidad de Docentes y demás personal que influya directamente en tal Proceso de Formación, garantizando que se ejecute eficientemente el Proceso de Enseñanza-Aprendizaje.
B69: Gestión de Investigación | C69: Administrar los recursos destinados al desarrollo de estrategias, programas, proyectos investigativos y contar con las condiciones estructurales-organizacionales para proyectarse como una universidad investigativa que promueva y potencie la capacidad del investigador de la Universidad y su labor tenga eco en el desarrollo científico y sociocultural de la ciudad – región y país.
B70: Gestión de la Información Bibliográfica | C70: Gestionar y proveer el acceso a fuentes de información académicas, investigativas y culturales a la Comunidad Universitaria, a través de recursos y servicios de información oportunos, pertinentes y actualizados con el fin de apoyar y fortalecer los Procesos Misionales de la Universidad Distrital Francisco José de Caldas.
B71: Gestión de la Infraestructura Física | C71: Garantizar a través de su gestión los servicios relacionados con administración de bienes, infraestructura, planta física, mantenimiento, compras, inventarios, aseo y seguridad, requeridos para el óptimo desarrollo de las actividades académico-administrativas de la Universidad Distrital Francisco José de Caldas.
B72: Gestión de Laboratorios | C72: Desarrollar las actividades de soporte necesarias para llevar a cabo la Gestión de Laboratorios de la Universidad Distrital Francisco José de Caldas mediante el cumplimiento de los lineamientos y políticas institucionales establecidas, brindando así apoyo a las labores misionales.
B73: Gestión de los Sistemas de la Información y las Telecomunicaciones | C73: Gestionar los Sistemas de Información y las Telecomunicaciones para asegurar el acceso, adquisición, disponibilidad, confiabilidad, confidencialidad y seguridad de los activos de información a través de la infraestructura y las soluciones Informáticas en el marco de la normatividad vigente aplicable, como apoyo a los Procesos Misionales de la Universidad para satisfacer las necesidades de la comunidad universitaria.
B74: Gestión de Recursos Financieros | C74: Administrar, gestionar, registrar y controlar los recursos financieros en la Universidad Distrital Francisco José Caldas, cumpliendo con el marco constitucional, legal y normativo vigente; garantizando la transparencia y sostenibilidad financiera de acuerdo a los lineamientos establecidos en el contexto estratégico y misional de la institución.
B75: Gestión Documental | C75: Garantizar la correcta planeación, organización, manejo, control y funcionamiento de la gestión documental, desde la producción hasta la disposición final de los documentos físicos, electrónicos e híbridos, en los archivos de gestión y central, que en su conjunto conforman el archivo total de la Universidad Distrital, de forma lógica de acuerdo con la naturaleza y fines de la Universidad, cumpliendo con los estándares técnicos para el tratamiento de los documentos y la legislación vigente, para proteger el patrimonio documental, preservar los archivos en las mejores condiciones de acceso y seguridad, y garantizar la disponibilidad a la academia, la comunidad en general y del mejoramiento institucional.
B76: Gestión Integrada | C76: Articular y consolidar el Sistema Integrado de Gestión de la Universidad Distrital y su marco de referencia el Modelo Integrado de Planeación y Gestión - MIPG, con el fin de garantizar un desempeño institucional articulado y armónico, para la consecución de resultados y satisfacción de la Comunidad Universitaria y los Grupos de Valor, a través de acciones orientadas a la implementación de las Dimensiones, Políticas y Procesos que lo componen, de tal manera que se logre un aumento en cinco puntos en el Índice de Desempeño Institucional actual, IDI, en la evaluación del FURAG al año 2021.
B77: Gestión Jurídica | C77: Ejecutar y desarrollar políticas, planes, programas y proyectos de carácter jurídico, armonizando los actos administrativos emanados por la Universidad con las leyes y la jurisprudencia vigente, llevando a cabo la representación legal, la defensa judicial, la asesoría en temas jurídicos y el apoyo a la gestión contractual, de la Universidad Distrital Francisco José de Caldas.
B78: Gestión y Desarrollo del Talento Humano | C78: Promover Servidores Públicos altamente calificados y comprometidos con la organización creando condiciones para su bienestar, seguridad e integralidad, a través del diseño e implementación de políticas, estrategias, planes, programas y proyectos, encaminados a la consecución de los objetivos y cumplimiento de las funciones institucionales.
B79: Interinstitucionalización e Internacionalización | C79: Direccionar y Gestionar la Interinstitucionalización e Internacionalización de la Universidad Distrital Francisco José de Caldas para contribuir con la formación integral de profesionales e investigadores globalmente competitivos a través de acciones de direccionamiento estratégico para la inmersión y participación activa de la institución en la sociedad del conocimiento en el ámbito local, Nacional e Internacional.
B80: Planeación Estratégica Institucional | C80: Coordinar y orientar el diseño y la implementación de estrategias, políticas, programas, y proyectos con el fin de dar cumplimiento a la misión, visión y objetivos institucionales, enmarcados en el Sistema de Planeación Institucional.
B81: Servicio al Ciudadano | C81: Garantizar el acceso a la información, la correcta y oportuna atención a la ciudadanía y grupos de interés, en temas relacionados con el funcionamiento y cumplimiento de la misión de la Universidad, mediante la adecuación e implementación de canales de atención, la oportuna divulgación de información y el trámite oportuno de peticiones que interpongan los ciudadanos en el ejercicio de su función de control social.

Sheet Datos SGA (hidden)
B2: Proceso | C2: Objetivo | D2: Sedes UD
B3: Admisiones, Registro y Control | C3: Garantizar el ingreso de nuevos estudiantes mediante la inscripción, selección, transferencia, así como el reingreso y la gestión del registro y control académico tanto de estudiantes como de los egresados, que se lleva a cabo en los distintos proyectos curriculares que oferta la Universidad, bajo preceptos de equidad y transparencia. | D3: Facultad Ingeniería - Calle 40
B4: Autoevaluación y Acreditación | C4: Realizar de manera sistemática y permanente un análisis valorativo y autónomo que permita verificar la calidad en la prestación de los servicios académicos y el grado de cumplimiento de los objetivos institucionales. | D4: Facultad Ciencias y Educación - Macarena A
B5: Bienestar Institucional | C5: Contribuir al desarrollo integral de la comunidad universitaria, mediante la generación y promoción de espacios participativos de desarrollo humano, interacción social y reflexión, en aras de alcanzar entornos agradables que mejoren su calidad de vida. | D5: Facultad Ciencias y Educación - Macarena B
B6: Comunicaciones | C6: Coordinar las actividades de comunicación institucional interna y externa, a través de la difusión y publicación oportuna de la información generada por la Universidad y de interés general de la misma, con el fin de garantizar la visibilidad, el posicionamiento y el mejoramiento de la imagen institucional. | D6: Facultad de Medio Ambiente y Recursos Naturales - Vivero
B7: Control Disciplinario | C7: Evaluar y tramitar, de manera imparcial, oportuna y según la normativa aplicable, la totalidad de noticias disciplinarias que puedan implicar la responsabilidad de integrantes del personal administrativo y docentes de planta de la Universidad Distrital Francisco José de Caldas, esto con el fin de apoyar y fortalecer el proceso de control disciplinario en el Alma Mater. | D7: Facultad Tecnológica
B8: Evaluación y Control | C8: Medir y evaluar la eficiencia, eficacia y economía de los procesos de la Universidad Distrital Francisco José de Caldas, asesorando a la Alta Dirección en el mejoramiento continuo del proceso administrativo, para la evaluación de los planes establecidos y de los correctivos que sean necesarios para el cumplimiento de las metas y objetivos institucionales, basados en las diferentes funciones en las que se enmarca el rol de la Oficina de Control Interno, como son la valoración de riesgos, acompañamiento y asesoría, evaluación y seguimiento, fomento a la cultura de control y relación con entes externos. | D8: Facultad de Artes ASAB
B9: Extensión y Proyección Social | C9: Promover la vinculación de la Universidad Distrital Francisco José de Caldas con su entorno social, a través de la coordinación de los programas, planes y proyectos de Extensión y Proyección Social, en articulación a la Docencia y la Investigación. | D9: Facultad de Artes ASAB - Sótanos Jimenez
B10: Gestión Contractual | C10: Gestionar de manera transparente y eficaz los recursos para la contratación de los bienes y/o servicios a través de los diferentes mecanismos de contratación necesarios para el cumplimiento de la misión y visión de la Universidad Distrital Francisco José de Caldas de acuerdo a los estándares y normatividad vigente. | D10: Academia Luis A. Calvo - ALAC
B11: Gestión de Docencia | C11: Garantizar que los Planes de Estudio establecidos para cada Proyecto Curricular, ofrezcan al estudiante de la UDFJC una formación integral y de calidad, dirigida fundamentalmente a las necesidades de la sociedad, contando con la cantidad e idoneidad de Docentes y demás personal que influya directamente en tal Proceso de Formación, garantizando que se ejecute eficientemente el Proceso de Enseñanza-Aprendizaje. | D11: Posgrados de Ciencias y Educación
B12: Gestión de Investigación | C12: Administrar los recursos destinados al desarrollo de estrategias, programas, proyectos investigativos y contar con las condiciones estructurales-organizacionales para proyectarse como una universidad investigativa que promueva y potencie la capacidad del investigador de la Universidad y su labor tenga eco en el desarrollo científico y sociocultural de la ciudad – región y país. | D12: Calle 34
B13: Gestión de la Información Bibliográfica | C13: Gestionar y proveer el acceso a fuentes de información académicas, investigativas y culturales a la Comunidad Universitaria, a través de recursos y servicios de información oportunos, pertinentes y actualizados con el fin de apoyar y fortalecer los Procesos Misionales de la Universidad Distrital Francisco José de Caldas. | D13: Emisora LAUD 90.4
B14: Gestión de la Infraestructura Física | C14: Garantizar a través de su gestión los servicios relacionados con administración de bienes, infraestructura, planta física, mantenimiento, compras, inventarios, aseo y seguridad, requeridos para el óptimo desarrollo de las actividades académico-administrativas de la Universidad Distrital Francisco José de Caldas. | D14: ILUD Virrey - Calle 85
B15: Gestión de Laboratorios | C15: Desarrollar las actividades de soporte necesarias para llevar a cabo la Gestión de Laboratorios de la Universidad Distrital Francisco José de Caldas mediante el cumplimiento de los lineamientos y políticas institucionales establecidas, brindando así apoyo a las labores misionales. | D15: ILUD - San Luis
B16: Gestión de los Sistemas de la Información y las Telecomunicaciones | C16: Gestionar los Sistemas de Información y las Telecomunicaciones para asegurar el acceso, adquisición, disponibilidad, confiabilidad, confidencialidad y seguridad de los activos de información a través de la infraestructura y las soluciones Informáticas en el marco de la normatividad vigente aplicable, como apoyo a los Procesos Misionales de la Universidad para satisfacer las necesidades de la comunidad universitaria. | D16: ILUD e IDEXUD - Edificio UGI
B17: Gestión de Recursos Financieros | C17: Administrar, gestionar, registrar y controlar los recursos financieros en la Universidad Distrital Francisco José Caldas, cumpliendo con el marco constitucional, legal y normativo vigente; garantizando la transparencia y sostenibilidad financiera de acuerdo a los lineamientos establecidos en el contexto estratégico y misional de la institución. | D17: ILUD La Rebeca - Calle 23
B18: Gestión Documental | C18: Garantizar la correcta planeación, organización, manejo, control y funcionamiento de la gestión documental, desde la producción hasta la disposición final de los documentos físicos, electrónicos e híbridos, en los archivos de gestión y central, que en su conjunto conforman el archivo total de la Universidad Distrital, de forma lógica de acuerdo con la naturaleza y fines de la Universidad, cumpliendo con los estándares técnicos para el tratamiento de los documentos y la legislación vigente, para proteger el patrimonio documental, preservar los archivos en las mejores condiciones de acceso y seguridad, y garantizar la disponibilidad a la academia, la comunidad en general y del mejoramiento institucional. | D18: Aduanilla de Paiba
B19: Gestión Integrada | C19: Articular y consolidar el Sistema Integrado de Gestión de la Universidad Distrital y su marco de referencia el Modelo Integrado de Planeación y Gestión - MIPG, con el fin de garantizar un desempeño institucional articulado y armónico, para la consecución de resultados y satisfacción de la Comunidad Universitaria y los Grupos de Valor, a través de acciones orientadas a la implementación de las Dimensiones, Políticas y Procesos que lo componen, de tal manera que se logre un aumento en cinco puntos en el Índice de Desempeño Institucional actual, IDI, en la evaluación del FURAG al año 2021. | D19: Sede Bosa Porvenir
B20: Gestión Jurídica | C20: Ejecutar y desarrollar políticas, planes, programas y proyectos de carácter jurídico, armonizando los actos administrativos emanados por la Universidad con las leyes y la jurisprudencia vigente, llevando a cabo la representación legal, la defensa judicial, la asesoría en temas jurídicos y el apoyo a la gestión contractual, de la Universidad Distrital Francisco José de Caldas. | D20: Sede Carrera 13 # 42-36 Oficina 501
B21: Gestión y Desarrollo del Talento Humano | C21: Promover Servidores Públicos altamente calificados y comprometidos con la organización creando condiciones para su bienestar, seguridad e integralidad, a través del diseño e implementación de políticas, estrategias, planes, programas y proyectos, encaminados a la consecución de los objetivos y cumplimiento de las funciones institucionales. | D21: Sede Publicaciones
B22: Interinstitucionalización e Internacionalización | C22: Direccionar y Gestionar la Interinstitucionalización e Internacionalización de la Universidad Distrital Francisco José de Caldas para contribuir con la formación integral de profesionales e investigadores globalmente competitivos a través de acciones de direccionamiento estratégico para la inmersión y participación activa de la institución en la sociedad del conocimiento en el ámbito local, Nacional e Internacional. | D22: Todas las Sedes
B23: Planeación Estratégica Institucional | C23: Coordinar y orientar el diseño y la implementación de estrategias, políticas, programas, y proyectos con el fin de dar cumplimiento a la misión, visión y objetivos institucionales, enmarcados en el Sistema de Planeación Institucional.
B24: Servicio al Ciudadano | C24: Garantizar el acceso a la información, la correcta y oportuna atención a la ciudadanía y grupos de interés, en temas relacionados con el funcionamiento y cumplimiento de la misión de la Universidad, mediante la adecuación e implementación de canales de atención, la oportuna divulgación de información y el trámite oportuno de peticiones que interpongan los ciudadanos en el ejercicio de su función de control social.
B25: Todos los procesos | C25: NA
B29: Factores de Riesgo
B30: Antrópico | C30: Natural
B31: Explosión | C31: Sismo
B32: Incendio | C32: Vendaval
B33: Fuga | C33: Movimientos en masa
B34: Derrame | C34: Inundación
B35: Ruido Ambiental | C35: Caída de árboles
B36: Deterioro Visual Paisajístico
B38: Probabilidad
B39: Muy probable - 5
B40: Altamente probable - 4
B41: Probable - 3
B42: Posible - 2
B43: Poco probable - 1
B45: Cantidad
B46: Muy Alta - 4
B47: Alta - 3
B48: Muy Poca - 2
B49: Poca - 1
B51: Peligrosidad
B52: Muy peligrosa - 4
B53: Peligrosa - 3
B54: Poco peligrosa - 2
B55: No peligrosa - 1
B57: Extensión | D57: Calidad del Medio | E57: Patrimonio y Capital Productivo
B58: Muy extenso - 4 | D58: Muy elevada - 4 | E58: Muy Alto - 4
B59: Extenso - 3 | D59: Elevada - 3 | E59: Alto - 3
B60: Poco extenso (Emplazamiento) - 2 | D60: Media - 2 | E60: Bajo - 2
B61: Puntual (Área afectada) - 1 | D61: Baja - 1 | E61: Muy Bajo - 1
B63: Población Afectada | D63: RIESGO LEVE 3 | E63: RIESGO LEVE 4 | F63: RIESGO LEVE 5 | G63: RIESGO LEVE 6 | H63: RIESGO LEVE 7 | I63: RIESGO LEVE 8 | J63: RIESGO LEVE 9 | K63: RIESGO LEVE 10 | L63: RIESGO LEVE 11 | M63: RIESGO LEVE 12
B64: Muy alto - 4 | D64: RIESGO LEVE 6 | E64: RIESGO LEVE 8 | F64: RIESGO LEVE 10 | G64: RIESGO LEVE 12 | H64: RIESGO LEVE 14 | I64: RIESGO LEVE 16 | J64: RIESGO LEVE 18 | K64: RIESGO LEVE 20 | L64: RIESGO MODERADO 22 | M64: RIESGO MODERADO 24
B65: Alto - 3 | D65: RIESGO LEVE 9 | E65: RIESGO LEVE 12 | F65: RIESGO LEVE 15 | G65: RIESGO LEVE 18 | H65: RIESGO MODERADO 21 | I65: RIESGO MODERADO 24 | J65: RIESGO MODERADO 27 | K65: RIESGO MODERADO 30 | L65: RIESGO MODERADO 33 | M65: RIESGO MODERADO 36
B66: Bajo - 2 | D66: RIESGO LEVE 12 | E66: RIESGO LEVE 16 | F66: RIESGO LEVE 20 | G66: RIESGO MODERADO 24 | H66: RIESGO MODERADO 28 | I66: RIESGO MODERADO 32 | J66: RIESGO MODERADO 36 | K66: RIESGO MODERADO 40 | L66: RIESGO SIGNIFICATIVO 44 | M66: RIESGO SIGNIFICATIVO 48
B67: Muy bajo - 1 | D67: RIESGO LEVE 15 | E67: RIESGO LEVE 20 | F67: RIESGO MODERADO 25 | G67: RIESGO MODERADO 30 | H67: RIESGO MODERADO 35 | I67: RIESGO MODERADO 40 | J67: RIESGO SIGNIFICATIVO 45 | K67: RIESGO SIGNIFICATIVO 50 | L67: RIESGO SIGNIFICATIVO 55 | M67: RIESGO SIGNIFICATIVO 60
B71: Actividades | C71: Tipo de Control
B72: Manipulación de reactivos químicos (prácticas de laboratorio) | C72: Eliminación
B73: Almacenamiento de reactivos químicos | C73: Sustitución
B74: Mezcla de reactivos químicos | C74: Reducción
B75: Almacenamiento de residuos peligrosos | C75: Separación
B76: Manipulación de residuos peligrosos | C76: Controles de Ingeniería
B77: Transporte interno de materiales y residuos peligrosos | C77: Controles administrativos
B78: Derrame de sustancias líquidas peligrosas | C78: Ecoeficiencia
B79: Derrame de residuos peligrosos | C79: No aplica
B80: Transporte de residuos peligrosos entre Facultades
B81: Operación de centros de acopio para almacenamiento de residuos
B82: Almacenamiento de productos de mantenimiento y limpieza
B83: Almacenamiento de combustibles y líquidos inflamables
B84: Manipulación de combustibles y líquidos inflamables
B85: Almacenamiento de muebles y equipos dados de baja por obsoletos
B86: Almacenamiento de agua en tanques subterráneos
B87: Vertidos accidentales al sistema de alcantarillado
B88: Mantenimiento de infraestructura física
B89: Lixiviación
B90: Operación de subestación eléctrica
B91: Mantenimiento de subestación eléctrica
B92: Operación de equipos eléctricos y electrónicos
B93: Operación de circuitos eléctricos
B94: Operación de plantas eléctricas
B95: Mantenimiento de aire acondicionado
B96: Operación de aire acondicionado
B97: Mantenimiento de equipos
B98: Manipulación de pipetas de gas propano
B99: Operación de equipos con gas natural y gas propano
B100: Operación de tanque de gas
B101: Operación de estufa de gas natural
B102: Almacenamiento de maderas
B103: Manipulación de transformadores usados
B104: Protestas estudiantiles
B105: Manipulación de hornos para cerámica
B106: Instalación de publicidad visual en lugares no permitidos
B107: Uso de parlantes, perifoneo y ensayos artísticos en áreas abiertas
B108: Operación de maquinaria para construcción

Sheet Datos (hidden)
A2: Para Todos | B2: PROCESO | C2: OBJETIVO | E2: SEDE
B3: Todos los Procesos | C3: N/A | E3: Todas las Sedes
B4: Planeación Estratégica e Institucional | C4: Coordinar y orientar el diseño y la implementación de estrategias, políticas, programas, y proyectos con el fin de dar cumplimiento a la misión, visión y objetivos institucionales, enmarcados en el Sistema de Planeación Institucional. | E4: Sede Administrativa
B5: Gestión Integrada | C5: Articular y consolidar el Sistema Integrado de Gestión de la Universidad Distrital y su marco de referencia el Modelo Integrado de Planeación y Gestión - MIPG, con el fin de garantizar un desempeño institucional articulado y armónico, para la consecución de resultados y satisfacción de la Comunidad Universitaria y los Grupos de Valor, a través de acciones orientadas a la implementación de las Dimensiones, Políticas y Procesos que lo componen, de tal manera que se logre un aumento en cinco puntos en el Índice de Desempeño Institucional actual, IDI, en la evaluación del FURAG al año 2021. | E5: Facultad Ingeniería
B6: Autoevaluación y Acreditación | C6: Realizar de manera sistemática y permanente un análisis valorativo y autónomo que permita verificar el grado de cumplimiento de los objetivos institucionales. | E6: Facultad Ciencias y Educación - Macarena A
B7: Interinstitucionalización e Internacionalización | C7: Consolidar la Interinstitucionalización e Internacionalización de la Universidad Distrital Francisco José de Caldas mediante un conjunto de acciones para el direccionamiento estratégico con variables académicas, administrativas y tecnológicas para facilitar la inmersión y participación activa de la institución en la sociedad del conocimiento en el ámbito local, nacional e internacional. | E7: Facultad Ciencias y Educación - Macarena B
B8: Comunicaciones | C8: Coordinar las actividades de comunicación institucional interna y externa, a través de la difusión y publicación oportuna de la información generada por la Universidad y de interés general de la misma, con el fin de garantizar la visibilidad, el posicionamiento y el mejoramiento de la imagen institucional. | E8: Facultad de Medio Ambiente y Recursos Naturales - Vivero
B9: Gestión de Docencia | C9: Garantizar que los planes de estudio establecidos para cada proyecto curricular, ofrezcan al estudiante de la UDFJC una formación integral y de calidad, dirigida fundamentalmente a las necesidades de la sociedad, contando con la cantidad e idoneidad de docentes y demás personal que influya directamente en tal proceso de formación, garantizando que se ejecute eficientemente el proceso de enseñanza. | E9: Facultad Tecnológica
B10: Gestión de Investigación | C10: Fomentar y desarrollar la Gestión Investigativa de alto impacto, a través de la formulación de estrategias, programas y proyectos, a fin de aportar a la consecución de los objetivos y cumplimiento de las funciones institucionales y a los fines esenciales del estado. | E10: Facultad de Artes ASAB
B11: Extensión y Proyección Social | C11: Promover la Vinculación de la Universidad Distrital Francisco José de Caldas con su Entorno social, a través de la coordinación de los programas, planes y proyectos de Extensión y Proyección Social, en articulación a la Docencia y la Investigación. | E11: Facultad de Artes ASAB - Sótanos Jimenez
B12: Admisiones, Registro y Control | C12: Garantizar que la Inscripción, Selección, Ingresos, Reingresos, Transferencias, Registro y Control de la Historia Académica de los estudiantes y egresados de la Universidad, que se lleva a cabo en los Proyectos Curriculares, se realicen bajos preceptos de Equidad y Transparencia. | E12: Academia Luis A. Calvo - ALAC
B13: Bienestar Institucional | C13: Ofrecer servicios de Bienestar Universitario mediante la ejecución de programas que permitan el mejoramiento de la calidad de vida y el desarrollo integral de la comunidad Universitaria. | E13: Posgrados de Ciencias y Educación
B14: Gestión de la Información Bibliográfica | C14: Gestionar y proveer el acceso a fuentes de información académicas, investigativas y culturales de la comunidad universitaria, a través de recursos y servicios de información oportunos con el fin de apoyar la docencia, investigación y extensión de la comunidad universitaria y fortalecer los procesos misionales de la Universidad Distrital Francisco José de Caldas. | E14: Sede Deportiva Calle 34
B15: Gestión de Laboratorios | C15: Desarrollar las actividades de soporte necesarias para llevar a cabo la Gestión de Laboratorios de la Universidad Distrital Francisco Jose de Caldas mediante el cumplimiento de los lineamientos y políticas institucionales establecidas, brindando así apoyo a las labores misionales. | E15: Emisora LAUD 90.4
B16: Servicio al Ciudadano | C16: Recibir, radicar y tramitar las acciones ciudadanas (petición, queja, reclamo, derecho de petición, denuncia, sugerencia, solicitud de información o consulta) que la ciudadanía formule en el ejercicio del control social, relacionadas con el cumplimiento de la misión de la entidad, los servicios y el funcionamiento de la Universidad, siempre propendiendo garantizar la respuesta oportuna a la ciudadanía. | E16: ILUD - Calle 54
B17: Gestión de los Sistemas de Información y las Telecomunicaciones | C17: Gestionar los sistemas de informacion y las telecomunicaciones para asegurar el acceso, disponibilidad, confiabilidad, confidencialidad de los activos de información a través de la infraestructura y las soluciones Informaticas en el marco de la normatividad vigente aplicable, como apoyo a los procesos misionales de la Universidad. | E17: ILUD - San Luis
B18: Gestión y Desarrollo del Talento Humano | C18: Promover Servidores Públicos altamente calificados y comprometidos con la organización creando condiciones para su bienestar, seguridad e integralidad, a través del diseño e implementación de políticas, estrategias, planes, programas y proyectos, encaminados a la consecución de los objetivos y cumplimiento de las funciones institucionales. | E18: ILUD - UGI
B19: Gestión Documental | C19: Garantizar la correcta planeación, manejo, control, organización y funcionamiento de la gestión documental y la administración de las diferentes unidades documentales de la Universidad Distrital, de forma logíca de acuerdo con la naturaleza y fines de la Universidad, cumpliendo con los estándares para el tratamiento de los documentos y la legislación vigente, para proteger el patrimonio documental, preservar los archivos en las mejores condiciones de acceso y seguridad, y asegurar la disponibilidad a la academia, la comunidad en general y del mejoramiento institucional. | E19: ILUD - Calle 23
B20: Gestión de Infraestructura Física | C20: Garantizar a través de su gestión los servicios relacionados con administración de bienes, infraestructura, planta física, mantenimiento, compras,iinventarios, aseo y seguridad, requeridos para el óptimo desarrollo de las actividades académico-administrativas de la Universidad Distrital Francisco José de Caldas. | E20: Aduanilla de Paiba
B21: Gestión de Recursos Financieros | C21: Administrar, gestionar, registrar y controlar los recursos financieros en la Universidad Distrital Francisco José Caldas, cumpliendo con el marco, constitucional, legal y normativo viegente; garantizando la transparencia y sostenibilidad financiera de acuerdo a los lineamientos establecidos en el contexto estratégico y misional de la institución. | E21: Sede PORVENIR
B22: Gestión Contractual | C22: Gestionar de manera transparente y eficáz los recursos para la contratación de los bienes y/o servicios a través de los diferentes mecanismos de contratación necesarios para el cumplimiento de la misión y visión de la Universidad Distrital Francisco José de Caldas de acuerdo a los estándares y normatividad vigente. | E22: Sede IDEXUD
B23: Gestión Jurídica | C23: Ejecutar y desarrollar políticas, planes, programas y proyectos de carácter jurídico, armonizando los actos administrativos emanados por la Universidad con las leyes y la jurisprudencia vigente, llevando a cabo la representación legal, la defensa judicial, la asesoría en temas jurídicos y el apoyo a la gestión contractual, de la Universidad Distrital Francisco José de Caldas. | E23: Sede B "Thomas Jefferson"
B24: Evaluación y Control | C24: Medir y evaluar la eficiencia, eficacia y economía de los procesos de la Universidad Distrital Francisco José de Caldas, asesorando a la Alta Dirección en el mejoramiento continuo del proceso administrativo, para la evaluación de los planes establecidos y de los correctivos que sean necesarios para el cumplimiento de las metas y objetivos institucionales, basados en las diferentes funciones en las que se enmarca el rol de la Oficina de Control Interno, como son la valoración de riesgos, acompañamiento y asesoría, evaluación y seguimiento, fomento a la cultura de control y relación con entes externos. | E24: Sede Calle 42 No. 8A-80
B25: Control Disciplinario | C25: Evaluar y tramitar, de manera imparcial, oportuna y según la normativa aplicable, la totalidad de noticias disciplinarias que puedan implicar la responsabilidad de integrantes del personal administrativo y docentes de planta de la Universidad Distrital Francisco José de Caldas, esto con el fin de apoyar y fortalecer el proceso de control disciplinario en el Alma Mater. | E25: Sede Sección Publicaciones y Unidad de Extensión Facultad de Ciencias
B27: XXX
B28: XXX
B29: XXX
B30: XXX
B31: XXX
B32: XXX
B33: XXX
B34: XXX
B35: XXX
B36: XXX
B37: XXX
B38: XXX
B39: XXX
B40: XXX
B41: XXX
B42: XXX
B43: XXX
B44: XXX
B45: XXX
B46: XXX
B47: XXX
B48: XXX
B49: XXX
A51: Subsistema de Gestión de Calidad (SGC) | B51: CLASIFICACIÓN
B52: Interno
B53: Externo
B55: TIPO DE RIESGO
B56: Estratégico
B57: Imagen
B58: Operativos
B59: Financieros
B60: De cumplimiento
B61: De tecnología
B62: De corrupción
B64: PROBABILIDAD
B65: Raro - 1 | D65: BAJO - TRIVIAL 1 | E65: BAJO - ACEPTABLE 2 | F65: MODERADO 3 | G65: ALTA-IMPORTANTE 4 | H65: ALTA-IMPORTANTE 5
B66: Improbable - 2 | D66: BAJO - TRIVIAL 2 | E66: BAJO - ACEPTABLE 4 | F66: MODERADO 6 | G66: ALTA-IMPORTANTE 8 | H66: CATASTRÓFICO – INACEPTABLE 10
B67: Posible - 3 | D67: BAJO - TRIVIAL 3 | E67: MODERADO 6 | F67: ALTA - IMPORTANTE 9 | G67: CATASTRÓFICO – INACEPTABLE 12 | H67: CATASTRÓFICO – INACEPTABLE 15
B68: Probable - 4 | D68: MODERADO 4 | E68: ALTA - IMPORTANTE 8 | F68: ALTA - IMPORTANTE 12 | G68: CATASTRÓFICO – INACEPTABLE 16 | H68: CATASTRÓFICO – INACEPTABLE 20
B69: Seguro - 5 | D69: ALTA - IMPORTANTE 5 | E69: ALTA - IMPORTANTE 10 | F69: CATASTRÓFICO – INACEPTABLE 15 | G69: CATASTRÓFICO – INACEPTABLE 20 | H69: CATASTRÓFICO – INACEPTABLE 25
B71: IMPACTO
B72: Insignificante - 1
B73: Menor - 2
B74: Moderado - 3
B75: Mayor - 4
B76: Catastrófico - 5
B78: TIPO DE CONTROL | D78: CONTROL AUTOMÁTICO O MANUAL
B79: Correctivo | D79: Automático
B80: Preventivo | D80: Manual
B82: NIVEL
B83: Nulo - 0
B84: Bajo - 5
B85: Medio Bajo - 10
B86: Medio - 15
B87: Medio Alto - 20
B88: Alto - 25
B90: MANEJO DEL RIESGO
B91: Evitar (EV)
B92: Reducir (RE)
B93: Transferir (TR)
B94: Asumir (AS)
A96: Subsistema de Gestión Ambiental (SGA) | B96: FACTOR DE RIESGO | O96: ACTIVIDADES
B97: Incendio | O97: Manipulación de reactivos químicos (prácticas de laboratorio)
B98: Explosión | O98: Operación de sub estación eléctrica
O99: Mantenimiento de sub estación eléctrica
O100: Operación de equipos eléctricos y electrónicos (laboratorios)
B101: PROBABILIDAD | O101: Operación del circuito eléctrico
B102: Muy probable - 5 | O102: Protestas estudiantiles
B103: Altamente probable - 4 | O103: Operación de estufa de gas propano
B104: Probable - 3 | O104: Manipulación de Hornos para cerámica
B105: Posible - 2 | O105: Manipulación de pipetas de gas propano
B106: Poco probable - 1 | O106: Mantenimiento de aire acondicionado
O107: Operación de aire acondicionado
B108: CANTIDAD | O108: Mantenimiento de equipos (derrames accidentales)
B109: Muy Alta - 4 | O109: Centro de acopio para almacenamiento de residuos
B110: Alta - 3 | O110: Operación de la planta eléctrica
B111: Muy Poca - 2 | O111: Almacenamiento de reactivos químicos
B112: Poca - 1 | O112: Manipulación de estufas (apoyo alimentario)
O113: Manipulación y mezcla de reactivos químicos
B114: PELIGROSIDAD | O114: Operación de tanque de gas.
B115: Muy peligrosa - 4 | O115: Almacenamiento de maderas
B116: Peligrosa - 3 | O116: Otras
B117: Poco peligrosa - 2
B118: No peligrosa - 1
B120: EXTENSIÓN | D120: CALIDAD DEL MEDIO | E120: PATRIMONIO Y CAPITAL PRODUCTIVO
B121: Muy extenso - 4 | D121: Muy elevada - 4 | E121: Muy Alto - 4
B122: Extenso - 3 | D122: Elevada - 3 | E122: Alto - 3
B123: Poco extenso (Emplazamiento) - 2 | D123: Media - 2 | E123: Bajo - 2
B124: Puntual (Área afectada) - 1 | D124: Baja - 1 | E124: Muy Bajo - 1
B126: POBLACIÓN AFECTADA | D126: RIESGO LEVE 3 | E126: RIESGO LEVE 4 | F126: RIESGO LEVE 5 | G126: RIESGO LEVE 6 | H126: RIESGO LEVE 7 | I126: RIESGO LEVE 8 | J126: RIESGO LEVE 9 | K126: RIESGO LEVE 10 | L126: RIESGO LEVE 11 | M126: RIESGO LEVE 12
B127: Muy alto - 4 | D127: RIESGO LEVE 6 | E127: RIESGO LEVE 8 | F127: RIESGO LEVE 10 | G127: RIESGO LEVE 12 | H127: RIESGO LEVE 14 | I127: RIESGO LEVE 16 | J127: RIESGO LEVE 18 | K127: RIESGO LEVE 20 | L127: RIESGO MODERADO 22 | M127: RIESGO MODERADO 24
B128: Alto - 3 | D128: RIESGO LEVE 9 | E128: RIESGO LEVE 12 | F128: RIESGO LEVE 15 | G128: RIESGO LEVE 18 | H128: RIESGO MODERADO 21 | I128: RIESGO MODERADO 24 | J128: RIESGO MODERADO 27 | K128: RIESGO MODERADO 30 | L128: RIESGO MODERADO 33 | M128: RIESGO MODERADO 36
B129: Bajo - 2 | D129: RIESGO LEVE 12 | E129: RIESGO LEVE 16 | F129: RIESGO LEVE 20 | G129: RIESGO MODERADO 24 | H129: RIESGO MODERADO 28 | I129: RIESGO MODERADO 32 | J129: RIESGO MODERADO 36 | K129: RIESGO MODERADO 40 | L129: RIESGO SIGNIFICATIVO 44 | M129: RIESGO SIGNIFICATIVO 48
B130: Muy bajo - 1 | D130: RIESGO LEVE 15 | E130: RIESGO LEVE 20 | F130: RIESGO MODERADO 25 | G130: RIESGO MODERADO 30 | H130: RIESGO MODERADO 35 | I130: RIESGO MODERADO 40 | J130: RIESGO SIGNIFICATIVO 45 | K130: RIESGO SIGNIFICATIVO 50 | L130: RIESGO SIGNIFICATIVO 55 | M130: RIESGO SIGNIFICATIVO 60
A132: Subsistema de Gestión de Seguridad y Salud en el Trabajo (SGSST) | B132: ¿ES RUTINARIO?
B133: Sí
B134: No
B136: CLASIFICACIÓN | D136: BIOLÓGICO | E136: FÍSICO | F136: QUÍMICO | G136: PSICOSOCIAL | H136: BIOMECÁNICOS | I136: CONDICIONES DE SEGURIDAD | J136: FENÓMENOS NATURALES | K136: FACTORES HUMANOS
B137: Biológico | D137: Virus | E137: Ruido de impacto | F137: Polvos orgánicos | G137: Gestión organizacional estilo de mando, | H137: Postura prolongada | I137: Mecánico elementos o partes de máquinas | J137: Sismo | K137: No usar protecciones
B138: Físico | D138: Bacterias | E138: Ruido intermitente | F138: Polvos inorgánicos | G138: Gestión organizacional pago | H138: Postura mantenida | I138: Mecánico herramientas, Mecánico equipos | J138: Terremoto | K138: No usar o usar incorrectamente los EPP
B139: Químico | D139: Hongos | E139: Ruido continuo | F139: Fibras | G139: Gestión organizacional contratación | H139: Postura forzada | I139: Mecánico piezas a trabajar | J139: Vendaval | K139: Conducir a velocidades inapropiadas
B140: Psicosocial | D140: Ricketsias | E140: Exceso de Iluminación | F140: Líquidos nieblas | G140: Gestión organizacional participación | H140: Postura antigravitacional | I140: Mecánico materiales proyectados sólidos | J140: Inundación | K140: Usar equipos o herramientas defectuosas
B141: Biomecánicos | D141: Parásitos | E141: Deficiencia de Iluminación | F141: Líquidos rocios | G141: Gestión organizacional inducción y capacitación, | H141: Esfuerzo | I141: Mecánico materiales proyectados sólidos fluidos | J141: Derrumbe | K141: Levantar, cargas o transportar de forma incorrecta
B142: Condiciones_de_Seguridad | D142: Picaduras | E142: Vibración cuerpo entero | F142: Gases y vapores | G142: Gestión organizacional bienestar social | H142: Movimiento repetitivo | I142: Eléctrico alta tensión | J142: Precipitaciones (lluvias, granizadas, heladas) | K142: Almacenar de forma incorrecta
B143: Fenómenos_Naturales | D143: Mordeduras | E143: Vibración segmentaria | F143: Humos metálicos | G143: Gestión organizacional evaluación del desempeño | H143: Manipulación manual de cargas | I143: Eléctrico baja tensión | K143: Trabajo de la influencia del alcohol o sustancias alucinógenas, fumar dentro de las instalaciones
D144: Fluidos o excrementos | E144: Temperaturas extremo calor | F144: Humos no metálicos | G144: Gestión organizacional manejo de cambios | I144: Eléctrico estática | K144: Bromear, jugar, distraer, deficiencias en la disciplina
E145: Temperaturas extremo frío | F145: Material particulado | G145: Características de la organización del trabajo (comunicación, tecnología, organización del trabajo, demandas cualitativas y cuantitativas de la labor | I145: Locativo sistemas y medios de almacenamiento | K145: Comportamientos inseguros
E146: Radicaciones ionizantes rayos X, | G146: Características del grupo social de trabajo relaciones | I146: Locativo superficies de trabajo irregulares, Locativo superficies de trabajo deslizantes | K146: Incumplimiento de normas y procedimientos, Exceso de confianza
E147: Radicaciones ionizantes rayos gama | G147: Características del grupo social de trabajo cohesión | I147: Locativo superficies de trabajo con diferencias de nivel | K147: No reporte de actos y condiciones inseguras
E148: Radicaciones ionizantes rayos beta | G148: Características del grupo social de trabajo calidad de interacciones | I148: Locativo condiciones de orden y aseo | K148: Agresividad de los trabajadores
E149: Radicaciones ionizantes rayos alfa | G149: Características del grupo social de trabajo trabajo en equipo | I149: Locativo caída de objetos | K149: Falta de capacidad física y o mental de una persona o para realizar adecuadamente cierta actividad, función o servicio
E150: Radicaciones no ionizantes laser | G150: Condiciones de la tarea carga mental | I150: Tecnológico explosión, Tecnológico fuga
E151: Radicaciones no ionizantes ultravioleta | G151: Condiciones de la tarea contenido de la tarea | I151: Tecnológico derrame, Tecnológico incendio
E152: Radicaciones no ionizantes infrarroja | G152: Condiciones de la tarea demandas emocionales | I152: Accidentes de tránsito
E153: Radicaciones no ionizantes radiofrecuencia | G153: Condiciones de la tarea sistema de control | I153: Públicos robos, atracos, asaltos,
E154: Radicaciones no ionizantes microondas | G154: Condiciones de la tarea definición de roles | I154: Públicos atentados
B155: N.D | G155: Condiciones de la tarea monotonía | I155: Públicos de orden público
B156: Muy Alto (MA) - 10 | G156: Interfase persona-tarea conocimientos, | I156: Trabajo en alturas
B157: Alto (A) - 6 | G157: Interfase persona-tarea habilidades en relación con la demanda de la tarea | I157: Espacios confinados
B158: Medio (M) - 2 | G158: Interfase persona-tarea iniciativa
B159: Bajo (B) - No se Asigna Valor | G159: Interfase persona-tarea autonomía y reconocimiento
G160: Interfase persona-tarea identificación de la persona con la tarea y la organización
B161: N.E | G161: Jornadas de trabajo pausas
B162: Continua (EC) - 4 | G162: Jornadas de trabajo trabajo nocturno
B163: Frecuente (EF) - 3 | G163: Jornadas de trabajo rotación
B164: Ocasional (EO) - 2 | G164: Jornadas de trabajo horas extras
B165: Esporádica (EE) - 1 | G165: Jornadas de trabajo descansos
B167: N.P (N.DxN.E) | D167: MUY ALTO (MA) - 40 | E167: MUY ALTO (MA) - 30 | F167: ALTO (A) - 20 | G167: ALTO (A) - 10
D168: MUY ALTO (MA) - 24 | E168: ALTO (A) - 18 | F168: ALTO (A) - 12 | G168: MEDIO (M) - 6
D169: MEDIO (M) - 8 | E169: MEDIO (M) - 6 | F169: BAJO (B) - 4 | G169: BAJO (B) - 2
B170: N.C
B171: Mortal o Catastrófico (M) - 100
B172: Muy Grave (MG) - 60
B173: Grave (G) - 25
B174: Leve (L) - 10
B176: N.R (N.PxN.C) | D176: NIVEL DE RIESGO 1 (4000 - 2400) | E176: NIVEL DE RIESGO 1 (2000 - 1200) | F176: NIVEL DE RIESGO 1 (800 - 600) | G176: NIVEL DE RIESGO 2 (400 - 200)
D178: NIVEL DE RIESGO 1 (2400- 1440) | E178: NIVEL DE RIESGO 1 (1200 - 600) | F178: NIVEL DE RIESGO 2 (480 - 360) | G178: NIVEL DE RIESGO 2 (200)
G179: NIVEL DE RIESGO 3 (120)
D180: NIVEL DE RIESGO 1 (1000 - 600) | E180: NIVEL DE RIESGO 2 (500 - 250) | F180: NIVEL DE RIESGO 2 (200 - 150) | G180: NIVEL DE RIESGO 3 (100 - 50)
D182: NIVEL DE RIESGO 2 (400-240) | E182: NIVEL DE RIESGO 2 (200) | F182: NIVEL DE RIESGO 3 (80 - 60) | G182: NIVEL DE RIESGO 3 (40)
E183: NIVEL DE RIESGO 3 (100) | G183: NIVEL DE RIESGO 4 (20)
A185: Subsistema de Seguridad de la Información (SGSI) | B185: PROBABILIDAD
B186: Raro - 1 | D186: BAJO - TRIVIAL 1 | E186: BAJO - ACEPTABLE 2 | F186: MODERADO 3 | G186: ALTA-IMPORTANTE 4 | H186: ALTA-IMPORTANTE 5
B187: Improbable - 2 | D187: BAJO - TRIVIAL 2 | E187: BAJO - ACEPTABLE 4 | F187: MODERADO 6 | G187: ALTA-IMPORTANTE 8 | H187: CATASTRÓFICO – INACEPTABLE 10
B188: Posible - 3 | D188: BAJO - TRIVIAL 3 | E188: MODERADO 6 | F188: ALTA - IMPORTANTE 9 | G188: CATASTRÓFICO – INACEPTABLE 12 | H188: CATASTRÓFICO – INACEPTABLE 15
B189: Probable - 4 | D189: MODERADO 4 | E189: ALTA - IMPORTANTE 8 | F189: ALTA - IMPORTANTE 12 | G189: CATASTRÓFICO – INACEPTABLE 16 | H189: CATASTRÓFICO – INACEPTABLE 20
B190: Seguro - 5 | D190: ALTA - IMPORTANTE 5 | E190: ALTA - IMPORTANTE 10 | F190: CATASTRÓFICO – INACEPTABLE 15 | G190: CATASTRÓFICO – INACEPTABLE 20 | H190: CATASTRÓFICO – INACEPTABLE 25
B192: IMPACTO
B193: Insignificante - 1
B194: Menor - 2
B195: Moderado - 3
B196: Mayor - 4
B197: Catastrófico - 5
B199: TIPO DE CONTROL
B200: Correctivo
B201: Preventivo
B203: NIVEL
B204: Nulo - 0
B205: Bajo - 5
B206: Medio Bajo - 10
B207: Medio - 15
B208: Medio Alto - 20
B209: Alto - 25
A211: Riesgos de Corrupción | B211: PROBABILIDAD
B212: Rara vez - 1 | D212: MODERADA 25 | E212: ALTA 50 | F212: EXTREMA 100
B213: Improbable - 2 | D213: MODERADA 20 | E213: ALTA 40 | F213: EXTREMA 80
B214: Posible - 3 | D214: MODERADA 15 | E214: ALTA 30 | F214: EXTREMA 60
B215: Probable - 4 | D215: BAJA 10 | E215: MODERADA 20 | F215: ALTA 40
B216: Casi seguro - 5 | D216: BAJA 5 | E216: BAJA 10 | F216: MODERADA 20
B218: IMPACTO
B219: Moderado - 5
B220: Mayor - 10
B221: Catastrófico - 20
B223: TIPO DE CONTROL
B224: Preventivo
B225: Detectivo
... 10 more rows

Sheet Menú Principal
D2: MAPA INTEGRAL DE RIESGOS | E2: Código: GI-MG-001-FR-014
D3: Macroproceso: Direccionamiento Estratégico | E3: Versión: 04
D4: Proceso: Gestión Integrada | E4: Fecha de Aprobación: 23/12/2021
D7: Identifique el eje a evaluar:

Sheet Procesos Calidad
C2: MAPA INTEGRAL DE RIESGOS | I2: Código: GI-MG-001-FR-014
C3: Macroproceso: Direccionamiento Estratégico | I3: Versión: 04
C4: Proceso: Gestión Integrada | I4: Fecha de Aprobación: 23/12/2021
C7: Eje de Calidad: Por favor seleccione el Proceso de su interés

Sheet Procesos Corrupción
C2: MAPA INTEGRAL DE RIESGOS | I2: Código: GI-MG-001-FR-014
C3: Macroproceso: Direccionamiento Estratégico | I3: Versión: 04
C4: Proceso: Gestión Integrada | I4: Fecha de Aprobación: 23/12/2021
C6: Eje de Corrupción: Por favor seleccione el Proceso de su interés

Sheet 1) GD - Cal
D2: MAPA INTEGRAL DE RIESGOS | G2: Código: GI-MG-001-FR-014
D3: Macroproceso: Direccionamiento Estratégico | G3: Versión: 04
D4: Proceso: Gestión Integrada | G4: Fecha de Aprobación: 23/12/2021
B6: EJE DE CALIDAD
B8: Proceso: | D8: Gestión de Docencia
B9: Objetivo del Proceso: | D9: =IF(D8=0,"",VLOOKUP(D8,'[7]Datos SGC'!B50:C71,2)) -> Garantizar que los Planes de Estudio establecidos para cada Proyecto Curricular, ofrezcan al estudiante de la UDFJC una formación integral y de calidad, dirigida fundamentalmente a las necesidades de la sociedad, contando con la cantidad e idoneidad de Docentes y demás personal que influya directamente en tal Proceso de Formación, garantizando que se ejecute eficientemente el Proceso de Enseñanza-Aprendizaje.
AN10: 44 | AP10: 4 | AT10: 4 | AU10: 4
B12: IDENTIFICACIÓN DEL RIESGO | J12: ANÁLISIS DEL RIESGO | Q12: EVALUACIÓN DEL RIESGO | AE12: TRATAMIENTO DEL RIESGO
B13: N° | C13: Descripción del Riesgo | D13: Tipo de Riesgo | E13: Impacto | F13: Causa inmediata | G13: Causa raíz | H13: Consecuencias adicionales | I13: Unidad(es) que reportan al Riesgo | J13: Número de veces que se pasa por el punto de riesgo en el periodo de 1 año | K13: Probabilidad | L13: % P | M13: Impacto | N13: % I | O13: Zona de Riesgo Inherente | P13: Nº | Q13: Controles existentes | R13: Atributos de eficacia | U13: Atributos informativos | X13: Probabilidad Residual | Y13: % P | Z13: Impacto Residual | AA13: % I | AB13: Zona de Riesgo después del Control | AC13: Zona de Riesgo Residual FINAL | AD13: Tratamiento al Riesgo | AE13: Acción para mitigar el riesgo | AF13: Evidencia de cumplimiento | AG13: Responsable | AH13: Periodo de ejecución
R14: Tipo | S14: Implementación | T14: Calificación del control (%) | U14: Documentación | V14: Frecuencia | W14: Evidencia
B15: 1 | C15: Posibilidad de afectación en la apropiación del conocimiento en su referente práctico por inconvenientes en las prácticas académicas, debido a interrupción, cancelación y/o demoras en la gestión administrativa. | D15: Operativo | E15: Afectación en la apropiación del conocimiento en su referente práctico. | F15: Inconvenientes en la gestión de prácticas académicas. | G15: Demora en autorización de recursos para la realización de las prácticas académicas. | H15: Afectación de la imagen de la universidad en las organizaciones o entidades con las cuales se pueda haber pactado una práctica académica. | I15: Decanaturas de las Facultades de la Universidad Distrital Proyectos Curriculares | J15: =25+63+305+23+108 -> 524 | K15: =IF(J15<=0,"",IF(J15<=2,"Muy Baja",IF(J15<=12,"Baja",IF(J15<=365,"Media",IF(J15<=5000,"Alta","Muy Alta"))))) -> Alta | L15: =IF(K15="","",IF(K15="Muy Baja",0.2,IF(K15="Baja",0.4,IF(K15="Media",0.6,IF(K15="Alta",0.8,IF(K15="Muy Alta",1,)))))) -> 0.8 | M15: Menor | N15: =IF(M15="","",IF(M15="Leve",0.2,IF(M15="Menor",0.4,IF(M15="Moderado",0.6,IF(M15="Mayor",0.8,IF(M15="Catastrófico",1,)))))) -> 0.4 | O15: =IF(OR(AND(K15="Muy Baja",M15="Leve"),AND(K15="Muy Baja",M15="Menor"),AND(K15="Baja",M15="Leve")),"BAJA",IF(OR(AND(K15="Muy baja",M15="Moderado"),AND(K15="Baja",M15="Menor"),AND(K15="Baja",M15="Moderado"),AND(K15="Media",M15="Leve"),AND(K15="Media",M15="Menor"),AND(K15="Media",M15="Moderado"),AND(K15="Alta",M15="Leve"),AND(K15="Alta",M15="Menor")),"MODERADA",IF(OR(AND(K15="Muy Baja",M15="Mayor"),AND(K15="Baja",M15="Mayor"),AND(K15="Media",M15="Mayor"),AND(K15="Alta",M15="Moderado"),AND(K15="Alta",M15="Mayor"),AND(K15="Muy Alta",M15="Leve"),AND(K15="Muy Alta",M15="Menor"),AND(K15="Muy Alta",M15="Moderado"),AND(K15="Muy Alta",M15="Mayor")),"ALTA",IF(OR(AND(K15="Muy Baja",M15="Catastrófico"),AND(K15="Baja",M15="Catastrófico"),AND(K15="Media",M15="Catastrófico"),AND(K15="Alta",M15="Catastrófico"),AND(K15="Muy Alta",M15="Catastrófico")),"EXTREMA","")))) -> MODERADA | P15: 1 | Q15: El delegado de cada Decanatura cada vez que se recibe una solicitud de gestión de práctica revisa la documentación antes de ser radicada por el solicitante para proceder con el trámite correspondiente, en caso de encontrar inconsistencias en la documentación se devuelve la misma al Proyecto Curricular solicitante para que realice los ajustes pertinentes. La evidencia se visualiza en la trazabilidad documental la cual se digitaliza una vez se da inicio al trámite. | R15: Preventivo | S15: Manual | T15: =IF(AND(R15="Preventivo",S15="Automático"),"50%",IF(AND(R15="Preventivo",S15="Manual"),"40%",IF(AND(R15="Detectivo",S15="Automático"),"40%",IF(AND(R15="Detectivo",S15="Manual"),"30%",IF(AND(R15="Correctivo",S15="Automático"),"35%",IF(AND(R15="Correctivo",S15="Manual"),"25%","")))))) -> 40% | U15: Documentado | V15: Continua | W15: Con registro | X15: =IFERROR(IF(Y15="","",IF(Y15<=0.2,"Muy Baja",IF(Y15<=0.4,"Baja",IF(Y15<=0.6,"Media",IF(Y15<=0.8,"Alta","Muy Alta"))))),"") -> Media | Y15: =IFERROR(IF(OR(R15="Preventivo", R15="Detectivo"),(L15-(+L15*T15)),IF(R15="Correctivo",L15,"")),"") -> 0.48 | Z15: =IFERROR(IF(AA15="","",IF(AA15<=0.2,"Leve",IF(AA15<=0.4,"Menor",IF(AA15<=0.6,"Moderado",IF(AA15<=0.8,"Mayor","Catastrófico"))))),"") -> Menor | AA15: =IFERROR(IF(R15="Correctivo",(N15-(+N15*T15)),IF(OR(R15="Preventivo", R15="Detectivo"),N15,"")),"") -> 0.4 | AB15: =IFERROR(IF(OR(AND(X15="Muy Baja",Z15="Leve"),AND(X15="Muy Baja",Z15="Menor"),AND(X15="Baja",Z15="Leve")),"BAJA",IF(OR(AND(X15="Muy baja",Z15="Moderado"),AND(X15="Baja",Z15="Menor"),AND(X15="Baja",Z15="Moderado"),AND(X15="Media",Z15="Leve"),AND(X15="Media",Z15="Menor"),AND(X15="Media",Z15="Moderado"),AND(X15="Alta",Z15="Leve"),AND(X15="Alta",Z15="Menor")),"MODERADA",IF(OR(AND(X15="Muy Baja",Z15="Mayor"),AND(X15="Baja",Z15="Mayor"),AND(X15="Media",Z15="Mayor"),AND(X15="Alta",Z15="Moderado"),AND(X15="Alta",Z15="Mayor"),AND(X15="Muy Alta",Z15="Leve"),AND(X15="Muy Alta",Z15="Menor"),AND(X15="Muy Alta",Z15="Moderado"),AND(X15="Muy Alta",Z15="Mayor")),"ALTA",IF(OR(AND(X15="Muy Baja",Z15="Catastrófico"),AND(X15="Baja",Z15="Catastrófico"),AND(X15="Media",Z15="Catastrófico"),AND(X15="Alta",Z15="Catastrófico"),AND(X15="Muy Alta",Z15="Catastrófico")),"EXTREMA","")))),"") -> MODERADA | AC15: =IF(ISBLANK(S15), O15,LOOKUP(2,1/(AB15:AB21<>""),AB15:AB21)) -> MODERADA | AD15: Reducir | AE15: Actualizar el Procedimiento de Prácticas Académicas y documentar un instructivo único para todas las Facultades, con el fin de guiar a los Docentes en el paso a paso para la gestión de las prácticas académicas, con base en la Resolución 098 de 2018. | AF15: Procedimiento actualizado Instructivo único aprobado y publicado | AG15: Vicerrectoría Académica Decanaturas de las Facultades de la Universidad Distrital | AH15: Trimestre III
G16: Pocos recursos económicos, humanos o físicos para la ejecución de practicas aprobadas y programadas. | H16: Insatisfacción por parte de los estudiantes frente a las prácticas. | P16: 2 | Q16: El delegado de cada Decanatura consolida el Plan Semestral de Prácticas con base en la información presentada por los Proyectos Curriculares (estimado de gastos y de actividades a realizar por los docentes), el cual pasa por Vo.Bo de la Decanatura y la Vicerrectoría Académica. La evidencia es el Plan Semestral de Prácticas y en caso de presentarse modificaciones se procede a estudiar el caso y a realizar los ajustes pertinentes. | R16: Preventivo | S16: Manual | T16: 40% | U16: Documentado | V16: Continua | W16: Con registro | X16: Baja | Y16: =IFERROR(IF(AND(OR(R15="Preventivo", R15="Detectivo"),OR(R16="Preventivo", R16="Detectivo")),(Y15-(+Y15*T16)),IF(OR(R16="Preventivo", R16="Detectivo"),(L15-(+L15*T16)),IF(R16="Correctivo",Y15,""))),"") -> 0.288 | Z16: Menor | AA16: =IFERROR(IF(AND(R15="Correctivo",R16="Correctivo"),(AA15-(+AA15*T16)),IF(R16="Correctivo",(N15-(+N15*T16)),IF(OR(R16="Preventivo", R16="Detectivo"),AA15,""))),"") -> 0.4 | AB16: MODERADA
G17: Limitaciones en los trámites administrativos y/o centralización de la tramitología y gestión de las prácticas. | H17: No ejecución o desaprovechamiento del rubro (presupuesto asignado). | P17: 3 | Q17: El Docente encargado de la práctica académica una vez finalizada la misma realiza la legalización del avance mediante una lista con la relación de estudiantes asistentes a la práctica y el dinero entregado a cada uno, junto con la legalización de los impuestos y una copia de la Resolución de la práctica académica, esta documentación es entregada a Tesorería con copia a la Decanatura correspondiente (Resolución de Rectoría 311 de 2019, de Avances), la cual es revisada, y en caso de ser necesario se contacta al Docente con el fin de corregir la documentación. | R17: Detectivo | S17: Manual | T17: 30% | U17: Documentado | V17: Continua | W17: Con registro | X17: Baja | Y17: =IFERROR(IF(AND(OR(R16="Preventivo", R16="Detectivo"),OR(R17="Preventivo", R17="Detectivo")),(Y16-(+Y16*T17)),IF(OR(R17="Preventivo", R17="Detectivo"),(Y15-(+Y15*T17)),IF(R17="Correctivo",Y16,""))),"") -> 0.2016 | Z17: Menor | AA17: =IFERROR(IF(AND(R16="Correctivo",R17="Correctivo"),(AA16-(+AA16*T17)),IF(R17="Correctivo",(AA15-(+AA15*T17)),IF(OR(R17="Preventivo", R17="Detectivo"),AA16,""))),"") -> 0.4 | AB17: MODERADA
G18: Limitación del desarrollo de las prácticas a los Docentes de planta. | H18: Desmotivación en los Docentes para liderar y gestionar prácticas. | P18: 4 | Y18: =IFERROR(IF(AND(OR(R17="Preventivo", R17="Detectivo"),OR(R18="Preventivo", R18="Detectivo")),(Y17-(+Y17*T18)),IF(OR(R18="Preventivo", R18="Detectivo"),(Y16-(+Y16*T18)),IF(R18="Correctivo",Y17,""))),"") ->  | AA18: =IFERROR(IF(AND(R17="Correctivo",R18="Correctivo"),(AA17-(+AA17*T18)),IF(R18="Correctivo",(AA16-(+AA16*T18)),IF(OR(R18="Preventivo", R18="Detectivo"),AA17,""))),"") -> 
G19: La aprobación y asignación de los traslados a través de la bolsa de transporte de la Universidad y/o trámites contractuales lentos (lineamientos nuevos implementados en la marcha del proceso) y que no se socializan debidamente. | H19: Afectación en los indicadores de Acreditación Institucional, tanto de programas curriculares como a nivel institucional. | P19: 5 | Y19: =IFERROR(IF(AND(OR(R18="Preventivo", R18="Detectivo"),OR(R19="Preventivo", R19="Detectivo")),(Y18-(+Y18*T19)),IF(OR(R19="Preventivo", R19="Detectivo"),(Y17-(+Y17*T19)),IF(R19="Correctivo",Y18,""))),"") ->  | AA19: =IFERROR(IF(AND(R18="Correctivo",R19="Correctivo"),(AA18-(+AA18*T19)),IF(R19="Correctivo",(AA17-(+AA17*T19)),IF(OR(R19="Preventivo", R19="Detectivo"),AA18,""))),"") -> 
G20: Desconocimiento del procedimiento y los tiempos para la gestión de las prácticas por parte de los Docentes. | H20: Sobrecostos en la gestión de las prácticas. | P20: 6 | Y20: =IFERROR(IF(AND(OR(R19="Preventivo", R19="Detectivo"),OR(R20="Preventivo", R20="Detectivo")),(Y19-(+Y19*T20)),IF(OR(R20="Preventivo", R20="Detectivo"),(Y18-(+Y18*T20)),IF(R20="Correctivo",Y19,""))),"") ->  | AA20: =IFERROR(IF(AND(R19="Correctivo",R20="Correctivo"),(AA19-(+AA19*T20)),IF(R20="Correctivo",(AA18-(+AA18*T20)),IF(OR(R20="Preventivo", R20="Detectivo"),AA19,""))),"") -> 
G21: Cancelaciones o inconvenientes con los actores externos involucrados en la práctica académica (servicio de transporte, inconvenientes por parte de las entidades, instituciones y/o organizaciones) | P21: 7 | Y21: =IFERROR(IF(AND(OR(R20="Preventivo", R20="Detectivo"),OR(R21="Preventivo", R21="Detectivo")),(Y20-(+Y20*T21)),IF(OR(R21="Preventivo", R21="Detectivo"),(Y19-(+Y19*T21)),IF(R21="Correctivo",Y20,""))),"") ->  | AA21: =IFERROR(IF(AND(R20="Correctivo",R21="Correctivo"),(AA20-(+AA20*T21)),IF(R21="Correctivo",(AA19-(+AA19*T21)),IF(OR(R21="Preventivo", R21="Detectivo"),AA20,""))),"") -> 
B22: 2 | C22: Posibilidad de afectación en el desarrollo de las actividades académicas por incumplimiento de los planes de trabajo docente, debido a la no aplicación y/o desconocimiento de lineamientos para la formulación y seguimiento de los mismos. | D22: Operativo | E22: Afectación en el desarrollo de las actividades académicas. | F22: Incumplimiento de las actividades consignadas en los planes de trabajo por parte de los Docentes. | G22: Falta de parámetros en el sistema de gestión académica que permitan regular los tiempos asignados a cada tipo de actividad en los planes de trabajo docente, según la distribución e intensidad establecidas por la normatividad. | H22: Afectación en la debida gestión de las actividades como: tutorías académicas, consejería a estudiantes y otras actividades contempladas en el estatuto docente (capítulo 9, articulo 48). | I22: Decanaturas de las Facultades de la Universidad Distrital Proyectos Curriculares | J22: =2000*5 -> 10000 | K22: =IF(J22<=0,"",IF(J22<=2,"Muy Baja",IF(J22<=12,"Baja",IF(J22<=365,"Media",IF(J22<=5000,"Alta","Muy Alta"))))) -> Muy Alta | L22: =IF(K22="","",IF(K22="Muy Baja",0.2,IF(K22="Baja",0.4,IF(K22="Media",0.6,IF(K22="Alta",0.8,IF(K22="Muy Alta",1,)))))) -> 1 | M22: Leve | N22: =IF(M22="","",IF(M22="Leve",0.2,IF(M22="Menor",0.4,IF(M22="Moderado",0.6,IF(M22="Mayor",0.8,IF(M22="Catastrófico",1,)))))) -> 0.2 | O22: =IF(OR(AND(K22="Muy Baja",M22="Leve"),AND(K22="Muy Baja",M22="Menor"),AND(K22="Baja",M22="Leve")),"BAJA",IF(OR(AND(K22="Muy baja",M22="Moderado"),AND(K22="Baja",M22="Menor"),AND(K22="Baja",M22="Moderado"),AND(K22="Media",M22="Leve"),AND(K22="Media",M22="Menor"),AND(K22="Media",M22="Moderado"),AND(K22="Alta",M22="Leve"),AND(K22="Alta",M22="Menor")),"MODERADA",IF(OR(AND(K22="Muy Baja",M22="Mayor"),AND(K22="Baja",M22="Mayor"),AND(K22="Media",M22="Mayor"),AND(K22="Alta",M22="Moderado"),AND(K22="Alta",M22="Mayor"),AND(K22="Muy Alta",M22="Leve"),AND(K22="Muy Alta",M22="Menor"),AND(K22="Muy Alta",M22="Moderado"),AND(K22="Muy Alta",M22="Mayor")),"ALTA",IF(OR(AND(K22="Muy Baja",M22="Catastrófico"),AND(K22="Baja",M22="Catastrófico"),AND(K22="Media",M22="Catastrófico"),AND(K22="Alta",M22="Catastrófico"),AND(K22="Muy Alta",M22="Catastrófico")),"EXTREMA","")))) -> ALTA | P22: 1 | Q22: El Coordinador de Cada Proyecto Curricular semestralmente revisa el Plan de Trabajo entregado por cada Docente, una vez revisado lo avala y lo firma, en caso de encontrar inconsistencias, el Coordinador solicita al Docente los ajustes al Plan de Trabajo pertinentes. Cuando se solicita descarga de hora lectivas la solicitud se eleva al Consejo de Facultad, Decanatura, o la Secretaría de las Facultades dependiendo el caso. | R22: Preventivo | S22: Manual | T22: 40% | U22: Documentado | V22: Continua | W22: Con registro | X22: Media | Y22: =IFERROR(IF(OR(R22="Preventivo", R22="Detectivo"),(L22-(+L22*T22)),IF(R22="Correctivo",L22,"")),"") -> 0.6 | Z22: Leve | AA22: =IFERROR(IF(R22="Correctivo",(N22-(+N22*T22)),IF(OR(R22="Preventivo", R22="Detectivo"),N22,"")),"") -> 0.2 | AB22: MODERADA | AC22: =IF(ISBLANK(S22), O22,LOOKUP(2,1/(AB22:AB28<>""),AB22:AB28)) -> BAJA | AD22: Reducir | AE22: Realizar inducciones y reinducciones a los docentes de planta. | AF22: Planillas de asistencia de inducciones y reinducciones | AG22: Vicerrectoría Académica | AH22: Toda la vigencia
G23: La normatividad existente no es lo suficientemente clara y especifica a la hora de establecer las actividades de los planes de trabajo. | H23: No se garantiza que el docente cumpla con las obligaciones pactadas para con la Universidad (horas lectivas y no lectivas). | P23: 2 | Q23: El Asistente o Profesional de cada Decanatura semestralmente revisa el Plan de Trabajo de cada Docente previamente aprobado por el Coordinador de Cada Proyecto Curricular, dicha revisión se hace teniendo en cuenta la normatividad vigente. En caso de encontrar inconsistencias en el Plan de Trabajo se procede a notificar al Proyecto Curricular que se revise nuevamente y se apliquen los ajustes pertinentes, o se brinden los soportes correspondientes. Una vez subsana la información se procede con la aprobación y firma del Decano según se requiera. | R23: Preventivo | S23: Manual | T23: 40% | U23: Documentado | V23: Continua | W23: Con registro | X23: Baja | Y23: =IFERROR(IF(AND(OR(R22="Preventivo", R22="Detectivo"),OR(R23="Preventivo", R23="Detectivo")),(Y22-(+Y22*T23)),IF(OR(R23="Preventivo", R23="Detectivo"),(L22-(+L22*T23)),IF(R23="Correctivo",Y22,""))),"") -> 0.36 | Z23: Leve | AA23: =IFERROR(IF(AND(R22="Correctivo",R23="Correctivo"),(AA22-(+AA22*T23)),IF(R23="Correctivo",(N22-(+N22*T23)),IF(OR(R23="Preventivo", R23="Detectivo"),AA22,""))),"") -> 0.2 | AB23: BAJA | AE23: Realizar inducciones y reinducciones a los docentes de vinculación especial. | AF23: Planillas de asistencia de inducciones y reinducciones | AG23: Decanaturas de las Facultades de la Universidad Distrital Proyectos Curriculares | AH23: Toda la vigencia
G24: La ausencia de un mecanismo institucional de seguimiento y control que no permite asegurar la coherencia entre las actividades consignadas en el plan de trabajo docente y las ejecutadas. | H24: Pérdida de la percepción de la calidad por parte de los estudiantes. | P24: 3 | Q24: Los Proyectos Curriculares solicitan semestralmente un informe de gestión a los docentes de planta con el fin de recolectar la información de las actividades realizadas durante el semestre frente al Plan de Trabajo Docente. | R24: Detectivo | S24: Manual | T24: 30% | U24: Documentado | V24: Continua | W24: Con registro | X24: Baja | Y24: =IFERROR(IF(AND(OR(R23="Preventivo", R23="Detectivo"),OR(R24="Preventivo", R24="Detectivo")),(Y23-(+Y23*T24)),IF(OR(R24="Preventivo", R24="Detectivo"),(Y22-(+Y22*T24)),IF(R24="Correctivo",Y23,""))),"") -> 0.252 | Z24: Leve | AA24: =IFERROR(IF(AND(R23="Correctivo",R24="Correctivo"),(AA23-(+AA23*T24)),IF(R24="Correctivo",(AA22-(+AA22*T24)),IF(OR(R24="Preventivo", R24="Detectivo"),AA23,""))),"") -> 0.2 | AB24: BAJA
G25: No existe un lineamiento específico para la elaboración de los informes de gestión de los Docentes más allá de los ítems contenidos en el plan de trabajo. | H25: Sobrecarga laboral a algunos Docentes. | P25: 4 | Y25: =IFERROR(IF(AND(OR(R24="Preventivo", R24="Detectivo"),OR(R25="Preventivo", R25="Detectivo")),(Y24-(+Y24*T25)),IF(OR(R25="Preventivo", R25="Detectivo"),(Y23-(+Y23*T25)),IF(R25="Correctivo",Y24,""))),"") ->  | AA25: =IFERROR(IF(AND(R24="Correctivo",R25="Correctivo"),(AA24-(+AA24*T25)),IF(R25="Correctivo",(AA23-(+AA23*T25)),IF(OR(R25="Preventivo", R25="Detectivo"),AA24,""))),"") -> 
G26: Interrupción de semestres académicos debido a situaciones coyunturales internas y/o externas. | H26: Vinculación adicional (sobrecosto) para el cumplimiento de las actividades misionales. | P26: 5 | Y26: =IFERROR(IF(AND(OR(R25="Preventivo", R25="Detectivo"),OR(R26="Preventivo", R26="Detectivo")),(Y25-(+Y25*T26)),IF(OR(R26="Preventivo", R26="Detectivo"),(Y24-(+Y24*T26)),IF(R26="Correctivo",Y25,""))),"") ->  | AA26: =IFERROR(IF(AND(R25="Correctivo",R26="Correctivo"),(AA25-(+AA25*T26)),IF(R26="Correctivo",(AA24-(+AA24*T26)),IF(OR(R26="Preventivo", R26="Detectivo"),AA25,""))),"") -> 
G27: Falta de inducción y reinducción de los Docentes. | H27: Deterioro de la imagen institucional. | P27: 6 | Y27: =IFERROR(IF(AND(OR(R26="Preventivo", R26="Detectivo"),OR(R27="Preventivo", R27="Detectivo")),(Y26-(+Y26*T27)),IF(OR(R27="Preventivo", R27="Detectivo"),(Y25-(+Y25*T27)),IF(R27="Correctivo",Y26,""))),"") ->  | AA27: =IFERROR(IF(AND(R26="Correctivo",R27="Correctivo"),(AA26-(+AA26*T27)),IF(R27="Correctivo",(AA25-(+AA25*T27)),IF(OR(R27="Preventivo", R27="Detectivo"),AA26,""))),"") -> 
G28: Desconocimiento y/o desarticulación entre el plan de acción de la Decanatura y los planes de trabajo de los docentes. | H28: Afectación en los indicadores de Acreditación Institucional. | P28: 7 | Y28: =IFERROR(IF(AND(OR(R27="Preventivo", R27="Detectivo"),OR(R28="Preventivo", R28="Detectivo")),(Y27-(+Y27*T28)),IF(OR(R28="Preventivo", R28="Detectivo"),(Y26-(+Y26*T28)),IF(R28="Correctivo",Y27,""))),"") ->  | AA28: =IFERROR(IF(AND(R27="Correctivo",R28="Correctivo"),(AA27-(+AA27*T28)),IF(R28="Correctivo",(AA26-(+AA26*T28)),IF(OR(R28="Preventivo", R28="Detectivo"),AA27,""))),"") -> 
B29: 3 | C29: Posibilidad de afectación en el desarrollo del plan de estudios del estudiante por falta de los docentes requeridos, debido a novedades presentadas, demoras en la contratación y/o falta de recursos financieros. | D29: Operativo | E29: Afectación en el desarrollo del plan de estudios del estudiante. | F29: Falta de docentes requeridos para el desarrollo de las actividades académicas del semestre. | G29: Jubilación o retiro voluntario de un docente. | H29: Insatisfacción de los estudiantes. | I29: Decanaturas de las Facultades de la Universidad Distrital Proyectos Curriculares | J29: 365 | K29: =IF(J29<=0,"",IF(J29<=2,"Muy Baja",IF(J29<=12,"Baja",IF(J29<=365,"Media",IF(J29<=5000,"Alta","Muy Alta"))))) -> Media | L29: =IF(K29="","",IF(K29="Muy Baja",0.2,IF(K29="Baja",0.4,IF(K29="Media",0.6,IF(K29="Alta",0.8,IF(K29="Muy Alta",1,)))))) -> 0.6 | M29: Menor | N29: =IF(M29="","",IF(M29="Leve",0.2,IF(M29="Menor",0.4,IF(M29="Moderado",0.6,IF(M29="Mayor",0.8,IF(M29="Catastrófico",1,)))))) -> 0.4 | O29: =IF(OR(AND(K29="Muy Baja",M29="Leve"),AND(K29="Muy Baja",M29="Menor"),AND(K29="Baja",M29="Leve")),"BAJA",IF(OR(AND(K29="Muy baja",M29="Moderado"),AND(K29="Baja",M29="Menor"),AND(K29="Baja",M29="Moderado"),AND(K29="Media",M29="Leve"),AND(K29="Media",M29="Menor"),AND(K29="Media",M29="Moderado"),AND(K29="Alta",M29="Leve"),AND(K29="Alta",M29="Menor")),"MODERADA",IF(OR(AND(K29="Muy Baja",M29="Mayor"),AND(K29="Baja",M29="Mayor"),AND(K29="Media",M29="Mayor"),AND(K29="Alta",M29="Moderado"),AND(K29="Alta",M29="Mayor"),AND(K29="Muy Alta",M29="Leve"),AND(K29="Muy Alta",M29="Menor"),AND(K29="Muy Alta",M29="Moderado"),AND(K29="Muy Alta",M29="Mayor")),"ALTA",IF(OR(AND(K29="Muy Baja",M29="Catastrófico"),AND(K29="Baja",M29="Catastrófico"),AND(K29="Media",M29="Catastrófico"),AND(K29="Alta",M29="Catastrófico"),AND(K29="Muy Alta",M29="Catastrófico")),"EXTREMA","")))) -> MODERADA | P29: 1 | Q29: El Asistente o Profesional de cada Proyecto Curricular cada vez que recibe una solicitud de inicio de proceso de jubilación de un docente, verifica las fechas estimadas en la cual se hará efectiva la jubilación o el retiro voluntario, con el fin de reasignar las horas con los docentes de planta o a docentes de vinculación especial que puedan tomar la carga académica, lo cual queda evidenciado en los requerimiento de horas y tipos de docente del Proyecto Curricular, o en los Planes de Trabajo de los docentes (cuando la ausencia del docente surge durante el transcurso del semestre). | R29: Detectivo | S29: Manual | T29: 30% | U29: Documentado | V29: Aleatoria | W29: Con registro | X29: Media | Y29: =IFERROR(IF(OR(R29="Preventivo", R29="Detectivo"),(L29-(+L29*T29)),IF(R29="Correctivo",L29,"")),"") -> 0.42 | Z29: Menor | AA29: =IFERROR(IF(R29="Correctivo",(N29-(+N29*T29)),IF(OR(R29="Preventivo", R29="Detectivo"),N29,"")),"") -> 0.4 | AB29: MODERADA | AC29: =IF(ISBLANK(S29), O29,LOOKUP(2,1/(AB29:AB35<>""),AB29:AB35)) -> BAJA | AD29: Aceptar
G30: Falta de recursos financieros. | H30: Perdida de registro calificado. | P30: 2 | Q30: El Asistente o Profesional de cada Decanatura una vez se aprueba el presupuesto contrasta el recurso disponible frente a la necesidad real de horas y tipos de docentes, en caso de detectar que el presupuesto no es suficiente se procede a solicitar a la Oficina Asesora de Planeación y Control, y la Vicerrectoría Administrativa y Financiera las adiciones presupuestales con base en las necesidades de cada Facultad. Lo cual queda evidenciado en las resoluciones de modificaciones al presupuesto. | R30: Preventivo | S30: Manual | T30: 40% | U30: Documentado | V30: Continua | W30: Con registro | X30: Baja | Y30: =IFERROR(IF(AND(OR(R29="Preventivo", R29="Detectivo"),OR(R30="Preventivo", R30="Detectivo")),(Y29-(+Y29*T30)),IF(OR(R30="Preventivo", R30="Detectivo"),(L29-(+L29*T30)),IF(R30="Correctivo",Y29,""))),"") -> 0.252 | Z30: Menor | AA30: =IFERROR(IF(AND(R29="Correctivo",R30="Correctivo"),(AA29-(+AA29*T30)),IF(R30="Correctivo",(N29-(+N29*T30)),IF(OR(R30="Preventivo", R30="Detectivo"),AA29,""))),"") -> 0.4 | AB30: MODERADA
G31: El calendario académico no es consecuente con el tiempo real de ejecución de las actividades. | H31: Afectación en los indicadores de Acreditación Institucional, tanto de programas curriculares como a nivel institucional. | P31: 3 | Q31: El Asistente o Profesional de cada Proyecto Curricular cada vez que recibe una incapacidad médica o una solicitud de licencia por parte de un docente, se verifica las fechas establecidas en las cuales no desempeñará sus labores, con el fin de reasignar las horas con los docentes de planta o a docentes de vinculación especial que puedan tomar la carga académica, lo cual queda evidenciado en los requerimiento de horas y tipos de docente del Proyecto Curricular o en los Planes de Trabajo de los docentes (cuando la ausencia del docente surge durante el transcurso del semestre). | R31: Detectivo | S31: Manual | T31: 30% | U31: Documentado | V31: Continua | W31: Con registro | X31: Muy Baja | Y31: =IFERROR(IF(AND(OR(R30="Preventivo", R30="Detectivo"),OR(R31="Preventivo", R31="Detectivo")),(Y30-(+Y30*T31)),IF(OR(R31="Preventivo", R31="Detectivo"),(Y29-(+Y29*T31)),IF(R31="Correctivo",Y30,""))),"") -> 0.1764 | Z31: Menor | AA31: =IFERROR(IF(AND(R30="Correctivo",R31="Correctivo"),(AA30-(+AA30*T31)),IF(R31="Correctivo",(AA29-(+AA29*T31)),IF(OR(R31="Preventivo", R31="Detectivo"),AA30,""))),"") -> 0.4 | AB31: BAJA
G32: Licencia por: maternidad, paternidad, calamidad domestica, no remunerada, entre otras según normatividad vigente; o enfermedad de un docente. | H32: Derechos de petición o tutelas exigiendo las garantías académicas. | P32: 4 | Q32: La Coordinación del Proyecto Curricular con el apoyo del Profesional del área jurídica de la Facultad verifica que las solicitudes de necesidad de perfiles docentes cumpla con los requisitos legales requeridos, en caso de requerir ajustes el Profesional sugiere que realicen cambios en la necesidad, y en casos excepcionales (Resolución 001 del 2012 de la Vicerrectoría Académica) se presenta al Consejo de Facultad. La evidencia se refleja en la solicitud de necesidad final y la trazabilidad de todo el trámite. | R32: Preventivo | S32: Manual | T32: 40% | U32: Documentado | V32: Continua | W32: Con registro | X32: Muy Baja | Y32: =IFERROR(IF(AND(OR(R31="Preventivo", R31="Detectivo"),OR(R32="Preventivo", R32="Detectivo")),(Y31-(+Y31*T32)),IF(OR(R32="Preventivo", R32="Detectivo"),(Y30-(+Y30*T32)),IF(R32="Correctivo",Y31,""))),"") -> 0.10584 | Z32: Menor | AA32: =IFERROR(IF(AND(R31="Correctivo",R32="Correctivo"),(AA31-(+AA31*T32)),IF(R32="Correctivo",(AA30-(+AA30*T32)),IF(OR(R32="Preventivo", R32="Detectivo"),AA31,""))),"") -> 0.4 | AB32: BAJA
G33: Concursos docentes desiertos. | H33: Aumento de la tasa de permanencia de los estudiantes. | P33: 5 | Y33: =IFERROR(IF(AND(OR(R32="Preventivo", R32="Detectivo"),OR(R33="Preventivo", R33="Detectivo")),(Y32-(+Y32*T33)),IF(OR(R33="Preventivo", R33="Detectivo"),(Y31-(+Y31*T33)),IF(R33="Correctivo",Y32,""))),"") ->  | AA33: =IFERROR(IF(AND(R32="Correctivo",R33="Correctivo"),(AA32-(+AA32*T33)),IF(R33="Correctivo",(AA31-(+AA31*T33)),IF(OR(R33="Preventivo", R33="Detectivo"),AA32,""))),"") -> 
H34: Mala imagen institucional. | P34: 6 | Y34: =IFERROR(IF(AND(OR(R33="Preventivo", R33="Detectivo"),OR(R34="Preventivo", R34="Detectivo")),(Y33-(+Y33*T34)),IF(OR(R34="Preventivo", R34="Detectivo"),(Y32-(+Y32*T34)),IF(R34="Correctivo",Y33,""))),"") ->  | AA34: =IFERROR(IF(AND(R33="Correctivo",R34="Correctivo"),(AA33-(+AA33*T34)),IF(R34="Correctivo",(AA32-(+AA32*T34)),IF(OR(R34="Preventivo", R34="Detectivo"),AA33,""))),"") -> 
P35: 7 | Y35: =IFERROR(IF(AND(OR(R34="Preventivo", R34="Detectivo"),OR(R35="Preventivo", R35="Detectivo")),(Y34-(+Y34*T35)),IF(OR(R35="Preventivo", R35="Detectivo"),(Y33-(+Y33*T35)),IF(R35="Correctivo",Y34,""))),"") ->  | AA35: =IFERROR(IF(AND(R34="Correctivo",R35="Correctivo"),(AA34-(+AA34*T35)),IF(R35="Correctivo",(AA33-(+AA33*T35)),IF(OR(R35="Preventivo", R35="Detectivo"),AA34,""))),"") -> 
B36: 4 | C36: Posibilidad de afectación a la calidad de los espacios académicos por baja participación de los estudiantes en la Evaluación Docente, debido a la falta de credibilidad en el proceso por parte de la Comunidad Académica. | D36: Estratégico | E36: Afectación a la calidad de los espacios académicos. | F36: Participación de los Estudiantes por debajo de la estimada en la Evaluación Docente. | G36: Falta de credibilidad y apatía en la Evaluación Docente por parte de la Comunidad Académica. | H36: Baja retroalimentación por parte de los Estudiantes y Proyectos Curriculares para que los Docentes mejoren su labor académica. | I36: Vicerrectoría Académica (Oficina de Docencia) | J36: 2 | K36: =IF(J36<=0,"",IF(J36<=2,"Muy Baja",IF(J36<=12,"Baja",IF(J36<=365,"Media",IF(J36<=5000,"Alta","Muy Alta"))))) -> Muy Baja | L36: =IF(K36="","",IF(K36="Muy Baja",0.2,IF(K36="Baja",0.4,IF(K36="Media",0.6,IF(K36="Alta",0.8,IF(K36="Muy Alta",1,)))))) -> 0.2 | M36: Menor | N36: =IF(M36="","",IF(M36="Leve",0.2,IF(M36="Menor",0.4,IF(M36="Moderado",0.6,IF(M36="Mayor",0.8,IF(M36="Catastrófico",1,)))))) -> 0.4 | O36: =IF(OR(AND(K36="Muy Baja",M36="Leve"),AND(K36="Muy Baja",M36="Menor"),AND(K36="Baja",M36="Leve")),"BAJA",IF(OR(AND(K36="Muy baja",M36="Moderado"),AND(K36="Baja",M36="Menor"),AND(K36="Baja",M36="Moderado"),AND(K36="Media",M36="Leve"),AND(K36="Media",M36="Menor"),AND(K36="Media",M36="Moderado"),AND(K36="Alta",M36="Leve"),AND(K36="Alta",M36="Menor")),"MODERADA",IF(OR(AND(K36="Muy Baja",M36="Mayor"),AND(K36="Baja",M36="Mayor"),AND(K36="Media",M36="Mayor"),AND(K36="Alta",M36="Moderado"),AND(K36="Alta",M36="Mayor"),AND(K36="Muy Alta",M36="Leve"),AND(K36="Muy Alta",M36="Menor"),AND(K36="Muy Alta",M36="Moderado"),AND(K36="Muy Alta",M36="Mayor")),"ALTA",IF(OR(AND(K36="Muy Baja",M36="Catastrófico"),AND(K36="Baja",M36="Catastrófico"),AND(K36="Media",M36="Catastrófico"),AND(K36="Alta",M36="Catastrófico"),AND(K36="Muy Alta",M36="Catastrófico")),"EXTREMA","")))) -> BAJA | P36: 1 | Q36: El Técnico del proceso de Evaluación Docente mensualmente envía correos electrónicos a la Comunidad Universitaria con la información del Proceso de Evaluación Docente, adicionalmente, se generan alertas a través del Sistema de Gestión Académica, con el fin de promover oportunamente la participación en la Evaluación Docente. Este control queda evidenciado en los correos electrónicos y el Sistema de Gestión Académica. | R36: Preventivo | S36: Manual | T36: 40% | U36: Documentado | V36: Continua | W36: Con registro | X36: Muy Baja | Y36: =IFERROR(IF(OR(R36="Preventivo", R36="Detectivo"),(L36-(+L36*T36)),IF(R36="Correctivo",L36,"")),"") -> 0.12 | Z36: Menor | AA36: =IFERROR(IF(R36="Correctivo",(N36-(+N36*T36)),IF(OR(R36="Preventivo", R36="Detectivo"),N36,"")),"") -> 0.4 | AB36: BAJA | AC36: =IF(ISBLANK(S36), O36,LOOKUP(2,1/(AB36:AB42<>""),AB36:AB42)) -> BAJA | AD36: Aceptar
G37: Falta de actualización del formato de la Evaluación Docente frente a los cambios tecnológicos y actualizaciones en los Proyectos Curriculares. | H37: El proceso de evaluación docente genera resultados con baja representatividad estadística. | P37: 2 | Q37: El Técnico del proceso de Evaluación Docente envía comunicaciones quincenalmente durante el proceso a los Docentes, coordinaciones y decanaturas informando el porcentaje de participación de los estudiantes en sus diferentes asignaturas. Este control queda evidenciado en los correos electrónicos. | R37: Detectivo | S37: Manual | T37: 30% | U37: Documentado | V37: Continua | W37: Con registro | X37: Muy Baja | Y37: =IFERROR(IF(AND(OR(R36="Preventivo", R36="Detectivo"),OR(R37="Preventivo", R37="Detectivo")),(Y36-(+Y36*T37)),IF(OR(R37="Preventivo", R37="Detectivo"),(L36-(+L36*T37)),IF(R37="Correctivo",Y36,""))),"") -> 0.084 | Z37: Menor | AA37: =IFERROR(IF(AND(R36="Correctivo",R37="Correctivo"),(AA36-(+AA36*T37)),IF(R37="Correctivo",(N36-(+N36*T37)),IF(OR(R37="Preventivo", R37="Detectivo"),AA36,""))),"") -> 0.4 | AB37: BAJA
G38: Falta de institucionalización de la Oficina de Evaluación Docente. | H38: Continuidad de los Docentes mal evaluados en la institución. | P38: 3 | Q38: El Técnico del proceso de Evaluación Docente con apoyo de la Oficina Asesora de Sistemas realiza un validación semestralmente de la plataforma, con el fin de verificar tiempos y el correcto funcionamiento. Quedando evidencia en los correos de alerta enviados a la Oficina Asesora de Sistemas. | R38: Detectivo | S38: Manual | T38: 30% | U38: Documentado | V38: Continua | W38: Con registro | X38: Muy Baja | Y38: =IFERROR(IF(AND(OR(R37="Preventivo", R37="Detectivo"),OR(R38="Preventivo", R38="Detectivo")),(Y37-(+Y37*T38)),IF(OR(R38="Preventivo", R38="Detectivo"),(Y36-(+Y36*T38)),IF(R38="Correctivo",Y37,""))),"") -> 0.0588 | Z38: Menor | AA38: =IFERROR(IF(AND(R37="Correctivo",R38="Correctivo"),(AA37-(+AA37*T38)),IF(R38="Correctivo",(AA36-(+AA36*T38)),IF(OR(R38="Preventivo", R38="Detectivo"),AA37,""))),"") -> 0.4 | AB38: BAJA
G39: Fallas en la base datos que soporta la Evaluación Docente. | P39: 4 | Y39: =IFERROR(IF(AND(OR(R38="Preventivo", R38="Detectivo"),OR(R39="Preventivo", R39="Detectivo")),(Y38-(+Y38*T39)),IF(OR(R39="Preventivo", R39="Detectivo"),(Y37-(+Y37*T39)),IF(R39="Correctivo",Y38,""))),"") ->  | AA39: =IFERROR(IF(AND(R38="Correctivo",R39="Correctivo"),(AA38-(+AA38*T39)),IF(R39="Correctivo",(AA37-(+AA37*T39)),IF(OR(R39="Preventivo", R39="Detectivo"),AA38,""))),"") -> 
P40: 5 | Y40: =IFERROR(IF(AND(OR(R39="Preventivo", R39="Detectivo"),OR(R40="Preventivo", R40="Detectivo")),(Y39-(+Y39*T40)),IF(OR(R40="Preventivo", R40="Detectivo"),(Y38-(+Y38*T40)),IF(R40="Correctivo",Y39,""))),"") ->  | AA40: =IFERROR(IF(AND(R39="Correctivo",R40="Correctivo"),(AA39-(+AA39*T40)),IF(R40="Correctivo",(AA38-(+AA38*T40)),IF(OR(R40="Preventivo", R40="Detectivo"),AA39,""))),"") -> 
P41: 6 | Y41: =IFERROR(IF(AND(OR(R40="Preventivo", R40="Detectivo"),OR(R41="Preventivo", R41="Detectivo")),(Y40-(+Y40*T41)),IF(OR(R41="Preventivo", R41="Detectivo"),(Y39-(+Y39*T41)),IF(R41="Correctivo",Y40,""))),"") ->  | AA41: =IFERROR(IF(AND(R40="Correctivo",R41="Correctivo"),(AA40-(+AA40*T41)),IF(R41="Correctivo",(AA39-(+AA39*T41)),IF(OR(R41="Preventivo", R41="Detectivo"),AA40,""))),"") -> 
P42: 7 | Y42: =IFERROR(IF(AND(OR(R41="Preventivo", R41="Detectivo"),OR(R42="Preventivo", R42="Detectivo")),(Y41-(+Y41*T42)),IF(OR(R42="Preventivo", R42="Detectivo"),(Y40-(+Y40*T42)),IF(R42="Correctivo",Y41,""))),"") ->  | AA42: =IFERROR(IF(AND(R41="Correctivo",R42="Correctivo"),(AA41-(+AA41*T42)),IF(R42="Correctivo",(AA40-(+AA40*T42)),IF(OR(R42="Preventivo", R42="Detectivo"),AA41,""))),"") -> 
B43: 5 | C43: Posibilidad de perdida reputacional por inconvenientes en los tiempos de respuesta de solicitudes realizadas por los docentes, debido a demoras en la gestión y/o falta de conocimiento de la normatividad aplicable. | D43: Operativo | E43: Perdida reputacional | F43: Inconvenientes en los tiempos de respuesta de solicitudes realizadas por los docentes | G43: No se realiza el Comité de Personal Docente y de Asignación de Puntaje debido a falta de quórum. | H43: Insatisfacción en los usuarios de la Oficina. | I43: Vicerrectoría Académica (Oficina de Docencia) | J43: 1500 | K43: =IF(J43<=0,"",IF(J43<=2,"Muy Baja",IF(J43<=12,"Baja",IF(J43<=365,"Media",IF(J43<=5000,"Alta","Muy Alta"))))) -> Alta | L43: =IF(K43="","",IF(K43="Muy Baja",0.2,IF(K43="Baja",0.4,IF(K43="Media",0.6,IF(K43="Alta",0.8,IF(K43="Muy Alta",1,)))))) -> 0.8 | M43: Menor | N43: =IF(M43="","",IF(M43="Leve",0.2,IF(M43="Menor",0.4,IF(M43="Moderado",0.6,IF(M43="Mayor",0.8,IF(M43="Catastrófico",1,)))))) -> 0.4 | O43: =IF(OR(AND(K43="Muy Baja",M43="Leve"),AND(K43="Muy Baja",M43="Menor"),AND(K43="Baja",M43="Leve")),"BAJA",IF(OR(AND(K43="Muy baja",M43="Moderado"),AND(K43="Baja",M43="Menor"),AND(K43="Baja",M43="Moderado"),AND(K43="Media",M43="Leve"),AND(K43="Media",M43="Menor"),AND(K43="Media",M43="Moderado"),AND(K43="Alta",M43="Leve"),AND(K43="Alta",M43="Menor")),"MODERADA",IF(OR(AND(K43="Muy Baja",M43="Mayor"),AND(K43="Baja",M43="Mayor"),AND(K43="Media",M43="Mayor"),AND(K43="Alta",M43="Moderado"),AND(K43="Alta",M43="Mayor"),AND(K43="Muy Alta",M43="Leve"),AND(K43="Muy Alta",M43="Menor"),AND(K43="Muy Alta",M43="Moderado"),AND(K43="Muy Alta",M43="Mayor")),"ALTA",IF(OR(AND(K43="Muy Baja",M43="Catastrófico"),AND(K43="Baja",M43="Catastrófico"),AND(K43="Media",M43="Catastrófico"),AND(K43="Alta",M43="Catastrófico"),AND(K43="Muy Alta",M43="Catastrófico")),"EXTREMA","")))) -> MODERADA | P43: 1 | Q43: El Docente asignado en funciones de coordinación de actividades de docencia con el apoyo de un Profesional semestralmente realiza jornadas de socialización del decreto 1279 a los docentes de carrera en cada facultad, con el objetivo de dar a conocer los aspectos principales de las solicitudes. Este control queda evidenciado en las listas de asistencia de cada reunión en las facultades. | R43: Preventivo | S43: Manual | T43: 40% | U43: Documentado | V43: Continua | W43: Con registro | X43: Media | Y43: =IFERROR(IF(OR(R43="Preventivo", R43="Detectivo"),(L43-(+L43*T43)),IF(R43="Correctivo",L43,"")),"") -> 0.48 | Z43: Menor | AA43: =IFERROR(IF(R43="Correctivo",(N43-(+N43*T43)),IF(OR(R43="Preventivo", R43="Detectivo"),N43,"")),"") -> 0.4 | AB43: MODERADA | AC43: =IF(ISBLANK(S43), O43,LOOKUP(2,1/(AB43:AB49<>""),AB43:AB49)) -> MODERADA | AD43: Reducir | AE43: Establecer el reglamento interno del Comité de Personal Docente y de Asignación de Puntaje. | AF43: Reglamento interno del Comité de Personal Docente y de Asignación de Puntaje | AG43: Vicerrectoría Académica (Oficina de Docencia) | AH43: Semestre II
G44: Reproceso por inconsistencias encontradas en los documentos. | H44: Reclamaciones, tutelas o solicitudes adicionales de los Docentes que extienden la solicitud. | P44: 2 | Q44: La secretaria y el profesional de la coordinación de actividades de docencia verifica cada una de la solicitudes, con el objetivo de validar la entrega de la documentación necesaria, en caso de presentarse inconsistencias le pide al solicitante que ajuste la documentación mediante oficio o en el momento de la entrega, dependiendo el caso. | R44: Preventivo | S44: Manual | T44: 40% | U44: Documentado | V44: Continua | W44: Con registro | X44: Baja | Y44: =IFERROR(IF(AND(OR(R43="Preventivo", R43="Detectivo"),OR(R44="Preventivo", R44="Detectivo")),(Y43-(+Y43*T44)),IF(OR(R44="Preventivo", R44="Detectivo"),(L43-(+L43*T44)),IF(R44="Correctivo",Y43,""))),"") -> 0.288 | Z44: Menor | AA44: =IFERROR(IF(AND(R43="Correctivo",R44="Correctivo"),(AA43-(+AA43*T44)),IF(R44="Correctivo",(N43-(+N43*T44)),IF(OR(R44="Preventivo", R44="Detectivo"),AA43,""))),"") -> 0.4 | AB44: MODERADA | AE44: Implementar un sistema de información para la gestión de las actividades propias del CPDAP y de Docencia. | AF44: Sistema de información generalizado para la dependencia | AG44: Vicerrectoría Académica (Oficina de Docencia) | AH44: Semestre II
G45: Demora en la consecución de pares evaluadores de Colciencias calificados para la valoración de la producción académica y en la recepción de los conceptos de éstos. | H45: Desgaste de los funcionarios de la Oficina por reprocesos. | P45: 3 | Y45: =IFERROR(IF(AND(OR(R44="Preventivo", R44="Detectivo"),OR(R45="Preventivo", R45="Detectivo")),(Y44-(+Y44*T45)),IF(OR(R45="Preventivo", R45="Detectivo"),(Y43-(+Y43*T45)),IF(R45="Correctivo",Y44,""))),"") ->  | AA45: =IFERROR(IF(AND(R44="Correctivo",R45="Correctivo"),(AA44-(+AA44*T45)),IF(R45="Correctivo",(AA43-(+AA43*T45)),IF(OR(R45="Preventivo", R45="Detectivo"),AA44,""))),"") -> 
G46: Falta de conocimiento de la normatividad aplicable a la producción académica (Decreto 1279 de 2002) por parte de los Docentes que solicitan valoración de producción. | H46: Seguimiento o hallazgos por parte de los entes de control. | P46: 4 | Y46: =IFERROR(IF(AND(OR(R45="Preventivo", R45="Detectivo"),OR(R46="Preventivo", R46="Detectivo")),(Y45-(+Y45*T46)),IF(OR(R46="Preventivo", R46="Detectivo"),(Y44-(+Y44*T46)),IF(R46="Correctivo",Y45,""))),"") ->  | AA46: =IFERROR(IF(AND(R45="Correctivo",R46="Correctivo"),(AA45-(+AA45*T46)),IF(R46="Correctivo",(AA44-(+AA44*T46)),IF(OR(R46="Preventivo", R46="Detectivo"),AA45,""))),"") -> 
G47: Falta de institucionalización de la Oficina de Docencia y de infraestructura asociada a ésta. | P47: 5 | Y47: =IFERROR(IF(AND(OR(R46="Preventivo", R46="Detectivo"),OR(R47="Preventivo", R47="Detectivo")),(Y46-(+Y46*T47)),IF(OR(R47="Preventivo", R47="Detectivo"),(Y45-(+Y45*T47)),IF(R47="Correctivo",Y46,""))),"") ->  | AA47: =IFERROR(IF(AND(R46="Correctivo",R47="Correctivo"),(AA46-(+AA46*T47)),IF(R47="Correctivo",(AA45-(+AA45*T47)),IF(OR(R47="Preventivo", R47="Detectivo"),AA46,""))),"") -> 
P48: 6 | Y48: =IFERROR(IF(AND(OR(R47="Preventivo", R47="Detectivo"),OR(R48="Preventivo", R48="Detectivo")),(Y47-(+Y47*T48)),IF(OR(R48="Preventivo", R48="Detectivo"),(Y46-(+Y46*T48)),IF(R48="Correctivo",Y47,""))),"") ->  | AA48: =IFERROR(IF(AND(R47="Correctivo",R48="Correctivo"),(AA47-(+AA47*T48)),IF(R48="Correctivo",(AA46-(+AA46*T48)),IF(OR(R48="Preventivo", R48="Detectivo"),AA47,""))),"") -> 
P49: 7 | Y49: =IFERROR(IF(AND(OR(R48="Preventivo", R48="Detectivo"),OR(R49="Preventivo", R49="Detectivo")),(Y48-(+Y48*T49)),IF(OR(R49="Preventivo", R49="Detectivo"),(Y47-(+Y47*T49)),IF(R49="Correctivo",Y48,""))),"") ->  | AA49: =IFERROR(IF(AND(R48="Correctivo",R49="Correctivo"),(AA48-(+AA48*T49)),IF(R49="Correctivo",(AA47-(+AA47*T49)),IF(OR(R49="Preventivo", R49="Detectivo"),AA48,""))),"") -> 
B50: 6 | K50: =IF(J50<=0,"",IF(J50<=2,"Muy Baja",IF(J50<=12,"Baja",IF(J50<=365,"Media",IF(J50<=5000,"Alta","Muy Alta"))))) ->  | L50: =IF(K50="","",IF(K50="Muy Baja",0.2,IF(K50="Baja",0.4,IF(K50="Media",0.6,IF(K50="Alta",0.8,IF(K50="Muy Alta",1,)))))) ->  | N50: =IF(M50="","",IF(M50="Leve",0.2,IF(M50="Menor",0.4,IF(M50="Moderado",0.6,IF(M50="Mayor",0.8,IF(M50="Catastrófico",1,)))))) ->  | O50: =IF(OR(AND(K50="Muy Baja",M50="Leve"),AND(K50="Muy Baja",M50="Menor"),AND(K50="Baja",M50="Leve")),"BAJA",IF(OR(AND(K50="Muy baja",M50="Moderado"),AND(K50="Baja",M50="Menor"),AND(K50="Baja",M50="Moderado"),AND(K50="Media",M50="Leve"),AND(K50="Media",M50="Menor"),AND(K50="Media",M50="Moderado"),AND(K50="Alta",M50="Leve"),AND(K50="Alta",M50="Menor")),"MODERADA",IF(OR(AND(K50="Muy Baja",M50="Mayor"),AND(K50="Baja",M50="Mayor"),AND(K50="Media",M50="Mayor"),AND(K50="Alta",M50="Moderado"),AND(K50="Alta",M50="Mayor"),AND(K50="Muy Alta",M50="Leve"),AND(K50="Muy Alta",M50="Menor"),AND(K50="Muy Alta",M50="Moderado"),AND(K50="Muy Alta",M50="Mayor")),"ALTA",IF(OR(AND(K50="Muy Baja",M50="Catastrófico"),AND(K50="Baja",M50="Catastrófico"),AND(K50="Media",M50="Catastrófico"),AND(K50="Alta",M50="Catastrófico"),AND(K50="Muy Alta",M50="Catastrófico")),"EXTREMA","")))) ->  | P50: 1 | Y50: =IFERROR(IF(OR(R50="Preventivo", R50="Detectivo"),(L50-(+L50*T50)),IF(R50="Correctivo",L50,"")),"") ->  | AA50: =IFERROR(IF(R50="Correctivo",(N50-(+N50*T50)),IF(OR(R50="Preventivo", R50="Detectivo"),N50,"")),"") ->  | AC50: =IF(ISBLANK(S50), O50,LOOKUP(2,1/(AB50:AB56<>""),AB50:AB56)) -> 
P51: 2 | Y51: =IFERROR(IF(AND(OR(R50="Preventivo", R50="Detectivo"),OR(R51="Preventivo", R51="Detectivo")),(Y50-(+Y50*T51)),IF(OR(R51="Preventivo", R51="Detectivo"),(L50-(+L50*T51)),IF(R51="Correctivo",Y50,""))),"") ->  | AA51: =IFERROR(IF(AND(R50="Correctivo",R51="Correctivo"),(AA50-(+AA50*T51)),IF(R51="Correctivo",(N50-(+N50*T51)),IF(OR(R51="Preventivo", R51="Detectivo"),AA50,""))),"") -> 
P52: 3 | Y52: =IFERROR(IF(AND(OR(R51="Preventivo", R51="Detectivo"),OR(R52="Preventivo", R52="Detectivo")),(Y51-(+Y51*T52)),IF(OR(R52="Preventivo", R52="Detectivo"),(Y50-(+Y50*T52)),IF(R52="Correctivo",Y51,""))),"") ->  | AA52: =IFERROR(IF(AND(R51="Correctivo",R52="Correctivo"),(AA51-(+AA51*T52)),IF(R52="Correctivo",(AA50-(+AA50*T52)),IF(OR(R52="Preventivo", R52="Detectivo"),AA51,""))),"") -> 
P53: 4 | Y53: =IFERROR(IF(AND(OR(R52="Preventivo", R52="Detectivo"),OR(R53="Preventivo", R53="Detectivo")),(Y52-(+Y52*T53)),IF(OR(R53="Preventivo", R53="Detectivo"),(Y51-(+Y51*T53)),IF(R53="Correctivo",Y52,""))),"") ->  | AA53: =IFERROR(IF(AND(R52="Correctivo",R53="Correctivo"),(AA52-(+AA52*T53)),IF(R53="Correctivo",(AA51-(+AA51*T53)),IF(OR(R53="Preventivo", R53="Detectivo"),AA52,""))),"") -> 
P54: 5 | Y54: =IFERROR(IF(AND(OR(R53="Preventivo", R53="Detectivo"),OR(R54="Preventivo", R54="Detectivo")),(Y53-(+Y53*T54)),IF(OR(R54="Preventivo", R54="Detectivo"),(Y52-(+Y52*T54)),IF(R54="Correctivo",Y53,""))),"") ->  | AA54: =IFERROR(IF(AND(R53="Correctivo",R54="Correctivo"),(AA53-(+AA53*T54)),IF(R54="Correctivo",(AA52-(+AA52*T54)),IF(OR(R54="Preventivo", R54="Detectivo"),AA53,""))),"") -> 
P55: 6 | Y55: =IFERROR(IF(AND(OR(R54="Preventivo", R54="Detectivo"),OR(R55="Preventivo", R55="Detectivo")),(Y54-(+Y54*T55)),IF(OR(R55="Preventivo", R55="Detectivo"),(Y53-(+Y53*T55)),IF(R55="Correctivo",Y54,""))),"") ->  | AA55: =IFERROR(IF(AND(R54="Correctivo",R55="Correctivo"),(AA54-(+AA54*T55)),IF(R55="Correctivo",(AA53-(+AA53*T55)),IF(OR(R55="Preventivo", R55="Detectivo"),AA54,""))),"") -> 
P56: 7 | Y56: =IFERROR(IF(AND(OR(R55="Preventivo", R55="Detectivo"),OR(R56="Preventivo", R56="Detectivo")),(Y55-(+Y55*T56)),IF(OR(R56="Preventivo", R56="Detectivo"),(Y54-(+Y54*T56)),IF(R56="Correctivo",Y55,""))),"") ->  | AA56: =IFERROR(IF(AND(R55="Correctivo",R56="Correctivo"),(AA55-(+AA55*T56)),IF(R56="Correctivo",(AA54-(+AA54*T56)),IF(OR(R56="Preventivo", R56="Detectivo"),AA55,""))),"") -> 
B57: 7 | K57: =IF(J57<=0,"",IF(J57<=2,"Muy Baja",IF(J57<=12,"Baja",IF(J57<=365,"Media",IF(J57<=5000,"Alta","Muy Alta"))))) ->  | L57: =IF(K57="","",IF(K57="Muy Baja",0.2,IF(K57="Baja",0.4,IF(K57="Media",0.6,IF(K57="Alta",0.8,IF(K57="Muy Alta",1,)))))) ->  | N57: =IF(M57="","",IF(M57="Leve",0.2,IF(M57="Menor",0.4,IF(M57="Moderado",0.6,IF(M57="Mayor",0.8,IF(M57="Catastrófico",1,)))))) ->  | O57: =IF(OR(AND(K57="Muy Baja",M57="Leve"),AND(K57="Muy Baja",M57="Menor"),AND(K57="Baja",M57="Leve")),"BAJA",IF(OR(AND(K57="Muy baja",M57="Moderado"),AND(K57="Baja",M57="Menor"),AND(K57="Baja",M57="Moderado"),AND(K57="Media",M57="Leve"),AND(K57="Media",M57="Menor"),AND(K57="Media",M57="Moderado"),AND(K57="Alta",M57="Leve"),AND(K57="Alta",M57="Menor")),"MODERADA",IF(OR(AND(K57="Muy Baja",M57="Mayor"),AND(K57="Baja",M57="Mayor"),AND(K57="Media",M57="Mayor"),AND(K57="Alta",M57="Moderado"),AND(K57="Alta",M57="Mayor"),AND(K57="Muy Alta",M57="Leve"),AND(K57="Muy Alta",M57="Menor"),AND(K57="Muy Alta",M57="Moderado"),AND(K57="Muy Alta",M57="Mayor")),"ALTA",IF(OR(AND(K57="Muy Baja",M57="Catastrófico"),AND(K57="Baja",M57="Catastrófico"),AND(K57="Media",M57="Catastrófico"),AND(K57="Alta",M57="Catastrófico"),AND(K57="Muy Alta",M57="Catastrófico")),"EXTREMA","")))) ->  | P57: 1 | Y57: =IFERROR(IF(OR(R57="Preventivo", R57="Detectivo"),(L57-(+L57*T57)),IF(R57="Correctivo",L57,"")),"") ->  | AA57: =IFERROR(IF(R57="Correctivo",(N57-(+N57*T57)),IF(OR(R57="Preventivo", R57="Detectivo"),N57,"")),"") ->  | AC57: =IF(ISBLANK(S57), O57,LOOKUP(2,1/(AB57:AB63<>""),AB57:AB63)) -> 
P58: 2 | Y58: =IFERROR(IF(AND(OR(R57="Preventivo", R57="Detectivo"),OR(R58="Preventivo", R58="Detectivo")),(Y57-(+Y57*T58)),IF(OR(R58="Preventivo", R58="Detectivo"),(L57-(+L57*T58)),IF(R58="Correctivo",Y57,""))),"") ->  | AA58: =IFERROR(IF(AND(R57="Correctivo",R58="Correctivo"),(AA57-(+AA57*T58)),IF(R58="Correctivo",(N57-(+N57*T58)),IF(OR(R58="Preventivo", R58="Detectivo"),AA57,""))),"") -> 
P59: 3 | Y59: =IFERROR(IF(AND(OR(R58="Preventivo", R58="Detectivo"),OR(R59="Preventivo", R59="Detectivo")),(Y58-(+Y58*T59)),IF(OR(R59="Preventivo", R59="Detectivo"),(Y57-(+Y57*T59)),IF(R59="Correctivo",Y58,""))),"") ->  | AA59: =IFERROR(IF(AND(R58="Correctivo",R59="Correctivo"),(AA58-(+AA58*T59)),IF(R59="Correctivo",(AA57-(+AA57*T59)),IF(OR(R59="Preventivo", R59="Detectivo"),AA58,""))),"") -> 
P60: 4 | Y60: =IFERROR(IF(AND(OR(R59="Preventivo", R59="Detectivo"),OR(R60="Preventivo", R60="Detectivo")),(Y59-(+Y59*T60)),IF(OR(R60="Preventivo", R60="Detectivo"),(Y58-(+Y58*T60)),IF(R60="Correctivo",Y59,""))),"") ->  | AA60: =IFERROR(IF(AND(R59="Correctivo",R60="Correctivo"),(AA59-(+AA59*T60)),IF(R60="Correctivo",(AA58-(+AA58*T60)),IF(OR(R60="Preventivo", R60="Detectivo"),AA59,""))),"") -> 
P61: 5 | Y61: =IFERROR(IF(AND(OR(R60="Preventivo", R60="Detectivo"),OR(R61="Preventivo", R61="Detectivo")),(Y60-(+Y60*T61)),IF(OR(R61="Preventivo", R61="Detectivo"),(Y59-(+Y59*T61)),IF(R61="Correctivo",Y60,""))),"") ->  | AA61: =IFERROR(IF(AND(R60="Correctivo",R61="Correctivo"),(AA60-(+AA60*T61)),IF(R61="Correctivo",(AA59-(+AA59*T61)),IF(OR(R61="Preventivo", R61="Detectivo"),AA60,""))),"") -> 
P62: 6 | Y62: =IFERROR(IF(AND(OR(R61="Preventivo", R61="Detectivo"),OR(R62="Preventivo", R62="Detectivo")),(Y61-(+Y61*T62)),IF(OR(R62="Preventivo", R62="Detectivo"),(Y60-(+Y60*T62)),IF(R62="Correctivo",Y61,""))),"") ->  | AA62: =IFERROR(IF(AND(R61="Correctivo",R62="Correctivo"),(AA61-(+AA61*T62)),IF(R62="Correctivo",(AA60-(+AA60*T62)),IF(OR(R62="Preventivo", R62="Detectivo"),AA61,""))),"") -> 
P63: 7 | Y63: =IFERROR(IF(AND(OR(R62="Preventivo", R62="Detectivo"),OR(R63="Preventivo", R63="Detectivo")),(Y62-(+Y62*T63)),IF(OR(R63="Preventivo", R63="Detectivo"),(Y61-(+Y61*T63)),IF(R63="Correctivo",Y62,""))),"") ->  | AA63: =IFERROR(IF(AND(R62="Correctivo",R63="Correctivo"),(AA62-(+AA62*T63)),IF(R63="Correctivo",(AA61-(+AA61*T63)),IF(OR(R63="Preventivo", R63="Detectivo"),AA62,""))),"") -> 
B65: Elaboró | D65: Revisó | G65: Aprobó
B66: Nombre: Delegados Decanaturas y Equipo SIGUD Cargo: N/A Fecha: 04/04/2022 | D66: Nombre: Mirna Jirón Popova / Omer Calderón / Andrés Rodríguez Ferreira / Luz Esperanza Bohórquez Arévalo / Ruth Esperanza Román Castillo / Claudia María Cardona Londoño / Humberto Guerrero Salas Cargo: Vicerrectora Académica / Decano Facultad de Ciencias y Educación / Decano Facultad de Artes ASAB / Decana Facultad de Ingeniería / Decana Facultad Tecnológica / Decana Facultad de Medio Ambiente y Recursos Naturales / Coordinador Oficina de Docencia Fecha: 25/04/2022 | G66: Nombre: Mirna Jirón Popova / Omer Calderón / Andrés Rodríguez Ferreira / Luz Esperanza Bohórquez Arévalo / Ruth Esperanza Román Castillo / Claudia María Cardona Londoño / Humberto Guerrero Salas Cargo: Vicerrectora Académica / Decano Facultad de Ciencias y Educación / Decano Facultad de Artes ASAB / Decana Facultad de Ingeniería / Decana Facultad Tecnológica / Decana Facultad de Medio Ambiente y Recursos Naturales / Coordinador Oficina de Docencia Fecha: 25/04/2022

Sheet 1) GD - Cor
D2: MAPA INTEGRAL DE RIESGOS | F2: Código: GI-MG-001-FR-014
D3: Macroproceso: Direccionamiento Estratégico | F3: Versión: 04
D4: Proceso: Gestión Integrada | F4: Fecha de Aprobación: 23/12/2021
B6: EJE DE CORRUPCIÓN
B8: Proceso: | D8: Gestión de Docencia
B9: Objetivo del Proceso: | D9: =IF(D8=0,"",VLOOKUP(D8,'[7]Datos SGC'!B50:C71,2)) -> Garantizar que los Planes de Estudio establecidos para cada Proyecto Curricular, ofrezcan al estudiante de la UDFJC una formación integral y de calidad, dirigida fundamentalmente a las necesidades de la sociedad, contando con la cantidad e idoneidad de Docentes y demás personal que influya directamente en tal Proceso de Formación, garantizando que se ejecute eficientemente el Proceso de Enseñanza-Aprendizaje.
AM10: 44 | AO10: 4 | AS10: 4 | AT10: 4
B12: IDENTIFICACIÓN DEL RIESGO | I12: ANÁLISIS DEL RIESGO | P12: EVALUACIÓN DEL RIESGO | AD12: TRATAMIENTO DEL RIESGO
B13: N° | C13: Descripción del Riesgo | D13: Impacto | E13: Causa inmediata | F13: Causa raíz | G13: Consecuencias adicionales | H13: Unidad(es) que reportan al Riesgo | I13: Número de veces que se pasa por el punto de riesgo en el periodo de 1 año | J13: Probabilidad | K13: % P | L13: Impacto | M13: % I | N13: Zona de Riesgo Inherente | O13: Nº | P13: Controles existentes | Q13: Atributos de eficacia | T13: Atributos informativos | W13: Probabilidad Residual | X13: % P | Y13: Impacto Residual | Z13: % I | AA13: Zona de Riesgo después del Control | AB13: Zona de Riesgo Residual FINAL | AC13: Tratamiento al Riesgo | AD13: Acción para mitigar el riesgo | AE13: Evidencia de cumplimiento | AF13: Responsable | AG13: Periodo de ejecución
Q14: Tipo | R14: Implementación | S14: Calificación del control (%) | T14: Documentación | U14: Frecuencia | V14: Evidencia
B15: 1 | C15: Posibilidad de perdida reputacional y/o económica por manipulación de los procesos de selección y contratación de docentes, con el fin de dar privilegios no meritorios a particulares o terceros. | D15: Perdida reputacional y/o económica | E15: Manipulación en la convocatoria y selección de Docentes. | F15: Omisión de los requisitos legales para el nombramiento o contratación de la persona. | G15: Falta de garantías para la igualdad de condiciones a los inscritos. | H15: Decanaturas de las Facultades de la Universidad Distrital Proyectos Curriculares | I15: =250+223+600+303+247 -> 1623 | J15: =IF(I15<=0,"",IF(I15<=2,"Muy Baja",IF(I15<=12,"Baja",IF(I15<=365,"Media",IF(I15<=5000,"Alta","Muy Alta"))))) -> Alta | K15: =IF(J15="","",IF(J15="Muy Baja",0.2,IF(J15="Baja",0.4,IF(J15="Media",0.6,IF(J15="Alta",0.8,IF(J15="Muy Alta",1,)))))) -> 0.8 | L15: Moderado | M15: =IF(L15="","",IF(L15="Leve",0.2,IF(L15="Menor",0.4,IF(L15="Moderado",0.6,IF(L15="Mayor",0.8,IF(L15="Catastrófico",1,)))))) -> 0.6 | N15: =IF(OR(AND(J15="Muy Baja",L15="Leve"),AND(J15="Muy Baja",L15="Menor"),AND(J15="Baja",L15="Leve")),"BAJA",IF(OR(AND(J15="Muy baja",L15="Moderado"),AND(J15="Baja",L15="Menor"),AND(J15="Baja",L15="Moderado"),AND(J15="Media",L15="Leve"),AND(J15="Media",L15="Menor"),AND(J15="Media",L15="Moderado"),AND(J15="Alta",L15="Leve"),AND(J15="Alta",L15="Menor")),"MODERADA",IF(OR(AND(J15="Muy Baja",L15="Mayor"),AND(J15="Baja",L15="Mayor"),AND(J15="Media",L15="Mayor"),AND(J15="Alta",L15="Moderado"),AND(J15="Alta",L15="Mayor"),AND(J15="Muy Alta",L15="Leve"),AND(J15="Muy Alta",L15="Menor"),AND(J15="Muy Alta",L15="Moderado"),AND(J15="Muy Alta",L15="Mayor")),"ALTA",IF(OR(AND(J15="Muy Baja",L15="Catastrófico"),AND(J15="Baja",L15="Catastrófico"),AND(J15="Media",L15="Catastrófico"),AND(J15="Alta",L15="Catastrófico"),AND(J15="Muy Alta",L15="Catastrófico")),"EXTREMA","")))) -> ALTA | O15: 1 | P15: El Consejo de Facultad semestralmente o cuando se requiera recibe la solicitud de necesidad por parte del Consejo Curricular la cual incluye el perfil del docente requerido, para realizar la verificación si es posible suplir la necesidad con los docentes actuales o se requiere un proceso de selección docente. La evidencia de la verificación y aprobación se contempla en las Actas de Reunión de los Consejos y en la publicación de la convocatoria en la página web institucional. | Q15: Preventivo | R15: Manual | S15: =IF(AND(Q15="Preventivo",R15="Automático"),"50%",IF(AND(Q15="Preventivo",R15="Manual"),"40%",IF(AND(Q15="Detectivo",R15="Automático"),"40%",IF(AND(Q15="Detectivo",R15="Manual"),"30%",IF(AND(Q15="Correctivo",R15="Automático"),"35%",IF(AND(Q15="Correctivo",R15="Manual"),"25%","")))))) -> 40% | T15: Documentado | U15: Continua | V15: Con registro | W15: =IFERROR(IF(X15="","",IF(X15<=0.2,"Muy Baja",IF(X15<=0.4,"Baja",IF(X15<=0.6,"Media",IF(X15<=0.8,"Alta","Muy Alta"))))),"") -> Media | X15: =IFERROR(IF(OR(Q15="Preventivo", Q15="Detectivo"),(K15-(+K15*S15)),IF(Q15="Correctivo",K15,"")),"") -> 0.48 | Y15: =IFERROR(IF(Z15="","",IF(Z15<=0.2,"Leve",IF(Z15<=0.4,"Menor",IF(Z15<=0.6,"Moderado",IF(Z15<=0.8,"Mayor","Catastrófico"))))),"") -> Moderado | Z15: =IFERROR(IF(Q15="Correctivo",(M15),IF(OR(Q15="Preventivo", Q15="Detectivo"),M15,"")),"") -> 0.6 | AA15: =IFERROR(IF(OR(AND(W15="Muy Baja",Y15="Leve"),AND(W15="Muy Baja",Y15="Menor"),AND(W15="Baja",Y15="Leve")),"BAJA",IF(OR(AND(W15="Muy baja",Y15="Moderado"),AND(W15="Baja",Y15="Menor"),AND(W15="Baja",Y15="Moderado"),AND(W15="Media",Y15="Leve"),AND(W15="Media",Y15="Menor"),AND(W15="Media",Y15="Moderado"),AND(W15="Alta",Y15="Leve"),AND(W15="Alta",Y15="Menor")),"MODERADA",IF(OR(AND(W15="Muy Baja",Y15="Mayor"),AND(W15="Baja",Y15="Mayor"),AND(W15="Media",Y15="Mayor"),AND(W15="Alta",Y15="Moderado"),AND(W15="Alta",Y15="Mayor"),AND(W15="Muy Alta",Y15="Leve"),AND(W15="Muy Alta",Y15="Menor"),AND(W15="Muy Alta",Y15="Moderado"),AND(W15="Muy Alta",Y15="Mayor")),"ALTA",IF(OR(AND(W15="Muy Baja",Y15="Catastrófico"),AND(W15="Baja",Y15="Catastrófico"),AND(W15="Media",Y15="Catastrófico"),AND(W15="Alta",Y15="Catastrófico"),AND(W15="Muy Alta",Y15="Catastrófico")),"EXTREMA","")))),"") -> MODERADA | AB15: =IF(ISBLANK(R15), N15,LOOKUP(2,1/(AA15:AA21<>""),AA15:AA21)) -> MODERADA | AC15: Reducir
F16: Uso de la información institucional para beneficios personales, con el fin de manipular o influenciar el proceso de selección docente. | G16: Afecta la calidad académica de la universidad debido a que el docente seleccionado no cumple el perfil requerido. | O16: 2 | P16: El Profesional del área jurídica de la Facultad previamente a los Consejos de Facultad verifica que las solicitudes de necesidad de perfiles docentes cumpla con los requisitos legales requeridos, en caso de detectar inconsistencias el Profesional sugiere que realicen cambios en la necesidad. La evidencia se refleja en la solicitud de necesidad final y la trazabilidad de todo el trámite. | Q16: Preventivo | R16: Manual | S16: 40% | T16: Documentado | U16: Continua | V16: Con registro | W16: Baja | X16: =IFERROR(IF(AND(OR(Q15="Preventivo", Q15="Detectivo"),OR(Q16="Preventivo", Q16="Detectivo")),(X15-(+X15*S16)),IF(OR(Q16="Preventivo", Q16="Detectivo"),(K15-(+K15*S16)),IF(Q16="Correctivo",X15,""))),"") -> 0.288 | Y16: Moderado | Z16: =IFERROR(IF(AND(Q15="Correctivo",Q16="Correctivo"),(Z15),IF(Q16="Correctivo",(M15),IF(OR(Q16="Preventivo", Q16="Detectivo"),Z15,""))),"") -> 0.6 | AA16: MODERADA
F17: Concentración de autoridad o abuso de poder. | G17: Mala imagen de la universidad. | O17: 3 | P17: Cada Decanatura una vez se obtienen los resultados de la convocatoria docente revisa la hoja de vida del Docente seleccionado (ganador) y el perfil solicitado, con el fin de revisar la información y proceder a publicar en la página web el acta del ganador. | Q17: Detectivo | R17: Manual | S17: 30% | T17: Documentado | U17: Continua | V17: Con registro | W17: Baja | X17: =IFERROR(IF(AND(OR(Q16="Preventivo", Q16="Detectivo"),OR(Q17="Preventivo", Q17="Detectivo")),(X16-(+X16*S17)),IF(OR(Q17="Preventivo", Q17="Detectivo"),(X15-(+X15*S17)),IF(Q17="Correctivo",X16,""))),"") -> 0.2016 | Y17: Moderado | Z17: =IFERROR(IF(AND(Q16="Correctivo",Q17="Correctivo"),(Z16),IF(Q17="Correctivo",(Z15),IF(OR(Q17="Preventivo", Q17="Detectivo"),Z16,""))),"") -> 0.6 | AA17: MODERADA
F18: Favorecimiento personal o de un tercero (clientelismo). | G18: Demanda a la institución, procesos disciplinarios y jurídicos. | O18: 4 | X18: =IFERROR(IF(AND(OR(Q17="Preventivo", Q17="Detectivo"),OR(Q18="Preventivo", Q18="Detectivo")),(X17-(+X17*S18)),IF(OR(Q18="Preventivo", Q18="Detectivo"),(X16-(+X16*S18)),IF(Q18="Correctivo",X17,""))),"") ->  | Z18: =IFERROR(IF(AND(Q17="Correctivo",Q18="Correctivo"),(Z17),IF(Q18="Correctivo",(Z16),IF(OR(Q18="Preventivo", Q18="Detectivo"),Z17,""))),"") -> 
F19: Ausencia de controles pertinentes en la selección de criterios para la contratación docente. | G19: Declaración de cancelación del vinculo con el docente. | O19: 5 | X19: =IFERROR(IF(AND(OR(Q18="Preventivo", Q18="Detectivo"),OR(Q19="Preventivo", Q19="Detectivo")),(X18-(+X18*S19)),IF(OR(Q19="Preventivo", Q19="Detectivo"),(X17-(+X17*S19)),IF(Q19="Correctivo",X18,""))),"") -> 
F20: Falta de ética de los funcionarios y/o aspirantes. | O20: 6 | X20: =IFERROR(IF(AND(OR(Q19="Preventivo", Q19="Detectivo"),OR(Q20="Preventivo", Q20="Detectivo")),(X19-(+X19*S20)),IF(OR(Q20="Preventivo", Q20="Detectivo"),(X18-(+X18*S20)),IF(Q20="Correctivo",X19,""))),"") -> 
O21: 7 | X21: =IFERROR(IF(AND(OR(Q20="Preventivo", Q20="Detectivo"),OR(Q21="Preventivo", Q21="Detectivo")),(X20-(+X20*S21)),IF(OR(Q21="Preventivo", Q21="Detectivo"),(X19-(+X19*S21)),IF(Q21="Correctivo",X20,""))),"") -> 
B22: 2 | C22: Posibilidad de perdida reputacional y/o económica por utilización de recursos económicos de forma malintencionada, con el fin de obtener algún beneficio privado. | D22: Perdida reputacional y/o económica | E22: Utilización de recursos económicos de forma malintencionada. | F22: La normatividad de la Universidad no se ajusta a las condiciones de las actividades académicas de la Institución. | G22: Incumplimiento en la prestación de los servicios establecidos en el proceso de Gestión de Docencia (prácticas académicas, capacitación docente, creación de Proyectos Curriculares). | H22: Decanaturas de las Facultades de la Universidad Distrital | I22: =1100+1600+524+2+40 -> 3266 | J22: =IF(I22<=0,"",IF(I22<=2,"Muy Baja",IF(I22<=12,"Baja",IF(I22<=365,"Media",IF(I22<=5000,"Alta","Muy Alta"))))) -> Alta | K22: =IF(J22="","",IF(J22="Muy Baja",0.2,IF(J22="Baja",0.4,IF(J22="Media",0.6,IF(J22="Alta",0.8,IF(J22="Muy Alta",1,)))))) -> 0.8 | L22: Moderado | M22: =IF(L22="","",IF(L22="Leve",0.2,IF(L22="Menor",0.4,IF(L22="Moderado",0.6,IF(L22="Mayor",0.8,IF(L22="Catastrófico",1,)))))) -> 0.6 | N22: =IF(OR(AND(J22="Muy Baja",L22="Leve"),AND(J22="Muy Baja",L22="Menor"),AND(J22="Baja",L22="Leve")),"BAJA",IF(OR(AND(J22="Muy baja",L22="Moderado"),AND(J22="Baja",L22="Menor"),AND(J22="Baja",L22="Moderado"),AND(J22="Media",L22="Leve"),AND(J22="Media",L22="Menor"),AND(J22="Media",L22="Moderado"),AND(J22="Alta",L22="Leve"),AND(J22="Alta",L22="Menor")),"MODERADA",IF(OR(AND(J22="Muy Baja",L22="Mayor"),AND(J22="Baja",L22="Mayor"),AND(J22="Media",L22="Mayor"),AND(J22="Alta",L22="Moderado"),AND(J22="Alta",L22="Mayor"),AND(J22="Muy Alta",L22="Leve"),AND(J22="Muy Alta",L22="Menor"),AND(J22="Muy Alta",L22="Moderado"),AND(J22="Muy Alta",L22="Mayor")),"ALTA",IF(OR(AND(J22="Muy Baja",L22="Catastrófico"),AND(J22="Baja",L22="Catastrófico"),AND(J22="Media",L22="Catastrófico"),AND(J22="Alta",L22="Catastrófico"),AND(J22="Muy Alta",L22="Catastrófico")),"EXTREMA","")))) -> ALTA | O22: 1 | P22: Los Decanos de cada Facultad con apoyo del profesional del área financiera anualmente construyen y realizan la distribución del presupuesto de la Facultad con base a las necesidades identificadas (por los rubros asignados), con el fin de ser remitida a la Oficina Asesora de Planeación y Control y proceder con la aprobación por el Consejo Superior Universitario. La Programación Presupuestal da los lineamientos para la ejecución de los rubros a lo largo del año. | Q22: Preventivo | R22: Manual | S22: 40% | T22: Documentado | U22: Continua | V22: Con registro | W22: Media | X22: =IFERROR(IF(OR(Q22="Preventivo", Q22="Detectivo"),(K22-(+K22*S22)),IF(Q22="Correctivo",K22,"")),"") -> 0.48 | Y22: Moderado | Z22: =IFERROR(IF(Q22="Correctivo",(M22),IF(OR(Q22="Preventivo", Q22="Detectivo"),M22,"")),"") -> 0.6 | AA22: MODERADA | AB22: =IF(ISBLANK(R22), N22,LOOKUP(2,1/(AA22:AA28<>""),AA22:AA28)) -> MODERADA | AC22: Reducir | AD22: Solicitar cuando se requiera inducción de procesos y procedimientos en el manejo del presupuesto. | AE22: Actas de reunión y/o planillas de asistencia | AF22: Decanaturas de las Facultades de la Universidad Distrital | AG22: Toda la vigencia
F23: Desconocimiento o no aplicación del manual de interventoría y supervisión. | G23: Acciones legales emprendidas contra los implicados, el supervisor o interventor y/o el ordenador encargado. | O23: 2 | P23: El Profesional de cada Decanatura encargado de hora catedra semestralmente de acuerdo a la Programación Presupuestal, revisa la coherencia entre la necesidad de contratación de docentes de vinculación especial frente a lo estipulado en la normativa respecto a la asignación de horas, en caso de encontrar inconsistencias solicita los ajustes respectivos a la documentación entregada. | Q23: Preventivo | R23: Manual | S23: 40% | T23: Documentado | U23: Continua | V23: Con registro | W23: Baja | X23: =IFERROR(IF(AND(OR(Q22="Preventivo", Q22="Detectivo"),OR(Q23="Preventivo", Q23="Detectivo")),(X22-(+X22*S23)),IF(OR(Q23="Preventivo", Q23="Detectivo"),(K22-(+K22*S23)),IF(Q23="Correctivo",X22,""))),"") -> 0.288 | Y23: Moderado | Z23: =IFERROR(IF(AND(Q22="Correctivo",Q23="Correctivo"),(Z22),IF(Q23="Correctivo",(M22),IF(OR(Q23="Preventivo", Q23="Detectivo"),Z22,""))),"") -> 0.6 | AA23: MODERADA
F24: Debilidad en los mecanismos de control para la ejecución del presupuesto. | G24: Desfavorecimiento de la imagen institucional y/o perdida de la percepción de transparencia. | O24: 3 | P24: El Profesional de cada Decanatura trimestralmente construye y presenta a la Oficina Asesora de Planeación y Control un informe con los soportes del cumplimiento del Plan de Acción, con el fin de controlar la ejecución presupuestal. La evidencia se refleja en los correos electrónicos u oficios que se envían con el informe adjunto. | Q24: Detectivo | R24: Manual | S24: 30% | T24: Documentado | U24: Continua | V24: Con registro | W24: Baja | X24: =IFERROR(IF(AND(OR(Q23="Preventivo", Q23="Detectivo"),OR(Q24="Preventivo", Q24="Detectivo")),(X23-(+X23*S24)),IF(OR(Q24="Preventivo", Q24="Detectivo"),(X22-(+X22*S24)),IF(Q24="Correctivo",X23,""))),"") -> 0.2016 | Y24: Moderado | Z24: =IFERROR(IF(AND(Q23="Correctivo",Q24="Correctivo"),(Z23),IF(Q24="Correctivo",(Z22),IF(OR(Q24="Preventivo", Q24="Detectivo"),Z23,""))),"") -> 0.6 | AA24: MODERADA
G25: Utilización de espacios y materiales de la universidad para beneficio personal o favorecimiento a terceros. | O25: 4 | P25: El Profesional de cada Decanatura encargado de realizar seguimiento al presupuesto, mensualmente solicita los soportes de la ejecución presupuestal a los Proyectos Curriculares, con el fin de verificar lo ejecutado contra lo planeado. En caso de encontrar inconsistencias, se analiza la situación y se toman las acciones pertinentes (solicitud de traslados presupuestales). | Q25: Detectivo | R25: Manual | S25: 30% | T25: Documentado | U25: Continua | V25: Con registro | W25: Muy Baja | X25: =IFERROR(IF(AND(OR(Q24="Preventivo", Q24="Detectivo"),OR(Q25="Preventivo", Q25="Detectivo")),(X24-(+X24*S25)),IF(OR(Q25="Preventivo", Q25="Detectivo"),(X23-(+X23*S25)),IF(Q25="Correctivo",X24,""))),"") -> 0.14112 | Y25: Moderado | Z25: =IFERROR(IF(AND(Q24="Correctivo",Q25="Correctivo"),(Z24),IF(Q25="Correctivo",(Z23),IF(OR(Q25="Preventivo", Q25="Detectivo"),Z24,""))),"") -> 0.6 | AA25: MODERADA
G26: Disminución de la calidad académica por uso incorrecto de recursos públicos. | O26: 5 | X26: =IFERROR(IF(AND(OR(Q25="Preventivo", Q25="Detectivo"),OR(Q26="Preventivo", Q26="Detectivo")),(X25-(+X25*S26)),IF(OR(Q26="Preventivo", Q26="Detectivo"),(X24-(+X24*S26)),IF(Q26="Correctivo",X25,""))),"") -> 
G27: Detrimento patrimonial. | O27: 6 | X27: =IFERROR(IF(AND(OR(Q26="Preventivo", Q26="Detectivo"),OR(Q27="Preventivo", Q27="Detectivo")),(X26-(+X26*S27)),IF(OR(Q27="Preventivo", Q27="Detectivo"),(X25-(+X25*S27)),IF(Q27="Correctivo",X26,""))),"") -> 
G28: Afectación de los rubros en la adquisición de bienes y servicios innecesarios o no priorizados. | O28: 7 | X28: =IFERROR(IF(AND(OR(Q27="Preventivo", Q27="Detectivo"),OR(Q28="Preventivo", Q28="Detectivo")),(X27-(+X27*S28)),IF(OR(Q28="Preventivo", Q28="Detectivo"),(X26-(+X26*S28)),IF(Q28="Correctivo",X27,""))),"") -> 
B29: 3 | C29: Posibilidad de perdida reputacional y/o económica por incumplimiento de los reglamentos y normatividad por desconocimiento u omisión, con el fin de generar beneficios o perjuicios a terceros. | D29: Perdida reputacional y/o económica | E29: Incumplimiento de los reglamentos y normatividad por desconocimiento u omisión. | F29: Desconocimiento de la normatividad institucional. | G29: Acciones legales en contra de la Universidad. | H29: Decanaturas de las Facultades de la Universidad Distrital | I29: =365*5 -> 1825 | J29: =IF(I29<=0,"",IF(I29<=2,"Muy Baja",IF(I29<=12,"Baja",IF(I29<=365,"Media",IF(I29<=5000,"Alta","Muy Alta"))))) -> Alta | K29: =IF(J29="","",IF(J29="Muy Baja",0.2,IF(J29="Baja",0.4,IF(J29="Media",0.6,IF(J29="Alta",0.8,IF(J29="Muy Alta",1,)))))) -> 0.8 | L29: Moderado | M29: =IF(L29="","",IF(L29="Leve",0.2,IF(L29="Menor",0.4,IF(L29="Moderado",0.6,IF(L29="Mayor",0.8,IF(L29="Catastrófico",1,)))))) -> 0.6 | N29: =IF(OR(AND(J29="Muy Baja",L29="Leve"),AND(J29="Muy Baja",L29="Menor"),AND(J29="Baja",L29="Leve")),"BAJA",IF(OR(AND(J29="Muy baja",L29="Moderado"),AND(J29="Baja",L29="Menor"),AND(J29="Baja",L29="Moderado"),AND(J29="Media",L29="Leve"),AND(J29="Media",L29="Menor"),AND(J29="Media",L29="Moderado"),AND(J29="Alta",L29="Leve"),AND(J29="Alta",L29="Menor")),"MODERADA",IF(OR(AND(J29="Muy Baja",L29="Mayor"),AND(J29="Baja",L29="Mayor"),AND(J29="Media",L29="Mayor"),AND(J29="Alta",L29="Moderado"),AND(J29="Alta",L29="Mayor"),AND(J29="Muy Alta",L29="Leve"),AND(J29="Muy Alta",L29="Menor"),AND(J29="Muy Alta",L29="Moderado"),AND(J29="Muy Alta",L29="Mayor")),"ALTA",IF(OR(AND(J29="Muy Baja",L29="Catastrófico"),AND(J29="Baja",L29="Catastrófico"),AND(J29="Media",L29="Catastrófico"),AND(J29="Alta",L29="Catastrófico"),AND(J29="Muy Alta",L29="Catastrófico")),"EXTREMA","")))) -> ALTA | O29: 1 | P29: Las Decanaturas cada vez que reciben nueva normatividad o actualizaciones a la misma, envían mediante correo electrónico a las listas que correspondan dependiendo el tipo de normatividad, con el fin de informar oportunamente a la Comunidad Universitaria. | Q29: Preventivo | R29: Manual | S29: 40% | T29: Documentado | U29: Continua | V29: Con registro | W29: Media | X29: =IFERROR(IF(OR(Q29="Preventivo", Q29="Detectivo"),(K29-(+K29*S29)),IF(Q29="Correctivo",K29,"")),"") -> 0.48 | Y29: Moderado | Z29: =IFERROR(IF(Q29="Correctivo",(M29),IF(OR(Q29="Preventivo", Q29="Detectivo"),M29,"")),"") -> 0.6 | AA29: MODERADA | AB29: =IF(ISBLANK(R29), N29,LOOKUP(2,1/(AA29:AA35<>""),AA29:AA35)) -> MODERADA | AC29: Reducir | AD29: Socialización de la normatividad con los Coordinadores de los Proyectos Curriculares y unidades académico administrativas de acuerdo al tema. | AE29: Presentación de normatividad vigente y evidencias de la socialización realizada | AF29: Decanaturas de las Facultades Coordinadores de los Proyectos Curriculares | AG29: Toda la vigencia
F30: Abuso de poder. | G30: Inoperancia en la ejecución de los procesos. | O30: 2 | P30: Los Decanos y Coordinadores de los Proyectos Curriculares dependiendo de la situación, convocan a reuniones de trabajo para realizar la revisión y seguimiento al estado de los diferentes procedimientos que se llevan a cabo, en caso de encontrar incumplimiento en las actividades o compromisos, se procede a realizar mediaciones para lograr subsanar la situación presentada, lo cual queda evidenciado en las actas de reunión. | Q30: Detectivo | R30: Manual | S30: 30% | T30: Documentado | U30: Continua | V30: Con registro | W30: Baja | X30: =IFERROR(IF(AND(OR(Q29="Preventivo", Q29="Detectivo"),OR(Q30="Preventivo", Q30="Detectivo")),(X29-(+X29*S30)),IF(OR(Q30="Preventivo", Q30="Detectivo"),(K29-(+K29*S30)),IF(Q30="Correctivo",X29,""))),"") -> 0.336 | Y30: Moderado | Z30: =IFERROR(IF(AND(Q29="Correctivo",Q30="Correctivo"),(Z29),IF(Q30="Correctivo",(M29),IF(OR(Q30="Preventivo", Q30="Detectivo"),Z29,""))),"") -> 0.6 | AA30: MODERADA
F31: Falta de divulgación de la normatividad vigente y/o procedimientos del Proceso. | G31: Asignación de responsabilidades a quien no corresponde y descarga de las mismas a quienes deberían ejecutarlas, generando desorden administrativo. | O31: 3 | X31: =IFERROR(IF(AND(OR(Q30="Preventivo", Q30="Detectivo"),OR(Q31="Preventivo", Q31="Detectivo")),(X30-(+X30*S31)),IF(OR(Q31="Preventivo", Q31="Detectivo"),(X29-(+X29*S31)),IF(Q31="Correctivo",X30,""))),"") ->  | Z31: =IFERROR(IF(AND(Q30="Correctivo",Q31="Correctivo"),(Z30),IF(Q31="Correctivo",(Z29),IF(OR(Q31="Preventivo", Q31="Detectivo"),Z30,""))),"") -> 
F32: Desactualización de la normatividad en conformidad con las condiciones actuales de la Universidad. | O32: 4 | X32: =IFERROR(IF(AND(OR(Q31="Preventivo", Q31="Detectivo"),OR(Q32="Preventivo", Q32="Detectivo")),(X31-(+X31*S32)),IF(OR(Q32="Preventivo", Q32="Detectivo"),(X30-(+X30*S32)),IF(Q32="Correctivo",X31,""))),"") ->  | Z32: =IFERROR(IF(AND(Q31="Correctivo",Q32="Correctivo"),(Z31),IF(Q32="Correctivo",(Z30),IF(OR(Q32="Preventivo", Q32="Detectivo"),Z31,""))),"") -> 
F33: Dificultad para buscar normatividad en el sistema de información SISGRAL. | O33: 5 | X33: =IFERROR(IF(AND(OR(Q32="Preventivo", Q32="Detectivo"),OR(Q33="Preventivo", Q33="Detectivo")),(X32-(+X32*S33)),IF(OR(Q33="Preventivo", Q33="Detectivo"),(X31-(+X31*S33)),IF(Q33="Correctivo",X32,""))),"") -> 
O34: 6 | X34: =IFERROR(IF(AND(OR(Q33="Preventivo", Q33="Detectivo"),OR(Q34="Preventivo", Q34="Detectivo")),(X33-(+X33*S34)),IF(OR(Q34="Preventivo", Q34="Detectivo"),(X32-(+X32*S34)),IF(Q34="Correctivo",X33,""))),"") -> 
O35: 7 | X35: =IFERROR(IF(AND(OR(Q34="Preventivo", Q34="Detectivo"),OR(Q35="Preventivo", Q35="Detectivo")),(X34-(+X34*S35)),IF(OR(Q35="Preventivo", Q35="Detectivo"),(X33-(+X33*S35)),IF(Q35="Correctivo",X34,""))),"") -> 
B36: 4 | C36: Posibilidad de afectación en el desarrollo del plan de estudios del estudiante por alteración o generación indebida de notas, generando beneficio o perjuicio directo o a terceros. | D36: Afectación en el desarrollo del plan de estudios del estudiante. | E36: Alteración o generación indebida de notas. | F36: Búsqueda de beneficios de diferente índole, a cambio de registrar o modificar las calificaciones de los estudiantes. | G36: Procesos disciplinarios. | H36: Decanaturas de las Facultades de la Universidad Distrital Proyectos Curriculares | I36: =(5*3*2)+1 -> 31 | J36: =IF(I36<=0,"",IF(I36<=2,"Muy Baja",IF(I36<=12,"Baja",IF(I36<=365,"Media",IF(I36<=5000,"Alta","Muy Alta"))))) -> Media | K36: =IF(J36="","",IF(J36="Muy Baja",0.2,IF(J36="Baja",0.4,IF(J36="Media",0.6,IF(J36="Alta",0.8,IF(J36="Muy Alta",1,)))))) -> 0.6 | L36: Moderado | M36: =IF(L36="","",IF(L36="Leve",0.2,IF(L36="Menor",0.4,IF(L36="Moderado",0.6,IF(L36="Mayor",0.8,IF(L36="Catastrófico",1,)))))) -> 0.6 | N36: =IF(OR(AND(J36="Muy Baja",L36="Leve"),AND(J36="Muy Baja",L36="Menor"),AND(J36="Baja",L36="Leve")),"BAJA",IF(OR(AND(J36="Muy baja",L36="Moderado"),AND(J36="Baja",L36="Menor"),AND(J36="Baja",L36="Moderado"),AND(J36="Media",L36="Leve"),AND(J36="Media",L36="Menor"),AND(J36="Media",L36="Moderado"),AND(J36="Alta",L36="Leve"),AND(J36="Alta",L36="Menor")),"MODERADA",IF(OR(AND(J36="Muy Baja",L36="Mayor"),AND(J36="Baja",L36="Mayor"),AND(J36="Media",L36="Mayor"),AND(J36="Alta",L36="Moderado"),AND(J36="Alta",L36="Mayor"),AND(J36="Muy Alta",L36="Leve"),AND(J36="Muy Alta",L36="Menor"),AND(J36="Muy Alta",L36="Moderado"),AND(J36="Muy Alta",L36="Mayor")),"ALTA",IF(OR(AND(J36="Muy Baja",L36="Catastrófico"),AND(J36="Baja",L36="Catastrófico"),AND(J36="Media",L36="Catastrófico"),AND(J36="Alta",L36="Catastrófico"),AND(J36="Muy Alta",L36="Catastrófico")),"EXTREMA","")))) -> MODERADA | O36: 1 | P36: El Consejo Curricular cuando recibe solicitudes de validación de notas, asigna dos jurados para realizar el examen de validación al estudiante, una vez programada la fecha y llevado a cabo el examen, se realiza el reporte de la calificación mediante el diligenciamiento del formato de validación, el cual es remitido al Proyecto Curricular con la nota definitiva, y finalmente el Coordinador del Proyecto Curricular procede a realizar la modificación respectiva en el Sistema de Gestión Académica. | Q36: Detectivo | R36: Manual | S36: 30% | T36: Documentado | U36: Continua | V36: Con registro | W36: Media | X36: =IFERROR(IF(OR(Q36="Preventivo", Q36="Detectivo"),(K36-(+K36*S36)),IF(Q36="Correctivo",K36,"")),"") -> 0.42 | Y36: Moderado | Z36: =IFERROR(IF(Q36="Correctivo",(M36),IF(OR(Q36="Preventivo", Q36="Detectivo"),M36,"")),"") -> 0.6 | AA36: MODERADA | AB36: =IF(ISBLANK(R36), N36,LOOKUP(2,1/(AA36:AA42<>""),AA36:AA42)) -> MODERADA | AC36: Reducir
F37: Sistemas de información susceptibles de manipulación o adulteración. | G37: Aplicación del estatuto correspondiente. | O37: 2 | P37: El Proyecto Curricular semestralmente recibe las planillas de calificaciones en medio digital por el Docente, con el fin de dar soporte a lo registrado en el Sistema de Gestión Académica, en caso de presentarse inconsistencias se revisan las notas de la planilla en físico contra lo registrado en el Sistema. | Q37: Detectivo | R37: Manual | S37: 30% | T37: Documentado | U37: Continua | V37: Con registro | W37: Baja | X37: =IFERROR(IF(AND(OR(Q36="Preventivo", Q36="Detectivo"),OR(Q37="Preventivo", Q37="Detectivo")),(X36-(+X36*S37)),IF(OR(Q37="Preventivo", Q37="Detectivo"),(K36-(+K36*S37)),IF(Q37="Correctivo",X36,""))),"") -> 0.294 | Y37: Moderado | Z37: =IFERROR(IF(AND(Q36="Correctivo",Q37="Correctivo"),(Z36),IF(Q37="Correctivo",(M36),IF(OR(Q37="Preventivo", Q37="Detectivo"),Z36,""))),"") -> 0.6 | AA37: MODERADA
F38: Abuso de poder. | G38: Demandas y procesos penales. | O38: 3 | P38: El Proyecto Curricular a finales o inicio de semestre, cuando se requiere, recibe por parte del docente el formato de novedad de nota diligenciado con los datos del estudiante que requiere la modificación, en caso de ser un grupo de estudiantes se entrega mediante oficio con la relación de notas y estudiantes, una vez verificada la información el Coordinador del Proyecto Curricular realiza los ajuste solicitados en el Sistema de Gestión Académica, lo cual queda evidenciado en la fecha de modificación de nota en el formato u oficio correspondiente. | Q38: Correctivo | R38: Manual | S38: 25% | T38: Documentado | U38: Continua | V38: Con registro | W38: Baja | X38: =IFERROR(IF(AND(OR(Q37="Preventivo", Q37="Detectivo"),OR(Q38="Preventivo", Q38="Detectivo")),(X37-(+X37*S38)),IF(OR(Q38="Preventivo", Q38="Detectivo"),(X36-(+X36*S38)),IF(Q38="Correctivo",X37,""))),"") -> 0.294 | Y38: Moderado | Z38: =IFERROR(IF(AND(Q37="Correctivo",Q38="Correctivo"),(Z37),IF(Q38="Correctivo",(Z36),IF(OR(Q38="Preventivo", Q38="Detectivo"),Z37,""))),"") -> 0.6 | AA38: MODERADA
F39: Favorecimiento personal o de un tercero. | G39: Afectación de imagen y credibilidad institucional. | O39: 4 | P39: El Consejo Curricular cuando recibe solicitudes de segundo evaluador procede a asignar dos jurados los cuales se remiten a Consejo de Facultad para ser avalados, con el fin de que evalúen la calificación del estudiante, posteriormente los jurados reportan la nota generada mediante oficio, y finalmente el Coordinador del Proyecto Curricular procede a realizar la modificación respectiva en el Sistema de Gestión Académica. | Q39: Detectivo | R39: Manual | S39: 30% | T39: Documentado | U39: Continua | V39: Con registro | W39: Baja | X39: =IFERROR(IF(AND(OR(Q38="Preventivo", Q38="Detectivo"),OR(Q39="Preventivo", Q39="Detectivo")),(X38-(+X38*S39)),IF(OR(Q39="Preventivo", Q39="Detectivo"),(X37-(+X37*S39)),IF(Q39="Correctivo",X38,""))),"") -> 0.2058 | Y39: Moderado | Z39: =IFERROR(IF(AND(Q38="Correctivo",Q39="Correctivo"),(Z38),IF(Q39="Correctivo",(Z37),IF(OR(Q39="Preventivo", Q39="Detectivo"),Z38,""))),"") -> 0.6 | AA39: MODERADA
F40: Incumplimiento de las fechas estipuladas en el Calendario Académico relativas al cargue de notas. | G40: Disminución de la calidad de la Universidad y sus egresados. | O40: 5 | X40: =IFERROR(IF(AND(OR(Q39="Preventivo", Q39="Detectivo"),OR(Q40="Preventivo", Q40="Detectivo")),(X39-(+X39*S40)),IF(OR(Q40="Preventivo", Q40="Detectivo"),(X38-(+X38*S40)),IF(Q40="Correctivo",X39,""))),"") -> 
O41: 6 | X41: =IFERROR(IF(AND(OR(Q40="Preventivo", Q40="Detectivo"),OR(Q41="Preventivo", Q41="Detectivo")),(X40-(+X40*S41)),IF(OR(Q41="Preventivo", Q41="Detectivo"),(X39-(+X39*S41)),IF(Q41="Correctivo",X40,""))),"") -> 
O42: 7 | X42: =IFERROR(IF(AND(OR(Q41="Preventivo", Q41="Detectivo"),OR(Q42="Preventivo", Q42="Detectivo")),(X41-(+X41*S42)),IF(OR(Q42="Preventivo", Q42="Detectivo"),(X40-(+X40*S42)),IF(Q42="Correctivo",X41,""))),"") -> 
B43: 5 | C43: Posibilidad de perdida reputacional y/o económica por tráfico de influencias, con el fin de generar beneficios o perjuicios a terceros. | D43: Perdida reputacional y/o económica | E43: Tráfico de influencias por parte de Docentes y Funcionarios. | F43: Abuso de poder. | G43: Apertura de procesos disciplinarios o administrativos. | H43: Decanaturas de las Facultades de la Universidad Distrital | I43: 365 | J43: =IF(I43<=0,"",IF(I43<=2,"Muy Baja",IF(I43<=12,"Baja",IF(I43<=365,"Media",IF(I43<=5000,"Alta","Muy Alta"))))) -> Media | K43: =IF(J43="","",IF(J43="Muy Baja",0.2,IF(J43="Baja",0.4,IF(J43="Media",0.6,IF(J43="Alta",0.8,IF(J43="Muy Alta",1,)))))) -> 0.6 | L43: Mayor | M43: =IF(L43="","",IF(L43="Leve",0.2,IF(L43="Menor",0.4,IF(L43="Moderado",0.6,IF(L43="Mayor",0.8,IF(L43="Catastrófico",1,)))))) -> 0.8 | N43: =IF(OR(AND(J43="Muy Baja",L43="Leve"),AND(J43="Muy Baja",L43="Menor"),AND(J43="Baja",L43="Leve")),"BAJA",IF(OR(AND(J43="Muy baja",L43="Moderado"),AND(J43="Baja",L43="Menor"),AND(J43="Baja",L43="Moderado"),AND(J43="Media",L43="Leve"),AND(J43="Media",L43="Menor"),AND(J43="Media",L43="Moderado"),AND(J43="Alta",L43="Leve"),AND(J43="Alta",L43="Menor")),"MODERADA",IF(OR(AND(J43="Muy Baja",L43="Mayor"),AND(J43="Baja",L43="Mayor"),AND(J43="Media",L43="Mayor"),AND(J43="Alta",L43="Moderado"),AND(J43="Alta",L43="Mayor"),AND(J43="Muy Alta",L43="Leve"),AND(J43="Muy Alta",L43="Menor"),AND(J43="Muy Alta",L43="Moderado"),AND(J43="Muy Alta",L43="Mayor")),"ALTA",IF(OR(AND(J43="Muy Baja",L43="Catastrófico"),AND(J43="Baja",L43="Catastrófico"),AND(J43="Media",L43="Catastrófico"),AND(J43="Alta",L43="Catastrófico"),AND(J43="Muy Alta",L43="Catastrófico")),"EXTREMA","")))) -> ALTA | O43: 1 | P43: Los Profesionales de cada Decanatura cada vez que se requiera realizan reuniones de socialización al personal administrativo y docentes, con el fin de explicar los procedimientos, manuales, guías, instructivos y demás que rigen los procesos administrativos, lo cual queda evidenciado en actas de reunión. | Q43: Preventivo | R43: Manual | S43: 40% | T43: Documentado | U43: Aleatoria | V43: Con registro | W43: Baja | X43: =IFERROR(IF(OR(Q43="Preventivo", Q43="Detectivo"),(K43-(+K43*S43)),IF(Q43="Correctivo",K43,"")),"") -> 0.36 | Y43: Mayor | Z43: =IFERROR(IF(Q43="Correctivo",(M43),IF(OR(Q43="Preventivo", Q43="Detectivo"),M43,"")),"") -> 0.8 | AA43: ALTA | AB43: =IF(ISBLANK(R43), N43,LOOKUP(2,1/(AA43:AA49<>""),AA43:AA49)) -> ALTA | AC43: Reducir | AD43: Solicitar cuando se requiera inducciones con el fin de actualizar el manejo de las plataformas académicas (Sistema de Gestión Académica, SICAPITAL, ÁGORA, etc.) | AE43: Actas de reunión y/o planillas de asistencia | AF43: Decanaturas de las Facultades de la Universidad Distrital | AG43: Toda la vigencia
F44: Existencia de dádivas. | G44: Demandas y procesos penales. | O44: 2 | P44: El Consejo Curricular o Consejo de Facultad cada vez que se reciben solicitudes por parte de la Comunidad Académica, se revisan y analizan según el cumplimiento de la normatividad, con el fin de dar respuesta oportuna a los solicitantes y acorde a la reglamentación. Lo cual se ve evidenciado en las Actas de los Consejos. | Q44: Preventivo | R44: Manual | S44: 40% | T44: Documentado | U44: Continua | V44: Con registro | W44: Baja | X44: =IFERROR(IF(AND(OR(Q43="Preventivo", Q43="Detectivo"),OR(Q44="Preventivo", Q44="Detectivo")),(X43-(+X43*S44)),IF(OR(Q44="Preventivo", Q44="Detectivo"),(K43-(+K43*S44)),IF(Q44="Correctivo",X43,""))),"") -> 0.216 | Y44: Mayor | Z44: =IFERROR(IF(AND(Q43="Correctivo",Q44="Correctivo"),(Z43),IF(Q44="Correctivo",(M43),IF(OR(Q44="Preventivo", Q44="Detectivo"),Z43,""))),"") -> 0.8 | AA44: ALTA
F45: Falta de ética de los funcionarios, docentes o estudiantes . | G45: Disminución de la calidad académica de la Universidad. | O45: 3 | P45: El personal administrativo de las Decanaturas y Proyectos Curriculares cada vez que se requiera y de acuerdo a la situación, revisa la información registrada en los diferentes Sistemas de Información (Sistema de Gestión Académica, SICapital, Ticke) utilizados en los procedimientos administrativos a cargo, con el fin de validar la información registrada. | Q45: Detectivo | R45: Manual | S45: 30% | T45: Documentado | U45: Continua | V45: Con registro | W45: Muy Baja | X45: =IFERROR(IF(AND(OR(Q44="Preventivo", Q44="Detectivo"),OR(Q45="Preventivo", Q45="Detectivo")),(X44-(+X44*S45)),IF(OR(Q45="Preventivo", Q45="Detectivo"),(X43-(+X43*S45)),IF(Q45="Correctivo",X44,""))),"") -> 0.1512 | Y45: Mayor | Z45: =IFERROR(IF(AND(Q44="Correctivo",Q45="Correctivo"),(Z44),IF(Q45="Correctivo",(Z43),IF(OR(Q45="Preventivo", Q45="Detectivo"),Z44,""))),"") -> 0.8 | AA45: ALTA
F46: Desconocimiento y/e incumplimiento del debido proceso y los conductos establecidos, o de malas prácticas. | G46: Pérdida de credibilidad en los procesos administrativos que genera la Universidad. | O46: 4 | X46: =IFERROR(IF(AND(OR(Q45="Preventivo", Q45="Detectivo"),OR(Q46="Preventivo", Q46="Detectivo")),(X45-(+X45*S46)),IF(OR(Q46="Preventivo", Q46="Detectivo"),(X44-(+X44*S46)),IF(Q46="Correctivo",X45,""))),"") ->  | Z46: =IFERROR(IF(AND(Q45="Correctivo",Q46="Correctivo"),(Z45),IF(Q46="Correctivo",(Z44),IF(OR(Q46="Preventivo", Q46="Detectivo"),Z45,""))),"") -> 
O47: 5 | X47: =IFERROR(IF(AND(OR(Q46="Preventivo", Q46="Detectivo"),OR(Q47="Preventivo", Q47="Detectivo")),(X46-(+X46*S47)),IF(OR(Q47="Preventivo", Q47="Detectivo"),(X45-(+X45*S47)),IF(Q47="Correctivo",X46,""))),"") -> 
O48: 6 | X48: =IFERROR(IF(AND(OR(Q47="Preventivo", Q47="Detectivo"),OR(Q48="Preventivo", Q48="Detectivo")),(X47-(+X47*S48)),IF(OR(Q48="Preventivo", Q48="Detectivo"),(X46-(+X46*S48)),IF(Q48="Correctivo",X47,""))),"") -> 
O49: 7 | X49: =IFERROR(IF(AND(OR(Q48="Preventivo", Q48="Detectivo"),OR(Q49="Preventivo", Q49="Detectivo")),(X48-(+X48*S49)),IF(OR(Q49="Preventivo", Q49="Detectivo"),(X47-(+X47*S49)),IF(Q49="Correctivo",X48,""))),"") -> 
B50: 6 | C50: Posibilidad de perdida reputacional por acoso psicológico, laboral, o sexual, con el fin de generar perjuicios, desmotivación o incluso la deserción de la institución. | D50: Perdida reputacional | E50: Acoso (psicológico, laboral, o sexual) | F50: Falta de socialización y divulgación de políticas institucionales para la prevención, atención y sanción del hostigamiento. | G50: Procesos sancionatorios y disciplinarios. | H50: Decanaturas de las Facultades de la Universidad Distrital | I50: =365*5 -> 1825 | J50: =IF(I50<=0,"",IF(I50<=2,"Muy Baja",IF(I50<=12,"Baja",IF(I50<=365,"Media",IF(I50<=5000,"Alta","Muy Alta"))))) -> Alta | K50: =IF(J50="","",IF(J50="Muy Baja",0.2,IF(J50="Baja",0.4,IF(J50="Media",0.6,IF(J50="Alta",0.8,IF(J50="Muy Alta",1,)))))) -> 0.8 | L50: Mayor | M50: =IF(L50="","",IF(L50="Leve",0.2,IF(L50="Menor",0.4,IF(L50="Moderado",0.6,IF(L50="Mayor",0.8,IF(L50="Catastrófico",1,)))))) -> 0.8 | N50: =IF(OR(AND(J50="Muy Baja",L50="Leve"),AND(J50="Muy Baja",L50="Menor"),AND(J50="Baja",L50="Leve")),"BAJA",IF(OR(AND(J50="Muy baja",L50="Moderado"),AND(J50="Baja",L50="Menor"),AND(J50="Baja",L50="Moderado"),AND(J50="Media",L50="Leve"),AND(J50="Media",L50="Menor"),AND(J50="Media",L50="Moderado"),AND(J50="Alta",L50="Leve"),AND(J50="Alta",L50="Menor")),"MODERADA",IF(OR(AND(J50="Muy Baja",L50="Mayor"),AND(J50="Baja",L50="Mayor"),AND(J50="Media",L50="Mayor"),AND(J50="Alta",L50="Moderado"),AND(J50="Alta",L50="Mayor"),AND(J50="Muy Alta",L50="Leve"),AND(J50="Muy Alta",L50="Menor"),AND(J50="Muy Alta",L50="Moderado"),AND(J50="Muy Alta",L50="Mayor")),"ALTA",IF(OR(AND(J50="Muy Baja",L50="Catastrófico"),AND(J50="Baja",L50="Catastrófico"),AND(J50="Media",L50="Catastrófico"),AND(J50="Alta",L50="Catastrófico"),AND(J50="Muy Alta",L50="Catastrófico")),"EXTREMA","")))) -> ALTA | O50: 1 | P50: El órgano directivo administrativo cada vez que recibe quejas o incidentes relacionados con acoso (mediante plataforma física o virtual, dependiendo de la directriz institucional vigente), procede a informar al profesional de apoyo jurídico de la Facultad con el fin de dar respuesta al solicitante una vez analizado e investigado el caso, cuando sea necesario se solicita información adicional al Proyecto Curricular correspondiente. | Q50: Correctivo | R50: Manual | S50: 25% | T50: Documentado | U50: Aleatoria | V50: Con registro | W50: Alta | X50: =IFERROR(IF(OR(Q50="Preventivo", Q50="Detectivo"),(K50-(+K50*S50)),IF(Q50="Correctivo",K50,"")),"") -> 0.8 | Y50: Mayor | Z50: =IFERROR(IF(Q50="Correctivo",(M50),IF(OR(Q50="Preventivo", Q50="Detectivo"),M50,"")),"") -> 0.8 | AA50: ALTA | AB50: =IF(ISBLANK(R50), N50,LOOKUP(2,1/(AA50:AA56<>""),AA50:AA56)) -> ALTA | AC50: Reducir | AD50: Apoyar el proceso de sensibilización de los conductos regulares frente a casos de acoso y violencia de genero. | AE50: Actas de reunión, piezas gráficas y/o planillas de asistencia | AF50: Decanaturas de las Facultades de la Universidad Distrital | AG50: Toda la vigencia
F51: Abuso de poder. | G51: Seguimiento de instancias u organismos externos (Contraloría, Personería, Procuraduría). | O51: 2 | P51: La Universidad mediante diferentes instancias (Rectoría, Vicerrectorías, Consejos, Centro de Bienestar Institucional, IPAZUD, entre otras) anualmente coordina capacitaciones dirigidas a la comunidad académica sobre las herramientas para la identificación del acoso y liderar charlas de sensibilización sobre los mecanismos para reportar el acoso. | Q51: Preventivo | R51: Manual | S51: 40% | T51: Documentado | U51: Continua | V51: Con registro | W51: Media | X51: =IFERROR(IF(AND(OR(Q50="Preventivo", Q50="Detectivo"),OR(Q51="Preventivo", Q51="Detectivo")),(X50-(+X50*S51)),IF(OR(Q51="Preventivo", Q51="Detectivo"),(K50-(+K50*S51)),IF(Q51="Correctivo",X50,""))),"") -> 0.48 | Y51: Mayor | Z51: =IFERROR(IF(AND(Q50="Correctivo",Q51="Correctivo"),(Z50),IF(Q51="Correctivo",(M50),IF(OR(Q51="Preventivo", Q51="Detectivo"),Z50,""))),"") -> 0.8 | AA51: ALTA
F52: Mal uso de los espacios físicos de la Universidad. | G52: Agresiones físicas o verbales. | O52: 3 | P52: El Comité para la Equidad de Genero semestralmente realiza socializaciones y sensibilizaciones por todas la Facultades en temas de genero, con acompañamiento de la Oficina Asesora de Asuntos Disciplinarios y la Rectoría, quedando como evidencia registros fotográficos y de vídeo, y/o planillas de asistencia. | Q52: Preventivo | R52: Manual | S52: 40% | T52: Documentado | U52: Continua | V52: Con registro | W52: Baja | X52: =IFERROR(IF(AND(OR(Q51="Preventivo", Q51="Detectivo"),OR(Q52="Preventivo", Q52="Detectivo")),(X51-(+X51*S52)),IF(OR(Q52="Preventivo", Q52="Detectivo"),(X50-(+X50*S52)),IF(Q52="Correctivo",X51,""))),"") -> 0.288 | Y52: Mayor | Z52: =IFERROR(IF(AND(Q51="Correctivo",Q52="Correctivo"),(Z51),IF(Q52="Correctivo",(Z50),IF(OR(Q52="Preventivo", Q52="Detectivo"),Z51,""))),"") -> 0.8 | AA52: ALTA
F53: Discriminación y/o intolerancia manifiesta entre los miembros de la comunidad. | G53: Perdida de imagen profesional e institucional. | O53: 4 | X53: =IFERROR(IF(AND(OR(Q52="Preventivo", Q52="Detectivo"),OR(Q53="Preventivo", Q53="Detectivo")),(X52-(+X52*S53)),IF(OR(Q53="Preventivo", Q53="Detectivo"),(X51-(+X51*S53)),IF(Q53="Correctivo",X52,""))),"") ->  | Z53: =IFERROR(IF(AND(Q52="Correctivo",Q53="Correctivo"),(Z52),IF(Q53="Correctivo",(Z51),IF(OR(Q53="Preventivo", Q53="Detectivo"),Z52,""))),"") -> 
F54: Limitantes institucionales a la tipificación de las denuncias por acoso laboral y violencias basadas en genero, debido a las condiciones contractuales de la comunidad de la Universidad. | G54: Afectación psicológica y de salud. | O54: 5 | X54: =IFERROR(IF(AND(OR(Q53="Preventivo", Q53="Detectivo"),OR(Q54="Preventivo", Q54="Detectivo")),(X53-(+X53*S54)),IF(OR(Q54="Preventivo", Q54="Detectivo"),(X52-(+X52*S54)),IF(Q54="Correctivo",X53,""))),"") -> 
G55: Deserción de algún miembro de la comunidad. | O55: 6 | X55: =IFERROR(IF(AND(OR(Q54="Preventivo", Q54="Detectivo"),OR(Q55="Preventivo", Q55="Detectivo")),(X54-(+X54*S55)),IF(OR(Q55="Preventivo", Q55="Detectivo"),(X53-(+X53*S55)),IF(Q55="Correctivo",X54,""))),"") -> 
O56: 7 | X56: =IFERROR(IF(AND(OR(Q55="Preventivo", Q55="Detectivo"),OR(Q56="Preventivo", Q56="Detectivo")),(X55-(+X55*S56)),IF(OR(Q56="Preventivo", Q56="Detectivo"),(X54-(+X54*S56)),IF(Q56="Correctivo",X55,""))),"") -> 
B57: 7 | C57: Posibilidad de perdida reputacional y/o económica por asignación de puntaje o bonificación salarial indebida a un docente, con el fin de generar beneficios a terceros. | D57: Perdida reputacional y/o económica | E57: Asignación de puntaje o bonificación salarial a docentes que no cumplen con los requisitos y condiciones establecidas. | F57: Inclusión de docentes que no cumplen con los requisitos para la asignación de puntaje salarial en los listados de experiencia calificada, actividades administrativas y/o excelencia académica. | G57: Pérdida de recursos económicos de la Universidad. | H57: Vicerrectoría Académica (Oficina de Docencia) | I57: 1500 | J57: =IF(I57<=0,"",IF(I57<=2,"Muy Baja",IF(I57<=12,"Baja",IF(I57<=365,"Media",IF(I57<=5000,"Alta","Muy Alta"))))) -> Alta | K57: =IF(J57="","",IF(J57="Muy Baja",0.2,IF(J57="Baja",0.4,IF(J57="Media",0.6,IF(J57="Alta",0.8,IF(J57="Muy Alta",1,)))))) -> 0.8 | L57: Moderado | M57: =IF(L57="","",IF(L57="Leve",0.2,IF(L57="Menor",0.4,IF(L57="Moderado",0.6,IF(L57="Mayor",0.8,IF(L57="Catastrófico",1,)))))) -> 0.6 | N57: =IF(OR(AND(J57="Muy Baja",L57="Leve"),AND(J57="Muy Baja",L57="Menor"),AND(J57="Baja",L57="Leve")),"BAJA",IF(OR(AND(J57="Muy baja",L57="Moderado"),AND(J57="Baja",L57="Menor"),AND(J57="Baja",L57="Moderado"),AND(J57="Media",L57="Leve"),AND(J57="Media",L57="Menor"),AND(J57="Media",L57="Moderado"),AND(J57="Alta",L57="Leve"),AND(J57="Alta",L57="Menor")),"MODERADA",IF(OR(AND(J57="Muy Baja",L57="Mayor"),AND(J57="Baja",L57="Mayor"),AND(J57="Media",L57="Mayor"),AND(J57="Alta",L57="Moderado"),AND(J57="Alta",L57="Mayor"),AND(J57="Muy Alta",L57="Leve"),AND(J57="Muy Alta",L57="Menor"),AND(J57="Muy Alta",L57="Moderado"),AND(J57="Muy Alta",L57="Mayor")),"ALTA",IF(OR(AND(J57="Muy Baja",L57="Catastrófico"),AND(J57="Baja",L57="Catastrófico"),AND(J57="Media",L57="Catastrófico"),AND(J57="Alta",L57="Catastrófico"),AND(J57="Muy Alta",L57="Catastrófico")),"EXTREMA","")))) -> ALTA | O57: 1 | P57: La secretaria de la coordinación de actividades de Docencia anualmente verifica la información de los listados asociados a experiencia calificada, administrativa y excelencia académica remitidos a la dependencia por las instancias correspondientes, con el fin de validar la futura asignación de puntaje. En caso de presentarse inconsistencias se informa a la dependencia en cuestión. | Q57: Preventivo | R57: Manual | S57: 40% | T57: Documentado | U57: Continua | V57: Con registro | W57: Media | X57: =IFERROR(IF(OR(Q57="Preventivo", Q57="Detectivo"),(K57-(+K57*S57)),IF(Q57="Correctivo",K57,"")),"") -> 0.48 | Y57: Moderado | Z57: =IFERROR(IF(Q57="Correctivo",(M57),IF(OR(Q57="Preventivo", Q57="Detectivo"),M57,"")),"") -> 0.6 | AA57: MODERADA | AB57: =IF(ISBLANK(R57), N57,LOOKUP(2,1/(AA57:AA63<>""),AA57:AA63)) -> MODERADA | AC57: Reducir | AD57: Establecer el reglamento interno del Comité de Personal Docente y de Asignación de Puntaje. | AE57: Reglamento interno del Comité de Personal Docente y de Asignación de Puntaje | AF57: Vicerrectoría Académica (Oficina de Docencia) | AG57: Semestre II
F58: Falta de ética de los funcionarios encargados o de los docentes que presentan las solicitudes. | G58: Apertura de procesos administrativos, disciplinarios o penales. | O58: 2 | P58: La secretaria y el profesional de la coordinación de actividades de Docencia verifica cada una de la solicitudes, con el objetivo de validar la entrega de la documentación necesaria, en caso de presentarse inconsistencias le pide al solicitante que ajuste la documentación mediante oficio o en el momento de la entrega, dependiendo el caso. | Q58: Preventivo | R58: Manual | S58: 40% | T58: Documentado | U58: Continua | V58: Con registro | W58: Baja | X58: =IFERROR(IF(AND(OR(Q57="Preventivo", Q57="Detectivo"),OR(Q58="Preventivo", Q58="Detectivo")),(X57-(+X57*S58)),IF(OR(Q58="Preventivo", Q58="Detectivo"),(K57-(+K57*S58)),IF(Q58="Correctivo",X57,""))),"") -> 0.288 | Y58: Moderado | Z58: =IFERROR(IF(AND(Q57="Correctivo",Q58="Correctivo"),(Z57),IF(Q58="Correctivo",(M57),IF(OR(Q58="Preventivo", Q58="Detectivo"),Z57,""))),"") -> 0.6 | AA58: MODERADA | AD58: Implementar un sistema de información para la gestión de las actividades propias del CPDAP y de Docencia. | AE58: Sistema de información generalizado para la dependencia | AF58: Vicerrectoría Académica (Oficina de Docencia) | AG58: Semestre II
F59: Tráfico de influencias. | G59: Pérdida de credibilidad y buena imagen de la institución. | O59: 3 | P59: El Comité de Personal Docente y Asignación de Puntaje mensualmente realiza la validación y aprobación de la asignación del puntaje salarial o de bonificación al docente, lo cual queda evidenciado en cada una de las actas del Comité. | Q59: Detectivo | R59: Manual | S59: 30% | T59: Documentado | U59: Continua | V59: Con registro | W59: Baja | X59: =IFERROR(IF(AND(OR(Q58="Preventivo", Q58="Detectivo"),OR(Q59="Preventivo", Q59="Detectivo")),(X58-(+X58*S59)),IF(OR(Q59="Preventivo", Q59="Detectivo"),(X57-(+X57*S59)),IF(Q59="Correctivo",X58,""))),"") -> 0.2016 | Y59: Moderado | Z59: =IFERROR(IF(AND(Q58="Correctivo",Q59="Correctivo"),(Z58),IF(Q59="Correctivo",(Z57),IF(OR(Q59="Preventivo", Q59="Detectivo"),Z58,""))),"") -> 0.6 | AA59: MODERADA
F60: Errores en la verificación de las condiciones para la asignación de puntaje. | G60: Reclamaciones, tutelas o solicitudes de los docentes que extienden la solicitud. | O60: 4 | P60: El Profesional de la coordinación de actividades de docencia apoya el proceso de validación de los productos presentados con relación al histórico en el estado de cuenta de los docentes, en caso de presentarse inconsistencias se informa al Comité de Personal Docente y Asignación de Puntaje para tomar las acciones respectivas. La evidencia de la validación de la información se refleja en los correos electrónicos remitidos a la Oficina de Docencia. | Q60: Detectivo | R60: Manual | S60: 30% | T60: Documentado | U60: Continua | V60: Con registro | W60: Muy Baja | X60: =IFERROR(IF(AND(OR(Q59="Preventivo", Q59="Detectivo"),OR(Q60="Preventivo", Q60="Detectivo")),(X59-(+X59*S60)),IF(OR(Q60="Preventivo", Q60="Detectivo"),(X58-(+X58*S60)),IF(Q60="Correctivo",X59,""))),"") -> 0.14112 | Y60: Moderado | Z60: =IFERROR(IF(AND(Q59="Correctivo",Q60="Correctivo"),(Z59),IF(Q60="Correctivo",(Z58),IF(OR(Q60="Preventivo", Q60="Detectivo"),Z59,""))),"") -> 0.6 | AA60: MODERADA
F61: Inexistencia de sistemas o herramientas de información para la verificación de condiciones. | G61: Otorgar una categoría del escalafón a un Docente sin que cumpla con las condiciones, parámetros y requisitos para ubicarse en esta. | O61: 5 | P61: El personal Asistencial de la coordinación de actividades de Docencia semestralmente revisa los soportes aportados por los docentes de Vinculación Especial para su reclasificación y la contrasta con la normatividad existente. | Q61: Preventivo | R61: Manual | S61: 40% | T61: Documentado | U61: Continua | V61: Con registro | W61: Muy Baja | X61: =IFERROR(IF(AND(OR(Q60="Preventivo", Q60="Detectivo"),OR(Q61="Preventivo", Q61="Detectivo")),(X60-(+X60*S61)),IF(OR(Q61="Preventivo", Q61="Detectivo"),(X59-(+X59*S61)),IF(Q61="Correctivo",X60,""))),"") -> 0.084672 | Y61: Moderado | Z61: 0.6 | AA61: MODERADA
F62: Incumplimiento de las condiciones y parámetros establecidos en la normatividad interna y externa. | O62: 6 | X62: =IFERROR(IF(AND(OR(Q61="Preventivo", Q61="Detectivo"),OR(Q62="Preventivo", Q62="Detectivo")),(X61-(+X61*S62)),IF(OR(Q62="Preventivo", Q62="Detectivo"),(X60-(+X60*S62)),IF(Q62="Correctivo",X61,""))),"") -> 
F63: Omisión de los requisitos para ubicar al docente en un determinada categoría. | O63: 7 | X63: =IFERROR(IF(AND(OR(Q62="Preventivo", Q62="Detectivo"),OR(Q63="Preventivo", Q63="Detectivo")),(X62-(+X62*S63)),IF(OR(Q63="Preventivo", Q63="Detectivo"),(X61-(+X61*S63)),IF(Q63="Correctivo",X62,""))),"") -> 
B65: Elaboró | D65: Revisó | F65: Aprobó
B66: Nombre: Delegados Decanaturas y Equipo SIGUD Cargo: N/A Fecha: 04/04/2022 | D66: Nombre: Mirna Jirón Popova / Omer Calderón / Andrés Rodríguez Ferreira / Luz Esperanza Bohórquez Arévalo / Ruth Esperanza Román Castillo / Claudia María Cardona Londoño / Humberto Guerrero Salas Cargo: Vicerrectora Académica / Decano Facultad de Ciencias y Educación / Decano Facultad de Artes ASAB / Decana Facultad de Ingeniería / Decana Facultad Tecnológica / Decana Facultad de Medio Ambiente y Recursos Naturales / Coordinador Oficina de Docencia Fecha: 25/04/2022 | F66: Nombre: Mirna Jirón Popova / Omer Calderón / Andrés Rodríguez Ferreira / Luz Esperanza Bohórquez Arévalo / Ruth Esperanza Román Castillo / Claudia María Cardona Londoño / Humberto Guerrero Salas Cargo: Vicerrectora Académica / Decano Facultad de Ciencias y Educación / Decano Facultad de Artes ASAB / Decana Facultad de Ingeniería / Decana Facultad Tecnológica / Decana Facultad de Medio Ambiente y Recursos Naturales / Coordinador Oficina de Docencia Fecha: 25/04/2022

Sheet 2) GI - Cal
D2: MAPA INTEGRAL DE RIESGOS | G2: Código: GI-MG-001-FR-014
D3: Macroproceso: Direccionamiento Estratégico | G3: Versión: 04
D4: Proceso: Gestión Integrada | G4: Fecha de Aprobación: 23/12/2021
B6: EJE DE CALIDAD
B8: Proceso: | D8: Gestión de Investigación
B9: Objetivo del Proceso: | D9: =IF(D8=0,"",VLOOKUP(D8,'[43]Datos SGC'!B50:C71,2)) -> Administrar los recursos destinados al desarrollo de estrategias, programas, proyectos investigativos y contar con las condiciones estructurales-organizacionales para proyectarse como una universidad investigativa que promueva y potencie la capacidad del investigador de la Universidad y su labor tenga eco en el desarrollo científico y sociocultural de la ciudad – región y país.
AN10: 44 | AP10: 4 | AT10: 4 | AU10: 4
B12: IDENTIFICACIÓN DEL RIESGO | J12: ANÁLISIS DEL RIESGO | Q12: EVALUACIÓN DEL RIESGO | AE12: TRATAMIENTO DEL RIESGO
B13: N° | C13: Descripción del Riesgo | D13: Tipo de Riesgo | E13: Impacto | F13: Causa inmediata | G13: Causa raíz | H13: Consecuencias adicionales | I13: Unidad(es) que reportan al Riesgo | J13: Número de veces que se pasa por el punto de riesgo en el periodo de 1 año | K13: Probabilidad | L13: % P | M13: Impacto | N13: % I | O13: Zona de Riesgo Inherente | P13: Nº | Q13: Controles existentes | R13: Atributos de eficacia | U13: Atributos informativos | X13: Probabilidad Residual | Y13: % P | Z13: Impacto Residual | AA13: % I | AB13: Zona de Riesgo después del Control | AC13: Zona de Riesgo Residual FINAL | AD13: Tratamiento al Riesgo | AE13: Acción para mitigar el riesgo | AF13: Evidencia de cumplimiento | AG13: Responsable | AH13: Periodo de ejecución
R14: Tipo | S14: Implementación | T14: Calificación del control (%) | U14: Documentación | V14: Frecuencia | W14: Evidencia
B15: 1 | C15: Posibilidad de afectacion reputacional por baja participación en las convocatorias de entidades externas de apoyo a proyectos de investigación debido a falta de interes o conocimiento de las Convocatorias. | D15: Imagen o reputacional | E15: Reputacional | F15: Baja participación en las convocatorias de entidades externas | G15: No se cumplen en su totalidad los requisitos exigidos en la convocatoria. | H15: Baja calificación en los indicadores de gestión de la Universidad. | I15: Centro de Investigaciones y Desarrollo Cientifico | J15: 5 | K15: =IF(J15<=0,"",IF(J15<=2,"Muy Baja",IF(J15<=12,"Baja",IF(J15<=365,"Media",IF(J15<=5000,"Alta","Muy Alta"))))) -> Baja | L15: =IF(K15="","",IF(K15="Muy Baja",0.2,IF(K15="Baja",0.4,IF(K15="Media",0.6,IF(K15="Alta",0.8,IF(K15="Muy Alta",1,)))))) -> 0.4 | M15: Leve | N15: =IF(M15="","",IF(M15="Leve",0.2,IF(M15="Menor",0.4,IF(M15="Moderado",0.6,IF(M15="Mayor",0.8,IF(M15="Catastrófico",1,)))))) -> 0.2 | O15: =IF(OR(AND(K15="Muy Baja",M15="Leve"),AND(K15="Muy Baja",M15="Menor"),AND(K15="Baja",M15="Leve")),"BAJA",IF(OR(AND(K15="Muy baja",M15="Moderado"),AND(K15="Baja",M15="Menor"),AND(K15="Baja",M15="Moderado"),AND(K15="Media",M15="Leve"),AND(K15="Media",M15="Menor"),AND(K15="Media",M15="Moderado"),AND(K15="Alta",M15="Leve"),AND(K15="Alta",M15="Menor")),"MODERADA",IF(OR(AND(K15="Muy Baja",M15="Mayor"),AND(K15="Baja",M15="Mayor"),AND(K15="Media",M15="Mayor"),AND(K15="Alta",M15="Moderado"),AND(K15="Alta",M15="Mayor"),AND(K15="Muy Alta",M15="Leve"),AND(K15="Muy Alta",M15="Menor"),AND(K15="Muy Alta",M15="Moderado"),AND(K15="Muy Alta",M15="Mayor")),"ALTA",IF(OR(AND(K15="Muy Baja",M15="Catastrófico"),AND(K15="Baja",M15="Catastrófico"),AND(K15="Media",M15="Catastrófico"),AND(K15="Alta",M15="Catastrófico"),AND(K15="Muy Alta",M15="Catastrófico")),"EXTREMA","")))) -> BAJA | P15: 1 | Q15: El encargado de la gestion de grupos y semilleros de investigación realiza el seguimiento a los planes de acción de los grupos de investigación en apoyo de las unidades de investigación de las facultades anualmente con el fin de evidenciar el cumplimiento del plan establecido; cuando se presenta incumplimiento del plan o falta de cargue del mismo en el sistema se informa al director del grupo para que genere acciones de mejora a incluir en el nuevo plan de acción del grupo; esto se evidencia en correo electronico y en el sistema de informacion del CIDC | R15: Correctivo | S15: Manual | T15: =IF(AND(R15="Preventivo",S15="Automático"),"50%",IF(AND(R15="Preventivo",S15="Manual"),"40%",IF(AND(R15="Detectivo",S15="Automático"),"40%",IF(AND(R15="Detectivo",S15="Manual"),"30%",IF(AND(R15="Correctivo",S15="Automático"),"35%",IF(AND(R15="Correctivo",S15="Manual"),"25%","")))))) -> 25% | U15: Documentado | V15: Continua | W15: Sin registro | X15: =IFERROR(IF(Y15="","",IF(Y15<=0.2,"Muy Baja",IF(Y15<=0.4,"Baja",IF(Y15<=0.6,"Media",IF(Y15<=0.8,"Alta","Muy Alta"))))),"") -> Baja | Y15: =IFERROR(IF(OR(R15="Preventivo", R15="Detectivo"),(L15-(+L15*T15)),IF(R15="Correctivo",L15,"")),"") -> 0.4 | Z15: =IFERROR(IF(AA15="","",IF(AA15<=0.2,"Leve",IF(AA15<=0.4,"Menor",IF(AA15<=0.6,"Moderado",IF(AA15<=0.8,"Mayor","Catastrófico"))))),"") -> Leve | AA15: =IFERROR(IF(R15="Correctivo",(N15-(+N15*T15)),IF(OR(R15="Preventivo", R15="Detectivo"),N15,"")),"") -> 0.15 | AB15: =IFERROR(IF(OR(AND(X15="Muy Baja",Z15="Leve"),AND(X15="Muy Baja",Z15="Menor"),AND(X15="Baja",Z15="Leve")),"BAJA",IF(OR(AND(X15="Muy baja",Z15="Moderado"),AND(X15="Baja",Z15="Menor"),AND(X15="Baja",Z15="Moderado"),AND(X15="Media",Z15="Leve"),AND(X15="Media",Z15="Menor"),AND(X15="Media",Z15="Moderado"),AND(X15="Alta",Z15="Leve"),AND(X15="Alta",Z15="Menor")),"MODERADA",IF(OR(AND(X15="Muy Baja",Z15="Mayor"),AND(X15="Baja",Z15="Mayor"),AND(X15="Media",Z15="Mayor"),AND(X15="Alta",Z15="Moderado"),AND(X15="Alta",Z15="Mayor"),AND(X15="Muy Alta",Z15="Leve"),AND(X15="Muy Alta",Z15="Menor"),AND(X15="Muy Alta",Z15="Moderado"),AND(X15="Muy Alta",Z15="Mayor")),"ALTA",IF(OR(AND(X15="Muy Baja",Z15="Catastrófico"),AND(X15="Baja",Z15="Catastrófico"),AND(X15="Media",Z15="Catastrófico"),AND(X15="Alta",Z15="Catastrófico"),AND(X15="Muy Alta",Z15="Catastrófico")),"EXTREMA","")))),"") -> BAJA | AC15: =IF(ISBLANK(S15), O15,LOOKUP(2,1/(AB15:AB21<>""),AB15:AB21)) -> BAJA | AD15: Reducir | AE15: Se encuentra en proceso el desarrollo de un nuevo sistema de gestion informatico para la gestion de la investigacion lo que permitira un mejor seguimiento a este riesgo | AF15: Seguimiento en SICIUD | AG15: Gestor de grupos Unidades de investigacion de las Facultades | AH15: Toda la vigencia
G16: Falta de interés. | H16: Disminución o pérdida de categoría de los grupos de investigación e investigadores en el marco de las convocatorias de Minciencias. | P16: 2 | Q16: Los encargados de seguimiento a los proyectos de investigación cofinanciados verifican la creacion de nuevas convocatorias de cofinanciacion de proyectos por parte de externos y realizan la difusión de dichas convocatorias externas a nivel interno de manera permanente. De igual manera tambien por iniciativa propia las estructuras de investigación pueden presentarse a estas convocatorias previo cumplimiento de los requisitos de la misma y siguiendo el procedimiento establecido en la resolucion de Rectoria 415 de 2019, esto se evidencia en los correos enviados a las listas de la Universidad y publicaciones en la pagina del CIDC | R16: Preventivo | S16: Manual | T16: 40% | U16: Sin documentar | V16: Continua | W16: Con registro | X16: Baja | Y16: =IFERROR(IF(AND(OR(R15="Preventivo", R15="Detectivo"),OR(R16="Preventivo", R16="Detectivo")),(Y15-(+Y15*T16)),IF(OR(R16="Preventivo", R16="Detectivo"),(L15-(+L15*T16)),IF(R16="Correctivo",Y15,""))),"") -> 0.24 | Z16: Leve | AA16: =IFERROR(IF(AND(R15="Correctivo",R16="Correctivo"),(AA15-(+AA15*T16)),IF(R16="Correctivo",(N15-(+N15*T16)),IF(OR(R16="Preventivo", R16="Detectivo"),AA15,""))),"") -> 0.15 | AB16: BAJA | AE16: Creacion de un portafolio de proyectos y foratlezas existentes | AF16: Portafolio Generado y ADN de la Investigación | AG16: CIDC | AH16: Toda la vigencia
G17: Falta de conocimiento de las convocatorias. | H17: Pérdida de posicionamiento institucional en rankings internacionales como Scimago, U-sapiens, etc. | P17: 3 | Y17: =IFERROR(IF(AND(OR(R16="Preventivo", R16="Detectivo"),OR(R17="Preventivo", R17="Detectivo")),(Y16-(+Y16*T17)),IF(OR(R17="Preventivo", R17="Detectivo"),(Y15-(+Y15*T17)),IF(R17="Correctivo",Y16,""))),"") ->  | AA17: =IFERROR(IF(AND(R16="Correctivo",R17="Correctivo"),(AA16-(+AA16*T17)),IF(R17="Correctivo",(AA15-(+AA15*T17)),IF(OR(R17="Preventivo", R17="Detectivo"),AA16,""))),"") -> 
G18: Falta de articulacion entre grupos | H18: No aprovechamiento de recursos económicos de entidades externas. | P18: 4 | Y18: =IFERROR(IF(AND(OR(R17="Preventivo", R17="Detectivo"),OR(R18="Preventivo", R18="Detectivo")),(Y17-(+Y17*T18)),IF(OR(R18="Preventivo", R18="Detectivo"),(Y16-(+Y16*T18)),IF(R18="Correctivo",Y17,""))),"") ->  | AA18: =IFERROR(IF(AND(R17="Correctivo",R18="Correctivo"),(AA17-(+AA17*T18)),IF(R18="Correctivo",(AA16-(+AA16*T18)),IF(OR(R18="Preventivo", R18="Detectivo"),AA17,""))),"") -> 
G19: Falta de herramientas de banco de proyectos | P19: 5 | Y19: =IFERROR(IF(AND(OR(R18="Preventivo", R18="Detectivo"),OR(R19="Preventivo", R19="Detectivo")),(Y18-(+Y18*T19)),IF(OR(R19="Preventivo", R19="Detectivo"),(Y17-(+Y17*T19)),IF(R19="Correctivo",Y18,""))),"") ->  | AA19: =IFERROR(IF(AND(R18="Correctivo",R19="Correctivo"),(AA18-(+AA18*T19)),IF(R19="Correctivo",(AA17-(+AA17*T19)),IF(OR(R19="Preventivo", R19="Detectivo"),AA18,""))),"") -> 
P20: 6 | Y20: =IFERROR(IF(AND(OR(R19="Preventivo", R19="Detectivo"),OR(R20="Preventivo", R20="Detectivo")),(Y19-(+Y19*T20)),IF(OR(R20="Preventivo", R20="Detectivo"),(Y18-(+Y18*T20)),IF(R20="Correctivo",Y19,""))),"") ->  | AA20: =IFERROR(IF(AND(R19="Correctivo",R20="Correctivo"),(AA19-(+AA19*T20)),IF(R20="Correctivo",(AA18-(+AA18*T20)),IF(OR(R20="Preventivo", R20="Detectivo"),AA19,""))),"") -> 
P21: 7 | Y21: =IFERROR(IF(AND(OR(R20="Preventivo", R20="Detectivo"),OR(R21="Preventivo", R21="Detectivo")),(Y20-(+Y20*T21)),IF(OR(R21="Preventivo", R21="Detectivo"),(Y19-(+Y19*T21)),IF(R21="Correctivo",Y20,""))),"") ->  | AA21: =IFERROR(IF(AND(R20="Correctivo",R21="Correctivo"),(AA20-(+AA20*T21)),IF(R21="Correctivo",(AA19-(+AA19*T21)),IF(OR(R21="Preventivo", R21="Detectivo"),AA20,""))),"") -> 
B22: 2 | C22: Posibilidad de afectación reputacional por baja publicación de Libros y Artículos científicos debido dificultades en procedimientos procesos y mecanismos de divulgación. | D22: Imagen o reputacional | E22: Reputacional | F22: Baja en la publicación de Libros y Articulos | G22: Falta de capacitación en redacción científica. | H22: Baja calificación en los indicadores de gestión de la Universidad. | I22: Centro de Investigaciones y Desarrollo Cientifico | J22: 120 | K22: =IF(J22<=0,"",IF(J22<=2,"Muy Baja",IF(J22<=12,"Baja",IF(J22<=365,"Media",IF(J22<=5000,"Alta","Muy Alta"))))) -> Media | L22: =IF(K22="","",IF(K22="Muy Baja",0.2,IF(K22="Baja",0.4,IF(K22="Media",0.6,IF(K22="Alta",0.8,IF(K22="Muy Alta",1,)))))) -> 0.6 | M22: Moderado | N22: =IF(M22="","",IF(M22="Leve",0.2,IF(M22="Menor",0.4,IF(M22="Moderado",0.6,IF(M22="Mayor",0.8,IF(M22="Catastrófico",1,)))))) -> 0.6 | O22: =IF(OR(AND(K22="Muy Baja",M22="Leve"),AND(K22="Muy Baja",M22="Menor"),AND(K22="Baja",M22="Leve")),"BAJA",IF(OR(AND(K22="Muy baja",M22="Moderado"),AND(K22="Baja",M22="Menor"),AND(K22="Baja",M22="Moderado"),AND(K22="Media",M22="Leve"),AND(K22="Media",M22="Menor"),AND(K22="Media",M22="Moderado"),AND(K22="Alta",M22="Leve"),AND(K22="Alta",M22="Menor")),"MODERADA",IF(OR(AND(K22="Muy Baja",M22="Mayor"),AND(K22="Baja",M22="Mayor"),AND(K22="Media",M22="Mayor"),AND(K22="Alta",M22="Moderado"),AND(K22="Alta",M22="Mayor"),AND(K22="Muy Alta",M22="Leve"),AND(K22="Muy Alta",M22="Menor"),AND(K22="Muy Alta",M22="Moderado"),AND(K22="Muy Alta",M22="Mayor")),"ALTA",IF(OR(AND(K22="Muy Baja",M22="Catastrófico"),AND(K22="Baja",M22="Catastrófico"),AND(K22="Media",M22="Catastrófico"),AND(K22="Alta",M22="Catastrófico"),AND(K22="Muy Alta",M22="Catastrófico")),"EXTREMA","")))) -> MODERADA | P22: 1 | Q22: El comite de investigaciones aprueba el plan de cursos anual en donde se incluye la capacitación en redacción cientifica anualmente con el fin de propiciar una mejor capacidad de los investigadores para mejorar el impacto de sus publicaciones a nivel internacional; estos cursos se proponen de acuerdo a la necesidad encontrada de capacitacion en investigación si se encuentra una falencia se contempla para el siguiente plan de capacitaciones en investigación. Estos planes son de caracter anual. Se evidencia en la programacion enviada a traves de correos electronicos. | R22: Preventivo | S22: Manual | T22: 40% | U22: Documentado | V22: Continua | W22: Con registro | X22: Baja | Y22: =IFERROR(IF(OR(R22="Preventivo", R22="Detectivo"),(L22-(+L22*T22)),IF(R22="Correctivo",L22,"")),"") -> 0.36 | Z22: Moderado | AA22: =IFERROR(IF(R22="Correctivo",(N22-(+N22*T22)),IF(OR(R22="Preventivo", R22="Detectivo"),N22,"")),"") -> 0.6 | AB22: MODERADA | AC22: =IF(ISBLANK(S22), O22,LOOKUP(2,1/(AB22:AB28<>""),AB22:AB28)) -> MODERADA | AD22: Reducir | AE22: Se han generado cursos para el mejoramiento de la calidad de investigación | AF22: Evidencias de cursos/Talleres CIDC | AG22: Gestor de Grupos CIDC | AH22: Trimestre III
G23: Desmotivación de los investigadores. | H23: Disminución de la categorización de los Grupos. | P23: 2 | Q23: El comité de investigaciones aprueba mediante las convocatorias de proyectos de investigación la financiación de producción científica enmarcada en el desarrollo de los proyectos de investigación financiados por el CIDC, de no usarse este tipo de rubro el investigador se encuentra obligado por las actas compromisorias a generar un tipo de productos de investigación, la revision del avance de estos productos se realiza de manera semestral. Se evidencia con los informes de avance y los terminos de referencia de las convocatorias. | R23: Preventivo | S23: Manual | T23: 40% | U23: Documentado | V23: Continua | W23: Con registro | X23: Baja | Y23: =IFERROR(IF(AND(OR(R22="Preventivo", R22="Detectivo"),OR(R23="Preventivo", R23="Detectivo")),(Y22-(+Y22*T23)),IF(OR(R23="Preventivo", R23="Detectivo"),(L22-(+L22*T23)),IF(R23="Correctivo",Y22,""))),"") -> 0.216 | Z23: Moderado | AA23: =IFERROR(IF(AND(R22="Correctivo",R23="Correctivo"),(AA22-(+AA22*T23)),IF(R23="Correctivo",(N22-(+N22*T23)),IF(OR(R23="Preventivo", R23="Detectivo"),AA22,""))),"") -> 0.6 | AB23: MODERADA | AE23: Se apoya la publicación de articulos y libros de investigación que se encuentren inmersos en los proyectos de investigación con financiación por parte del CIDC | AF23: Actas de Comité | AG23: Comité de Investigaciones Equipo de seguimiento a proyectos | AH23: Trimestre III
G24: Baja Orientación temprana. | H24: Pérdida de posicionamiento institucional en rankings internacionales como Scimago, U-sapiens, etc. | P24: 3 | Q24: Revision procedimiental para mejorar claridad ante tramites para los investigadores | R24: Correctivo | S24: Manual | T24: 25% | U24: Sin documentar | V24: Continua | W24: Sin registro | X24: Baja | Y24: =IFERROR(IF(AND(OR(R23="Preventivo", R23="Detectivo"),OR(R24="Preventivo", R24="Detectivo")),(Y23-(+Y23*T24)),IF(OR(R24="Preventivo", R24="Detectivo"),(Y22-(+Y22*T24)),IF(R24="Correctivo",Y23,""))),"") -> 0.216 | Z24: Moderado | AA24: =IFERROR(IF(AND(R23="Correctivo",R24="Correctivo"),(AA23-(+AA23*T24)),IF(R24="Correctivo",(AA22-(+AA22*T24)),IF(OR(R24="Preventivo", R24="Detectivo"),AA23,""))),"") -> 0.45 | AB24: MODERADA | AE24: El CIDC apoya con la contratacion de revisión de estilo diagramacion los procesos editoriales realizados para la publicacion de resultados de investigación en libros y articulos cientificos | AF24: Contratos de correcion de estilo y diagramación | AG24: CIDC | AH24: Toda la vigencia
G25: Falta de claridad en procesos | P25: 4 | Y25: =IFERROR(IF(AND(OR(R24="Preventivo", R24="Detectivo"),OR(R25="Preventivo", R25="Detectivo")),(Y24-(+Y24*T25)),IF(OR(R25="Preventivo", R25="Detectivo"),(Y23-(+Y23*T25)),IF(R25="Correctivo",Y24,""))),"") ->  | AA25: =IFERROR(IF(AND(R24="Correctivo",R25="Correctivo"),(AA24-(+AA24*T25)),IF(R25="Correctivo",(AA23-(+AA23*T25)),IF(OR(R25="Preventivo", R25="Detectivo"),AA24,""))),"") ->  | AE25: Generación de un proyecto de acuerdo sobre libros digitales y de acceso abierto | AF25: Acuerdo generado | AG25: CIDC | AH25: Semestre II
G26: Tramites dificultosos en oficina de publicaciones | P26: 5 | Y26: =IFERROR(IF(AND(OR(R25="Preventivo", R25="Detectivo"),OR(R26="Preventivo", R26="Detectivo")),(Y25-(+Y25*T26)),IF(OR(R26="Preventivo", R26="Detectivo"),(Y24-(+Y24*T26)),IF(R26="Correctivo",Y25,""))),"") ->  | AA26: =IFERROR(IF(AND(R25="Correctivo",R26="Correctivo"),(AA25-(+AA25*T26)),IF(R26="Correctivo",(AA24-(+AA24*T26)),IF(OR(R26="Preventivo", R26="Detectivo"),AA25,""))),"") -> 
P27: 6 | Y27: =IFERROR(IF(AND(OR(R26="Preventivo", R26="Detectivo"),OR(R27="Preventivo", R27="Detectivo")),(Y26-(+Y26*T27)),IF(OR(R27="Preventivo", R27="Detectivo"),(Y25-(+Y25*T27)),IF(R27="Correctivo",Y26,""))),"") ->  | AA27: =IFERROR(IF(AND(R26="Correctivo",R27="Correctivo"),(AA26-(+AA26*T27)),IF(R27="Correctivo",(AA25-(+AA25*T27)),IF(OR(R27="Preventivo", R27="Detectivo"),AA26,""))),"") -> 
P28: 7 | Y28: =IFERROR(IF(AND(OR(R27="Preventivo", R27="Detectivo"),OR(R28="Preventivo", R28="Detectivo")),(Y27-(+Y27*T28)),IF(OR(R28="Preventivo", R28="Detectivo"),(Y26-(+Y26*T28)),IF(R28="Correctivo",Y27,""))),"") ->  | AA28: =IFERROR(IF(AND(R27="Correctivo",R28="Correctivo"),(AA27-(+AA27*T28)),IF(R28="Correctivo",(AA26-(+AA26*T28)),IF(OR(R28="Preventivo", R28="Detectivo"),AA27,""))),"") -> 
B29: 3 | C29: Posibilidad de afectación al apoyo de los procesos Misionales por Pérdida de la propiedad intelectual de los investigadores de la Universidad debido a falta de conocimiento por parte del investigador de propiedad intelectual. | D29: Operativo | E29: Apoyo procesos misionales | F29: Pérdida de la propiedad intelectual de los investigadores de la Universidad | G29: El investigador no reporta sus resultados de investigación. | H29: Falta de reconocimiento de los investigadores. | I29: Centro de Investigaciones y Desarrollo Cientifico | J29: 10 | K29: =IF(J29<=0,"",IF(J29<=2,"Muy Baja",IF(J29<=12,"Baja",IF(J29<=365,"Media",IF(J29<=5000,"Alta","Muy Alta"))))) -> Baja | L29: =IF(K29="","",IF(K29="Muy Baja",0.2,IF(K29="Baja",0.4,IF(K29="Media",0.6,IF(K29="Alta",0.8,IF(K29="Muy Alta",1,)))))) -> 0.4 | M29: Moderado | N29: =IF(M29="","",IF(M29="Leve",0.2,IF(M29="Menor",0.4,IF(M29="Moderado",0.6,IF(M29="Mayor",0.8,IF(M29="Catastrófico",1,)))))) -> 0.6 | O29: =IF(OR(AND(K29="Muy Baja",M29="Leve"),AND(K29="Muy Baja",M29="Menor"),AND(K29="Baja",M29="Leve")),"BAJA",IF(OR(AND(K29="Muy baja",M29="Moderado"),AND(K29="Baja",M29="Menor"),AND(K29="Baja",M29="Moderado"),AND(K29="Media",M29="Leve"),AND(K29="Media",M29="Menor"),AND(K29="Media",M29="Moderado"),AND(K29="Alta",M29="Leve"),AND(K29="Alta",M29="Menor")),"MODERADA",IF(OR(AND(K29="Muy Baja",M29="Mayor"),AND(K29="Baja",M29="Mayor"),AND(K29="Media",M29="Mayor"),AND(K29="Alta",M29="Moderado"),AND(K29="Alta",M29="Mayor"),AND(K29="Muy Alta",M29="Leve"),AND(K29="Muy Alta",M29="Menor"),AND(K29="Muy Alta",M29="Moderado"),AND(K29="Muy Alta",M29="Mayor")),"ALTA",IF(OR(AND(K29="Muy Baja",M29="Catastrófico"),AND(K29="Baja",M29="Catastrófico"),AND(K29="Media",M29="Catastrófico"),AND(K29="Alta",M29="Catastrófico"),AND(K29="Muy Alta",M29="Catastrófico")),"EXTREMA","")))) -> MODERADA | P29: 1 | Q29: El abogado especialista en propiedad intelectual de la OTRI brinda apoyo y seguimiento a los procesos de propiedad intelectual de los productos de investigación, para garantizar la proteccion de los resultados de investigación de la Universidad. En caso de encontrarse alguna discrepancia en el acompañamiento se remitira al comite de propiedad intelectual. Este proceso se realiza de forma permanente segun necesidades de los investigadores. Se evidencia mediante los informes de gestion y correos electronicos enviados a los investigadores. | R29: Detectivo | S29: Manual | T29: 30% | U29: Documentado | V29: Continua | W29: Con registro | X29: Baja | Y29: =IFERROR(IF(OR(R29="Preventivo", R29="Detectivo"),(L29-(+L29*T29)),IF(R29="Correctivo",L29,"")),"") -> 0.28 | Z29: Moderado | AA29: =IFERROR(IF(R29="Correctivo",(N29-(+N29*T29)),IF(OR(R29="Preventivo", R29="Detectivo"),N29,"")),"") -> 0.6 | AB29: MODERADA | AC29: =IF(ISBLANK(S29), O29,LOOKUP(2,1/(AB29:AB35<>""),AB29:AB35)) -> MODERADA | AD29: Reducir | AE29: Gracias al apoyo al proyecto CATI no solo se ha apoyado los procesos de la Universidad sino que la Universidad se ha convertido en un apoyo para los innovadores bogotanos, actualmente mediante la OTRI se apoyan todos los productos suceptibles de ser protegidos por los diversos mecanismos establecidos para ello. | AF29: >Informe OTRI | AG29: Abogado de Propiedad Intelectual OTRI | AH29: Toda la vigencia
G30: Falta de ética de los docentes investigadores. | H30: Desgaste administrativo por procesos legales. | P30: 2 | Q30: Los miembros del equipo OTRI realizan capacitaciones sobre temas que permitan mejorar la cultura de la propiedad intelectual en la universidad y para que los investigadores mejoren su potencial de desarrollo de productos de investigación transferibles. Este proceso se realiza de forma constante de acuerdo al cronograma establecido. Se evidencia mediante registros de asistencia y correos de invitacion a las capacitaciones. | R30: Preventivo | S30: Manual | T30: 40% | U30: Documentado | V30: Continua | W30: Con registro | X30: Muy Baja | Y30: =IFERROR(IF(AND(OR(R29="Preventivo", R29="Detectivo"),OR(R30="Preventivo", R30="Detectivo")),(Y29-(+Y29*T30)),IF(OR(R30="Preventivo", R30="Detectivo"),(L29-(+L29*T30)),IF(R30="Correctivo",Y29,""))),"") -> 0.168 | Z30: Moderado | AA30: =IFERROR(IF(AND(R29="Correctivo",R30="Correctivo"),(AA29-(+AA29*T30)),IF(R30="Correctivo",(N29-(+N29*T30)),IF(OR(R30="Preventivo", R30="Detectivo"),AA29,""))),"") -> 0.6 | AB30: MODERADA | AE30: Se realizan a lo largo del año jornadas de capacitacion en propiedad intelectual y otros temas relevantes para la transferencia de resultados de investigación | AF30: >Informe OTRI | AG30: Equipo OTRI | AH30: Toda la vigencia
G31: Falta de conocimiento por parte del investigador de propiedad intelectual. | P31: 3 | Y31: =IFERROR(IF(AND(OR(R30="Preventivo", R30="Detectivo"),OR(R31="Preventivo", R31="Detectivo")),(Y30-(+Y30*T31)),IF(OR(R31="Preventivo", R31="Detectivo"),(Y29-(+Y29*T31)),IF(R31="Correctivo",Y30,""))),"") ->  | AA31: =IFERROR(IF(AND(R30="Correctivo",R31="Correctivo"),(AA30-(+AA30*T31)),IF(R31="Correctivo",(AA29-(+AA29*T31)),IF(OR(R31="Preventivo", R31="Detectivo"),AA30,""))),"") ->  | AE31: Capacitacion en selección de publicaciones no predadoras | AF31: Evidencias de capacitación | AG31: Gestor de Revistas | AH31: Semestre II
P32: 4 | Y32: =IFERROR(IF(AND(OR(R31="Preventivo", R31="Detectivo"),OR(R32="Preventivo", R32="Detectivo")),(Y31-(+Y31*T32)),IF(OR(R32="Preventivo", R32="Detectivo"),(Y30-(+Y30*T32)),IF(R32="Correctivo",Y31,""))),"") ->  | AA32: =IFERROR(IF(AND(R31="Correctivo",R32="Correctivo"),(AA31-(+AA31*T32)),IF(R32="Correctivo",(AA30-(+AA30*T32)),IF(OR(R32="Preventivo", R32="Detectivo"),AA31,""))),"") -> 
P33: 5 | Y33: =IFERROR(IF(AND(OR(R32="Preventivo", R32="Detectivo"),OR(R33="Preventivo", R33="Detectivo")),(Y32-(+Y32*T33)),IF(OR(R33="Preventivo", R33="Detectivo"),(Y31-(+Y31*T33)),IF(R33="Correctivo",Y32,""))),"") ->  | AA33: =IFERROR(IF(AND(R32="Correctivo",R33="Correctivo"),(AA32-(+AA32*T33)),IF(R33="Correctivo",(AA31-(+AA31*T33)),IF(OR(R33="Preventivo", R33="Detectivo"),AA32,""))),"") -> 
P34: 6 | Y34: =IFERROR(IF(AND(OR(R33="Preventivo", R33="Detectivo"),OR(R34="Preventivo", R34="Detectivo")),(Y33-(+Y33*T34)),IF(OR(R34="Preventivo", R34="Detectivo"),(Y32-(+Y32*T34)),IF(R34="Correctivo",Y33,""))),"") ->  | AA34: =IFERROR(IF(AND(R33="Correctivo",R34="Correctivo"),(AA33-(+AA33*T34)),IF(R34="Correctivo",(AA32-(+AA32*T34)),IF(OR(R34="Preventivo", R34="Detectivo"),AA33,""))),"") -> 
P35: 7 | Y35: =IFERROR(IF(AND(OR(R34="Preventivo", R34="Detectivo"),OR(R35="Preventivo", R35="Detectivo")),(Y34-(+Y34*T35)),IF(OR(R35="Preventivo", R35="Detectivo"),(Y33-(+Y33*T35)),IF(R35="Correctivo",Y34,""))),"") ->  | AA35: =IFERROR(IF(AND(R34="Correctivo",R35="Correctivo"),(AA34-(+AA34*T35)),IF(R35="Correctivo",(AA33-(+AA33*T35)),IF(OR(R35="Preventivo", R35="Detectivo"),AA34,""))),"") -> 
B36: 4 | C36: Posibilidad de afectación a la Gestión Institucional por planeacion erronea de los programas de formación y capacitación de investigadores acorde a las necesidades de investigación a nivel local, regional y nacional debido a la limitación de los recursos y al desconocimiento de las necesidades reales de los investigadores | D36: Cumplimiento | E36: Afectación a la Gestión Institucional | F36: Planeacion Erronea de los programas de formación y capacitación de investigadores acorde a las necesidades de investigación a nivel local, regional y nacional. | G36: Limitación de los recursos. | H36: Limitación del desarrollo de los proyectos. | I36: Centro de Investigaciones y Desarrollo Cientifico | J36: 3 | K36: =IF(J36<=0,"",IF(J36<=2,"Muy Baja",IF(J36<=12,"Baja",IF(J36<=365,"Media",IF(J36<=5000,"Alta","Muy Alta"))))) -> Baja | L36: =IF(K36="","",IF(K36="Muy Baja",0.2,IF(K36="Baja",0.4,IF(K36="Media",0.6,IF(K36="Alta",0.8,IF(K36="Muy Alta",1,)))))) -> 0.4 | M36: Menor | N36: =IF(M36="","",IF(M36="Leve",0.2,IF(M36="Menor",0.4,IF(M36="Moderado",0.6,IF(M36="Mayor",0.8,IF(M36="Catastrófico",1,)))))) -> 0.4 | O36: =IF(OR(AND(K36="Muy Baja",M36="Leve"),AND(K36="Muy Baja",M36="Menor"),AND(K36="Baja",M36="Leve")),"BAJA",IF(OR(AND(K36="Muy baja",M36="Moderado"),AND(K36="Baja",M36="Menor"),AND(K36="Baja",M36="Moderado"),AND(K36="Media",M36="Leve"),AND(K36="Media",M36="Menor"),AND(K36="Media",M36="Moderado"),AND(K36="Alta",M36="Leve"),AND(K36="Alta",M36="Menor")),"MODERADA",IF(OR(AND(K36="Muy Baja",M36="Mayor"),AND(K36="Baja",M36="Mayor"),AND(K36="Media",M36="Mayor"),AND(K36="Alta",M36="Moderado"),AND(K36="Alta",M36="Mayor"),AND(K36="Muy Alta",M36="Leve"),AND(K36="Muy Alta",M36="Menor"),AND(K36="Muy Alta",M36="Moderado"),AND(K36="Muy Alta",M36="Mayor")),"ALTA",IF(OR(AND(K36="Muy Baja",M36="Catastrófico"),AND(K36="Baja",M36="Catastrófico"),AND(K36="Media",M36="Catastrófico"),AND(K36="Alta",M36="Catastrófico"),AND(K36="Muy Alta",M36="Catastrófico")),"EXTREMA","")))) -> MODERADA | P36: 1 | Q36: El gestor de grupos recoge ideas y necesidades de capacitación recogidas a su vez por las unidades de investigación, para determinar el plan de capacitaciones a desarrollar por vigencia, quedando como evidencia del control un informe por parte del gestor. | R36: Preventivo | S36: Manual | T36: 40% | U36: Sin documentar | V36: Continua | W36: Sin registro | X36: Baja | Y36: =IFERROR(IF(OR(R36="Preventivo", R36="Detectivo"),(L36-(+L36*T36)),IF(R36="Correctivo",L36,"")),"") -> 0.24 | Z36: Menor | AA36: =IFERROR(IF(R36="Correctivo",(N36-(+N36*T36)),IF(OR(R36="Preventivo", R36="Detectivo"),N36,"")),"") -> 0.4 | AB36: MODERADA | AC36: =IF(ISBLANK(S36), O36,LOOKUP(2,1/(AB36:AB42<>""),AB36:AB42)) -> BAJA | AD36: Reducir | AE36: Reuniones de sensibilizacion para determinación de necesidades | AF36: Documentos asociados | AG36: Gestor de grupos y semilleros | AH36: Trimestre II
G37: Desconocimiento de los procesos internos de las estructuras de investigación y las áreas de conocimiento que estos manejan. | H37: Imposibilidad de entrega de los productos de investigación pactados con los investigadores. | P37: 2 | Q37: La Directora del Centro de Investigación y Desarrollo Cientifico, anualmente, destina un presupuesto de inversion enfocado a la meta de capacitacion en investigación en busqueda de actualización de conocimiento por parte de los investigadores, del cual la evidencia el resupuesto de inversión. | R37: Preventivo | S37: Manual | T37: 40% | U37: Documentado | V37: Continua | W37: Con registro | X37: Muy Baja | Y37: =IFERROR(IF(AND(OR(R36="Preventivo", R36="Detectivo"),OR(R37="Preventivo", R37="Detectivo")),(Y36-(+Y36*T37)),IF(OR(R37="Preventivo", R37="Detectivo"),(L36-(+L36*T37)),IF(R37="Correctivo",Y36,""))),"") -> 0.144 | Z37: Menor | AA37: =IFERROR(IF(AND(R36="Correctivo",R37="Correctivo"),(AA36-(+AA36*T37)),IF(R37="Correctivo",(N36-(+N36*T37)),IF(OR(R37="Preventivo", R37="Detectivo"),AA36,""))),"") -> 0.4 | AB37: BAJA | AE37: Estructuracion del fondo de investigaciones de la Universidad Distrital | AF37: Acuerdo generado | AG37: CIDC | AH37: Semestre II
G38: Ausencia de normatividad que regule el establecimiento de las convocatorias en el marco de las actividades de investigación. | P38: 3 | Y38: =IFERROR(IF(AND(OR(R37="Preventivo", R37="Detectivo"),OR(R38="Preventivo", R38="Detectivo")),(Y37-(+Y37*T38)),IF(OR(R38="Preventivo", R38="Detectivo"),(Y36-(+Y36*T38)),IF(R38="Correctivo",Y37,""))),"") ->  | AA38: =IFERROR(IF(AND(R37="Correctivo",R38="Correctivo"),(AA37-(+AA37*T38)),IF(R38="Correctivo",(AA36-(+AA36*T38)),IF(OR(R38="Preventivo", R38="Detectivo"),AA37,""))),"") -> 
G39: Ausencia del fondo de investigaciones | P39: 4 | Y39: =IFERROR(IF(AND(OR(R38="Preventivo", R38="Detectivo"),OR(R39="Preventivo", R39="Detectivo")),(Y38-(+Y38*T39)),IF(OR(R39="Preventivo", R39="Detectivo"),(Y37-(+Y37*T39)),IF(R39="Correctivo",Y38,""))),"") ->  | AA39: =IFERROR(IF(AND(R38="Correctivo",R39="Correctivo"),(AA38-(+AA38*T39)),IF(R39="Correctivo",(AA37-(+AA37*T39)),IF(OR(R39="Preventivo", R39="Detectivo"),AA38,""))),"") -> 
G40: Inseguridad sobre disponibilidad de recursos | P40: 5 | Y40: =IFERROR(IF(AND(OR(R39="Preventivo", R39="Detectivo"),OR(R40="Preventivo", R40="Detectivo")),(Y39-(+Y39*T40)),IF(OR(R40="Preventivo", R40="Detectivo"),(Y38-(+Y38*T40)),IF(R40="Correctivo",Y39,""))),"") ->  | AA40: =IFERROR(IF(AND(R39="Correctivo",R40="Correctivo"),(AA39-(+AA39*T40)),IF(R40="Correctivo",(AA38-(+AA38*T40)),IF(OR(R40="Preventivo", R40="Detectivo"),AA39,""))),"") -> 
P41: 6 | Y41: =IFERROR(IF(AND(OR(R40="Preventivo", R40="Detectivo"),OR(R41="Preventivo", R41="Detectivo")),(Y40-(+Y40*T41)),IF(OR(R41="Preventivo", R41="Detectivo"),(Y39-(+Y39*T41)),IF(R41="Correctivo",Y40,""))),"") ->  | AA41: =IFERROR(IF(AND(R40="Correctivo",R41="Correctivo"),(AA40-(+AA40*T41)),IF(R41="Correctivo",(AA39-(+AA39*T41)),IF(OR(R41="Preventivo", R41="Detectivo"),AA40,""))),"") -> 
Y42: =IFERROR(IF(AND(OR(R41="Preventivo", R41="Detectivo"),OR(R42="Preventivo", R42="Detectivo")),(Y41-(+Y41*T42)),IF(OR(R42="Preventivo", R42="Detectivo"),(Y40-(+Y40*T42)),IF(R42="Correctivo",Y41,""))),"") ->  | AA42: =IFERROR(IF(AND(R41="Correctivo",R42="Correctivo"),(AA41-(+AA41*T42)),IF(R42="Correctivo",(AA40-(+AA40*T42)),IF(OR(R42="Preventivo", R42="Detectivo"),AA41,""))),"") -> 
B43: 5 | C43: Posibilidad de afectación operacional por deficiencias en la Planeación de convocatorias de proyectos de investigación por desconocimiento de los procesos internos de las estructuras de investigación y las áreas de conocimiento que estos manejan.. | D43: Operativo | E43: Operacional | F43: deficiencias en la Planeación de convocatorias de proyectos de investigación. | G43: Limitación de los recursos. | H43: Limitación del desarrollo de los proyectos. | I43: Centro de Investigaciones y Desarrollo Cientifico | J43: 2 | K43: =IF(J43<=0,"",IF(J43<=2,"Muy Baja",IF(J43<=12,"Baja",IF(J43<=365,"Media",IF(J43<=5000,"Alta","Muy Alta"))))) -> Muy Baja | L43: =IF(K43="","",IF(K43="Muy Baja",0.2,IF(K43="Baja",0.4,IF(K43="Media",0.6,IF(K43="Alta",0.8,IF(K43="Muy Alta",1,)))))) -> 0.2 | M43: Moderado | N43: =IF(M43="","",IF(M43="Leve",0.2,IF(M43="Menor",0.4,IF(M43="Moderado",0.6,IF(M43="Mayor",0.8,IF(M43="Catastrófico",1,)))))) -> 0.6 | O43: =IF(OR(AND(K43="Muy Baja",M43="Leve"),AND(K43="Muy Baja",M43="Menor"),AND(K43="Baja",M43="Leve")),"BAJA",IF(OR(AND(K43="Muy baja",M43="Moderado"),AND(K43="Baja",M43="Menor"),AND(K43="Baja",M43="Moderado"),AND(K43="Media",M43="Leve"),AND(K43="Media",M43="Menor"),AND(K43="Media",M43="Moderado"),AND(K43="Alta",M43="Leve"),AND(K43="Alta",M43="Menor")),"MODERADA",IF(OR(AND(K43="Muy Baja",M43="Mayor"),AND(K43="Baja",M43="Mayor"),AND(K43="Media",M43="Mayor"),AND(K43="Alta",M43="Moderado"),AND(K43="Alta",M43="Mayor"),AND(K43="Muy Alta",M43="Leve"),AND(K43="Muy Alta",M43="Menor"),AND(K43="Muy Alta",M43="Moderado"),AND(K43="Muy Alta",M43="Mayor")),"ALTA",IF(OR(AND(K43="Muy Baja",M43="Catastrófico"),AND(K43="Baja",M43="Catastrófico"),AND(K43="Media",M43="Catastrófico"),AND(K43="Alta",M43="Catastrófico"),AND(K43="Muy Alta",M43="Catastrófico")),"EXTREMA","")))) -> MODERADA | P43: 1 | Q43: El gestor de planeacion del CIDC realiza el diseño de los términos de las convocatorias para ser expuesta y consensuada con los miembros del Comité de Investigaciones, si estos presentan observaciones se realiza el ajuste considerado, esto se realiza de manera anual y se evidencia en actas de comite | R43: Preventivo | S43: Manual | T43: 40% | U43: Documentado | V43: Continua | W43: Con registro | X43: Muy Baja | Y43: =IFERROR(IF(OR(R43="Preventivo", R43="Detectivo"),(L43-(+L43*T43)),IF(R43="Correctivo",L43,"")),"") -> 0.12 | Z43: Moderado | AA43: =IFERROR(IF(R43="Correctivo",(N43-(+N43*T43)),IF(OR(R43="Preventivo", R43="Detectivo"),N43,"")),"") -> 0.6 | AB43: MODERADA | AC43: =IF(ISBLANK(S43), O43,LOOKUP(2,1/(AB43:AB49<>""),AB43:AB49)) -> MODERADA | AD43: Reducir | AE43: Los terminos de referencia especifican los minimos esperados en cuanto a productividad | AF43: Terminos de referencia de las convocatorias | AG43: Gestor de planeacion CIDC | AH43: Semestre I
G44: Desconocimiento de los procesos internos de las estructuras de investigación y las áreas de conocimiento que estos manejan. | H44: Imposibilidad de entrega de los productos de investigación pactados con los investigadores. | P44: 2 | Q44: El director del CIDC genera un acto administrativo para el lanzamiento de las convocatorias con el fin de permitir una trazabilidad administrativa y normativa del desarrollo de las mismas evitando de esta manera confusiones o posibles actos conntra esta, de no poder realizar el lanzamiento de la misma por motu propio se envia a Rectoria para que el acto de apertura sea realizado por esta instancia este procedimiento se realiza anualmente y se evidencia en las resoluciones de apertura de las convocatorias | R44: Preventivo | S44: Manual | T44: 40% | U44: Documentado | V44: Continua | W44: Con registro | X44: Muy Baja | Y44: =IFERROR(IF(AND(OR(R43="Preventivo", R43="Detectivo"),OR(R44="Preventivo", R44="Detectivo")),(Y43-(+Y43*T44)),IF(OR(R44="Preventivo", R44="Detectivo"),(L43-(+L43*T44)),IF(R44="Correctivo",Y43,""))),"") -> 0.072 | Z44: Moderado | AA44: =IFERROR(IF(AND(R43="Correctivo",R44="Correctivo"),(AA43-(+AA43*T44)),IF(R44="Correctivo",(N43-(+N43*T44)),IF(OR(R44="Preventivo", R44="Detectivo"),AA43,""))),"") -> 0.6 | AB44: MODERADA | AE44: Para la apertura de cualquier convocatoria media la emision de un acto administrativo lo que impide se de cualquier confusion respecto a la generacion de esta, la resolucion es proyectada por un abogado del CIDC y revisada y firmada por el director del CIDC o si es necesario se envia apar aprobacion y firma del Rector | AF44: Resoluciones de apertura | AG44: Director CIDC/ Rectoria | AH44: Semestre I
G45: Ausencia de normatividad que regule el establecimiento de las convocatorias en el marco de las actividades de investigación. | P45: 3 | Y45: =IFERROR(IF(AND(OR(R44="Preventivo", R44="Detectivo"),OR(R45="Preventivo", R45="Detectivo")),(Y44-(+Y44*T45)),IF(OR(R45="Preventivo", R45="Detectivo"),(Y43-(+Y43*T45)),IF(R45="Correctivo",Y44,""))),"") ->  | AA45: =IFERROR(IF(AND(R44="Correctivo",R45="Correctivo"),(AA44-(+AA44*T45)),IF(R45="Correctivo",(AA43-(+AA43*T45)),IF(OR(R45="Preventivo", R45="Detectivo"),AA44,""))),"") -> 
P46: 4 | Y46: =IFERROR(IF(AND(OR(R45="Preventivo", R45="Detectivo"),OR(R46="Preventivo", R46="Detectivo")),(Y45-(+Y45*T46)),IF(OR(R46="Preventivo", R46="Detectivo"),(Y44-(+Y44*T46)),IF(R46="Correctivo",Y45,""))),"") ->  | AA46: =IFERROR(IF(AND(R45="Correctivo",R46="Correctivo"),(AA45-(+AA45*T46)),IF(R46="Correctivo",(AA44-(+AA44*T46)),IF(OR(R46="Preventivo", R46="Detectivo"),AA45,""))),"") -> 
P47: 5 | Y47: =IFERROR(IF(AND(OR(R46="Preventivo", R46="Detectivo"),OR(R47="Preventivo", R47="Detectivo")),(Y46-(+Y46*T47)),IF(OR(R47="Preventivo", R47="Detectivo"),(Y45-(+Y45*T47)),IF(R47="Correctivo",Y46,""))),"") ->  | AA47: =IFERROR(IF(AND(R46="Correctivo",R47="Correctivo"),(AA46-(+AA46*T47)),IF(R47="Correctivo",(AA45-(+AA45*T47)),IF(OR(R47="Preventivo", R47="Detectivo"),AA46,""))),"") -> 
P48: 6 | Y48: =IFERROR(IF(AND(OR(R47="Preventivo", R47="Detectivo"),OR(R48="Preventivo", R48="Detectivo")),(Y47-(+Y47*T48)),IF(OR(R48="Preventivo", R48="Detectivo"),(Y46-(+Y46*T48)),IF(R48="Correctivo",Y47,""))),"") ->  | AA48: =IFERROR(IF(AND(R47="Correctivo",R48="Correctivo"),(AA47-(+AA47*T48)),IF(R48="Correctivo",(AA46-(+AA46*T48)),IF(OR(R48="Preventivo", R48="Detectivo"),AA47,""))),"") -> 
P49: 7 | Y49: =IFERROR(IF(AND(OR(R48="Preventivo", R48="Detectivo"),OR(R49="Preventivo", R49="Detectivo")),(Y48-(+Y48*T49)),IF(OR(R49="Preventivo", R49="Detectivo"),(Y47-(+Y47*T49)),IF(R49="Correctivo",Y48,""))),"") ->  | AA49: =IFERROR(IF(AND(R48="Correctivo",R49="Correctivo"),(AA48-(+AA48*T49)),IF(R49="Correctivo",(AA47-(+AA47*T49)),IF(OR(R49="Preventivo", R49="Detectivo"),AA48,""))),"") -> 
B50: 6 | C50: Posibilidad de afectación al apoyo de los procesos misionales y reputacional por escasa cantidad de procesos de apropiación social del conocimiento resultado de las investigaciones de la Universidad por falta de presupuesto para el financiamiento de actividades de socialización, divulgación y difusión de actividades de investigación | D50: Operativo | E50: Afectación a los Procesos Misionales Reputacional | F50: Deficiencias en la Planeación de convocatorias de proyectos de investigación. | G50: Limitación de los recursos. | H50: Limitación del desarrollo de los proyectos. | I50: Centro de Investigaciones y Desarrollo Cientifico | J50: 12 | K50: =IF(J50<=0,"",IF(J50<=2,"Muy Baja",IF(J50<=12,"Baja",IF(J50<=365,"Media",IF(J50<=5000,"Alta","Muy Alta"))))) -> Baja | L50: =IF(K50="","",IF(K50="Muy Baja",0.2,IF(K50="Baja",0.4,IF(K50="Media",0.6,IF(K50="Alta",0.8,IF(K50="Muy Alta",1,)))))) -> 0.4 | M50: Moderado | N50: =IF(M50="","",IF(M50="Leve",0.2,IF(M50="Menor",0.4,IF(M50="Moderado",0.6,IF(M50="Mayor",0.8,IF(M50="Catastrófico",1,)))))) -> 0.6 | O50: =IF(OR(AND(K50="Muy Baja",M50="Leve"),AND(K50="Muy Baja",M50="Menor"),AND(K50="Baja",M50="Leve")),"BAJA",IF(OR(AND(K50="Muy baja",M50="Moderado"),AND(K50="Baja",M50="Menor"),AND(K50="Baja",M50="Moderado"),AND(K50="Media",M50="Leve"),AND(K50="Media",M50="Menor"),AND(K50="Media",M50="Moderado"),AND(K50="Alta",M50="Leve"),AND(K50="Alta",M50="Menor")),"MODERADA",IF(OR(AND(K50="Muy Baja",M50="Mayor"),AND(K50="Baja",M50="Mayor"),AND(K50="Media",M50="Mayor"),AND(K50="Alta",M50="Moderado"),AND(K50="Alta",M50="Mayor"),AND(K50="Muy Alta",M50="Leve"),AND(K50="Muy Alta",M50="Menor"),AND(K50="Muy Alta",M50="Moderado"),AND(K50="Muy Alta",M50="Mayor")),"ALTA",IF(OR(AND(K50="Muy Baja",M50="Catastrófico"),AND(K50="Baja",M50="Catastrófico"),AND(K50="Media",M50="Catastrófico"),AND(K50="Alta",M50="Catastrófico"),AND(K50="Muy Alta",M50="Catastrófico")),"EXTREMA","")))) -> MODERADA | P50: 1 | Q50: Los investigadores principales de cada proyecto deben generar informes de Gestión de la apropiación social del conocimiento en donde indiquen actividades de investigación desarrolladas, en caso de no haber desarrollado estas se debe generar explicacion del porque y el plan de accion para subsanar el hecho, esto se realizara de manera semestral, se evidencia en informes de seguimiento a proyectos | R50: Detectivo | S50: Manual | T50: 30% | U50: Documentado | V50: Continua | W50: Con registro | X50: Baja | Y50: =IFERROR(IF(OR(R50="Preventivo", R50="Detectivo"),(L50-(+L50*T50)),IF(R50="Correctivo",L50,"")),"") -> 0.28 | Z50: Moderado | AA50: =IFERROR(IF(R50="Correctivo",(N50-(+N50*T50)),IF(OR(R50="Preventivo", R50="Detectivo"),N50,"")),"") -> 0.6 | AB50: MODERADA | AC50: =IF(ISBLANK(S50), O50,LOOKUP(2,1/(AB50:AB56<>""),AB50:AB56)) -> MODERADA | AD50: Reducir | AE50: Generación de un proyecto de acuerdo sobre libros digitales y de acceso abierto
G51: Desconocimiento de los procesos internos de las estructuras de investigación y las áreas de conocimiento que estos manejan. | H51: Imposibilidad de entrega de los productos de investigación pactados con los investigadores. | P51: 2 | Q51: Los gestores informaticos del CIDC revisan de manera constante los requerimientos de los investigadores y de los miembros del euipo del CIDC sobre el sistema de informacion del CIDC para realizar las mejoras a lugar, en caso de encontrar fallas se procedera por parte de este equipo informatico a investigar y corregir la falla presentada en el sistema, asi mismo se debera hacer revision constante para una mejora continua del sistema. Se evidencia en informes de gestion del equipo. | R51: Preventivo | S51: Manual | T51: 40% | U51: Documentado | V51: Continua | W51: Con registro | X51: Muy Baja | Y51: =IFERROR(IF(AND(OR(R50="Preventivo", R50="Detectivo"),OR(R51="Preventivo", R51="Detectivo")),(Y50-(+Y50*T51)),IF(OR(R51="Preventivo", R51="Detectivo"),(L50-(+L50*T51)),IF(R51="Correctivo",Y50,""))),"") -> 0.168 | Z51: Moderado | AA51: =IFERROR(IF(AND(R50="Correctivo",R51="Correctivo"),(AA50-(+AA50*T51)),IF(R51="Correctivo",(N50-(+N50*T51)),IF(OR(R51="Preventivo", R51="Detectivo"),AA50,""))),"") -> 0.6 | AB51: MODERADA | AE51: Los terminos de referencia especifican los minimos esperados en cuanto a productividad | AF51: Terminos de referencia de las convocatorias | AG51: Gestor de planeacion CIDC
G52: Ausencia de normatividad que regule el establecimiento de las convocatorias en el marco de las actividades de investigación. | P52: 3 | Q52: El gestor de grupos y semilleros de investigacion propone un plan de socialización de resultados de investigación en diferentes espacios para conocimiento de la comunidad universitaria el cual se realiza de manera anual, en caso de generarse inconvenientes para el desarrollo del plan se generan alternativas que permitan la visibilización de los resultados de investigación por la comunidad universitaria. Se evidencia en informes de los eventos y registros de los mismos. | R52: Preventivo | S52: Manual | T52: 40% | U52: Documentado | V52: Continua | W52: Con registro | X52: Muy Baja | Y52: =IFERROR(IF(AND(OR(R51="Preventivo", R51="Detectivo"),OR(R52="Preventivo", R52="Detectivo")),(Y51-(+Y51*T52)),IF(OR(R52="Preventivo", R52="Detectivo"),(Y50-(+Y50*T52)),IF(R52="Correctivo",Y51,""))),"") -> 0.1008 | Z52: Moderado | AA52: =IFERROR(IF(AND(R51="Correctivo",R52="Correctivo"),(AA51-(+AA51*T52)),IF(R52="Correctivo",(AA50-(+AA50*T52)),IF(OR(R52="Preventivo", R52="Detectivo"),AA51,""))),"") -> 0.6 | AB52: MODERADA | AE52: Para la apertura de cualquier convocatoria media la emision de un acto administrativo lo que impide se de cualquier confusion respecto a la generacion de esta, la resolucion es proyectada por un abogado del CIDC y revisada y firmada por el director del CIDC o si es necesario se envia apar aprobacion y firma del Rector | AF52: Resoluciones de apertura | AG52: Director CIDC/ Rectoria
G53: Procesos de gestión de publicaciones dificultosos | H53: Desistimiento del proceso de publicación por parte de los investigadores | P53: 4 | Q53: Se determina un estimado para socializaciones de resultados en el presupuesto anual de inversión | R53: Preventivo | S53: Manual | T53: 40% | U53: Documentado | V53: Continua | W53: Con registro | X53: Muy Baja | Y53: =IFERROR(IF(AND(OR(R52="Preventivo", R52="Detectivo"),OR(R53="Preventivo", R53="Detectivo")),(Y52-(+Y52*T53)),IF(OR(R53="Preventivo", R53="Detectivo"),(Y51-(+Y51*T53)),IF(R53="Correctivo",Y52,""))),"") -> 0.06048 | Z53: Moderado | AA53: =IFERROR(IF(AND(R52="Correctivo",R53="Correctivo"),(AA52-(+AA52*T53)),IF(R53="Correctivo",(AA51-(+AA51*T53)),IF(OR(R53="Preventivo", R53="Detectivo"),AA52,""))),"") -> 0.6 | AB53: MODERADA
P54: 5 | Y54: =IFERROR(IF(AND(OR(R53="Preventivo", R53="Detectivo"),OR(R54="Preventivo", R54="Detectivo")),(Y53-(+Y53*T54)),IF(OR(R54="Preventivo", R54="Detectivo"),(Y52-(+Y52*T54)),IF(R54="Correctivo",Y53,""))),"") ->  | AA54: =IFERROR(IF(AND(R53="Correctivo",R54="Correctivo"),(AA53-(+AA53*T54)),IF(R54="Correctivo",(AA52-(+AA52*T54)),IF(OR(R54="Preventivo", R54="Detectivo"),AA53,""))),"") -> 
P55: 6 | Y55: =IFERROR(IF(AND(OR(R54="Preventivo", R54="Detectivo"),OR(R55="Preventivo", R55="Detectivo")),(Y54-(+Y54*T55)),IF(OR(R55="Preventivo", R55="Detectivo"),(Y53-(+Y53*T55)),IF(R55="Correctivo",Y54,""))),"") ->  | AA55: =IFERROR(IF(AND(R54="Correctivo",R55="Correctivo"),(AA54-(+AA54*T55)),IF(R55="Correctivo",(AA53-(+AA53*T55)),IF(OR(R55="Preventivo", R55="Detectivo"),AA54,""))),"") -> 
P56: 7 | Y56: =IFERROR(IF(AND(OR(R55="Preventivo", R55="Detectivo"),OR(R56="Preventivo", R56="Detectivo")),(Y55-(+Y55*T56)),IF(OR(R56="Preventivo", R56="Detectivo"),(Y54-(+Y54*T56)),IF(R56="Correctivo",Y55,""))),"") ->  | AA56: =IFERROR(IF(AND(R55="Correctivo",R56="Correctivo"),(AA55-(+AA55*T56)),IF(R56="Correctivo",(AA54-(+AA54*T56)),IF(OR(R56="Preventivo", R56="Detectivo"),AA55,""))),"") -> 
B57: 7 | C57: Posibilidad de afectación a la gestión institucional por deficiencias en el control, seguimiento y evaluación de las actividades de investigación debido a incumplimiento de compromisos de proyectos de investigación | D57: Estratégico | E57: Afectación al a gestión institucional | F57: Deficiencias en el control, seguimiento y evaluación de las actividades de investigación. | G57: Falta de entrega de informes periodicos del desarrollo de actividades y resultados logrados por las diferentes estructuras de investigación. | H57: Desinstitucionalización de estructuras de investigación. | I57: Centro de Investigaciones y Desarrollo Cientifico | J57: 2 | K57: =IF(J57<=0,"",IF(J57<=2,"Muy Baja",IF(J57<=12,"Baja",IF(J57<=365,"Media",IF(J57<=5000,"Alta","Muy Alta"))))) -> Muy Baja | L57: =IF(K57="","",IF(K57="Muy Baja",0.2,IF(K57="Baja",0.4,IF(K57="Media",0.6,IF(K57="Alta",0.8,IF(K57="Muy Alta",1,)))))) -> 0.2 | M57: Moderado | N57: =IF(M57="","",IF(M57="Leve",0.2,IF(M57="Menor",0.4,IF(M57="Moderado",0.6,IF(M57="Mayor",0.8,IF(M57="Catastrófico",1,)))))) -> 0.6 | O57: =IF(OR(AND(K57="Muy Baja",M57="Leve"),AND(K57="Muy Baja",M57="Menor"),AND(K57="Baja",M57="Leve")),"BAJA",IF(OR(AND(K57="Muy baja",M57="Moderado"),AND(K57="Baja",M57="Menor"),AND(K57="Baja",M57="Moderado"),AND(K57="Media",M57="Leve"),AND(K57="Media",M57="Menor"),AND(K57="Media",M57="Moderado"),AND(K57="Alta",M57="Leve"),AND(K57="Alta",M57="Menor")),"MODERADA",IF(OR(AND(K57="Muy Baja",M57="Mayor"),AND(K57="Baja",M57="Mayor"),AND(K57="Media",M57="Mayor"),AND(K57="Alta",M57="Moderado"),AND(K57="Alta",M57="Mayor"),AND(K57="Muy Alta",M57="Leve"),AND(K57="Muy Alta",M57="Menor"),AND(K57="Muy Alta",M57="Moderado"),AND(K57="Muy Alta",M57="Mayor")),"ALTA",IF(OR(AND(K57="Muy Baja",M57="Catastrófico"),AND(K57="Baja",M57="Catastrófico"),AND(K57="Media",M57="Catastrófico"),AND(K57="Alta",M57="Catastrófico"),AND(K57="Muy Alta",M57="Catastrófico")),"EXTREMA","")))) -> MODERADA | P57: 1 | Q57: Los directores de los grupos y los tutores de los semilleros de investigación deben generar informes de Gestión anuales de las estructuras de investigación, para su revision y seguimiento por parte del gestor de grupos y semilleros de investigación. Esto se evidencia en los informes de gestion de los grupos y semilleros. | R57: Preventivo | S57: Manual | T57: 40% | U57: Documentado | V57: Continua | W57: Con registro | X57: Muy Baja | Y57: =IFERROR(IF(OR(R57="Preventivo", R57="Detectivo"),(L57-(+L57*T57)),IF(R57="Correctivo",L57,"")),"") -> 0.12 | Z57: Moderado | AA57: =IFERROR(IF(R57="Correctivo",(N57-(+N57*T57)),IF(OR(R57="Preventivo", R57="Detectivo"),N57,"")),"") -> 0.6 | AB57: MODERADA | AC57: =IF(ISBLANK(S57), O57,LOOKUP(2,1/(AB57:AB63<>""),AB57:AB63)) -> MODERADA | AE57: Las estructuras de investigacion deben presentar oportunamente su informe de gestion dando cuenta de lo realizado durante el año, se encuentra en diseño la normatividad que regulara el seguimiento a este proceso | AF57: Informes de gestión de estructuras de investigación | AG57: Directores de Grupos de Investigación | AH57: Trimestre I
G58: Falta de interés de los investigadores para cumplir los compromisos adquiridos con la Universidad. | H58: Desmonte de convocatorias para el financiamiento de actividades investigativas desarrolladas por las estructuras de investigación. | P58: 2 | Q58: El gestor de grupos y semilleros realiza el diagnóstico de las estructuras de investigación basado en los informes generados por estas, esta revision se realiza de manera anual, en caso de encontrar falencias o ausencia de algun informe se informara a los directores y tutores para su corrección o el envio de planes de accion con las mejoras y ajustes de lo no conseguido en el año. Esto se evidencia en informes de diagnostico. | R58: Detectivo | S58: Manual | T58: 30% | U58: Documentado | V58: Continua | W58: Con registro | X58: Muy Baja | Y58: =IFERROR(IF(AND(OR(R57="Preventivo", R57="Detectivo"),OR(R58="Preventivo", R58="Detectivo")),(Y57-(+Y57*T58)),IF(OR(R58="Preventivo", R58="Detectivo"),(L57-(+L57*T58)),IF(R58="Correctivo",Y57,""))),"") -> 0.084 | Z58: Moderado | AA58: =IFERROR(IF(AND(R57="Correctivo",R58="Correctivo"),(AA57-(+AA57*T58)),IF(R58="Correctivo",(N57-(+N57*T58)),IF(OR(R58="Preventivo", R58="Detectivo"),AA57,""))),"") -> 0.6 | AB58: MODERADA | AE58: Se realiza un diagnostico para detectar el desempeño de los grupos de investigacion y el gestor de los grupos genera realimentacion de estos a los directores y tutores lo cual debe consignarse en el informe de diagnostico, este se realiza en los 2 primeros meses del año | AF58: Informe de diagnostico | AG58: Gestor de Grupos CIDC/ Asistentes de unidades de investigacion | AH58: Trimestre II
G59: Falta de un sistema que canalice la información recopilada y desarrollada por el CIDC sobre los logros alcanzados en las actividades de investigación. | H59: Debilitamiento de los sistemas de información como herramienta de seguimiento y control de las estructuras de investigación. | P59: 3 | Q59: Los gestores de los proyectos de investigación realizan el seguimiento y Actualización de Proyectos de Investigación basados en los informes presentados por los investigadores principales, en caso de encontrarse dificultades o inconsistencias se informa al investigador para corregir o plantear plan de acción para solventar la dificultad encontrada. esta revision se realiza semestralmente. Se evidencia en los informes de seguimiento y correos enviados a los investigadores. | R59: Correctivo | S59: Manual | T59: 25% | U59: Documentado | V59: Continua | W59: Con registro | X59: Muy Baja | Y59: =IFERROR(IF(AND(OR(R58="Preventivo", R58="Detectivo"),OR(R59="Preventivo", R59="Detectivo")),(Y58-(+Y58*T59)),IF(OR(R59="Preventivo", R59="Detectivo"),(Y57-(+Y57*T59)),IF(R59="Correctivo",Y58,""))),"") -> 0.084 | Z59: Moderado | AA59: =IFERROR(IF(AND(R58="Correctivo",R59="Correctivo"),(AA58-(+AA58*T59)),IF(R59="Correctivo",(AA57-(+AA57*T59)),IF(OR(R59="Preventivo", R59="Detectivo"),AA58,""))),"") -> 0.45 | AB59: MODERADA | AE59: Se realiza revision semestral de los informes de proyectos para detectar posibles desviaciones y asi determinar posibles cursos de acción que impidan la no entrega de resultados | AF59: Informes de seguimiento | AG59: Equipo de seguimiento a proyectos | AH59: Toda la vigencia
G60: Falta de un sistema de evaluación de las actividades de investigación desarrolladas por las estructuras de investigación. | H60: Retraso en la visibilidad de productos de investigación. | P60: 4 | Y60: =IFERROR(IF(AND(OR(R59="Preventivo", R59="Detectivo"),OR(R60="Preventivo", R60="Detectivo")),(Y59-(+Y59*T60)),IF(OR(R60="Preventivo", R60="Detectivo"),(Y58-(+Y58*T60)),IF(R60="Correctivo",Y59,""))),"") ->  | AA60: =IFERROR(IF(AND(R59="Correctivo",R60="Correctivo"),(AA59-(+AA59*T60)),IF(R60="Correctivo",(AA58-(+AA58*T60)),IF(OR(R60="Preventivo", R60="Detectivo"),AA59,""))),"") -> 
G61: Faltra de claridad de plan de adquisiciones de proyecto | H61: Posibles otorgamientos de descargas de horas lectivas a docentes de la Universidad por proyectos de investigación en fase de cierre. | P61: 5 | Y61: =IFERROR(IF(AND(OR(R60="Preventivo", R60="Detectivo"),OR(R61="Preventivo", R61="Detectivo")),(Y60-(+Y60*T61)),IF(OR(R61="Preventivo", R61="Detectivo"),(Y59-(+Y59*T61)),IF(R61="Correctivo",Y60,""))),"") ->  | AA61: =IFERROR(IF(AND(R60="Correctivo",R61="Correctivo"),(AA60-(+AA60*T61)),IF(R61="Correctivo",(AA59-(+AA59*T61)),IF(OR(R61="Preventivo", R61="Detectivo"),AA60,""))),"") -> 
H62: Reportes de información no confiables en cuanto proyectos de investigación vigentes. | P62: 6 | Y62: =IFERROR(IF(AND(OR(R61="Preventivo", R61="Detectivo"),OR(R62="Preventivo", R62="Detectivo")),(Y61-(+Y61*T62)),IF(OR(R62="Preventivo", R62="Detectivo"),(Y60-(+Y60*T62)),IF(R62="Correctivo",Y61,""))),"") ->  | AA62: =IFERROR(IF(AND(R61="Correctivo",R62="Correctivo"),(AA61-(+AA61*T62)),IF(R62="Correctivo",(AA60-(+AA60*T62)),IF(OR(R62="Preventivo", R62="Detectivo"),AA61,""))),"") -> 
P63: 7 | Y63: =IFERROR(IF(AND(OR(R62="Preventivo", R62="Detectivo"),OR(R63="Preventivo", R63="Detectivo")),(Y62-(+Y62*T63)),IF(OR(R63="Preventivo", R63="Detectivo"),(Y61-(+Y61*T63)),IF(R63="Correctivo",Y62,""))),"") ->  | AA63: =IFERROR(IF(AND(R62="Correctivo",R63="Correctivo"),(AA62-(+AA62*T63)),IF(R63="Correctivo",(AA61-(+AA61*T63)),IF(OR(R63="Preventivo", R63="Detectivo"),AA62,""))),"") -> 
Y64: =IFERROR(IF(AND(OR(#REF!="Preventivo",#REF!= "Detectivo"),OR(R64="Preventivo", R64="Detectivo")),(#REF!-(+#REF!*T64)),IF(OR(R64="Preventivo", R64="Detectivo"),(#REF!-(+#REF!*T64)),IF(R64="Correctivo",#REF!,""))),"") ->  | AA64: =IFERROR(IF(AND(#REF!="Correctivo",R64="Correctivo"),(#REF!-(+#REF!*T64)),IF(R64="Correctivo",(#REF!-(+#REF!*T64)),IF(OR(R64="Preventivo", R64="Detectivo"),#REF!,""))),"") -> 
B65: 8 | C65: Afectación en el cumplimiento de las metas establecidas en el Plan de Acción debido a la falta de interés y baja participación en las convocatorias enviadas a los grupos de investigación, maestrías y doctorado adscritos al Instituto I3+. | D65: Cumplimiento | E65: Afectación al cumplimineto de metas | F65: Baja participación en las convocatorias enviadas. | G65: Falta de Interés y participación. | H65: Bajo redimiento en el cumplimiento de indicadores establecidos en el plan de acción. | I65: Instituto de Investigación e Innovación en Ingenieria I3+ | J65: 35 | K65: =IF(J65<=0,"",IF(J65<=2,"Muy Baja",IF(J65<=12,"Baja",IF(J65<=365,"Media",IF(J65<=5000,"Alta","Muy Alta"))))) -> Media | L65: =IF(K65="","",IF(K65="Muy Baja",0.2,IF(K65="Baja",0.4,IF(K65="Media",0.6,IF(K65="Alta",0.8,IF(K65="Muy Alta",1,)))))) -> 0.6 | M65: Leve | N65: =IF(M65="","",IF(M65="Leve",0.2,IF(M65="Menor",0.4,IF(M65="Moderado",0.6,IF(M65="Mayor",0.8,IF(M65="Catastrófico",1,)))))) -> 0.2 | O65: =IF(OR(AND(K65="Muy Baja",M65="Leve"),AND(K65="Muy Baja",M65="Menor"),AND(K65="Baja",M65="Leve")),"BAJA",IF(OR(AND(K65="Muy baja",M65="Moderado"),AND(K65="Baja",M65="Menor"),AND(K65="Baja",M65="Moderado"),AND(K65="Media",M65="Leve"),AND(K65="Media",M65="Menor"),AND(K65="Media",M65="Moderado"),AND(K65="Alta",M65="Leve"),AND(K65="Alta",M65="Menor")),"MODERADA",IF(OR(AND(K65="Muy Baja",M65="Mayor"),AND(K65="Baja",M65="Mayor"),AND(K65="Media",M65="Mayor"),AND(K65="Alta",M65="Moderado"),AND(K65="Alta",M65="Mayor"),AND(K65="Muy Alta",M65="Leve"),AND(K65="Muy Alta",M65="Menor"),AND(K65="Muy Alta",M65="Moderado"),AND(K65="Muy Alta",M65="Mayor")),"ALTA",IF(OR(AND(K65="Muy Baja",M65="Catastrófico"),AND(K65="Baja",M65="Catastrófico"),AND(K65="Media",M65="Catastrófico"),AND(K65="Alta",M65="Catastrófico"),AND(K65="Muy Alta",M65="Catastrófico")),"EXTREMA","")))) -> MODERADA | P65: 1 | Q65: El equipo de proyectos del Instituto brinda asesoria y organiza mesas de trabajo para guiar a los investigadores en el proceso de presentacion de proyectos a las convocatorias. | R65: Preventivo | S65: Manual | T65: 40% | U65: Documentado | V65: Continua | W65: Con registro | X65: Baja | Y65: =IFERROR(IF(OR(R65="Preventivo", R65="Detectivo"),(L65-(+L65*T65)),IF(R65="Correctivo",L65,"")),"") -> 0.36 | Z65: Leve | AA65: =IFERROR(IF(R65="Correctivo",(N65-(+N65*T65)),IF(OR(R65="Preventivo", R65="Detectivo"),N65,"")),"") -> 0.2 | AB65: BAJA | AC65: =IF(ISBLANK(S65), O65,LOOKUP(2,1/(AB65:AB67<>""),AB65:AB67)) -> BAJA | AD65: Reducir | AE65: Identificación de los grupos de Investigación, Maestria y Doctorado, cuyas lineas de investigación se enfoquen en las tematicas especificas de cada convocatoria, con el fin de establecer comunicación directa, asesoria e incentivar su participación | AF65: *Correos de convocatorias compartidas. *Asesorias realizadas. | AG65: Equipo I3+ | AH65: Toda la vigencia
G66: No se cumplen en su totalidad los requisitos exigidos en la convocatoria. | H66: Baja calificación en los indicadores de gestión de la Universidad. | P66: 2 | Q66: El Instituto realiza la difusión de dichas convocatorias de manera permanente a los diferentes grupos de Investigación, Maestrias y Doctorado adscritos al I3+, esto se evidencia en los correos enviados, el canal directo de comunicación y las publicaciones realizadas en las redes sociales. | R66: Preventivo | S66: Manual | T66: 40% | U66: Documentado | V66: Continua | W66: Con registro | X66: Baja | Y66: =IFERROR(IF(AND(OR(R65="Preventivo", R65="Detectivo"),OR(R66="Preventivo", R66="Detectivo")),(Y65-(+Y65*T66)),IF(OR(R66="Preventivo", R66="Detectivo"),(L65-(+L65*T66)),IF(R66="Correctivo",Y65,""))),"") -> 0.216 | Z66: Leve | AA66: =IFERROR(IF(AND(R65="Correctivo",R66="Correctivo"),(AA65-(+AA65*T66)),IF(R66="Correctivo",(N65-(+N65*T66)),IF(OR(R66="Preventivo", R66="Detectivo"),AA65,""))),"") -> 0.2 | AB66: BAJA
G67: Falta de articulacion entre grupos. | H67: Disminución o pérdida de categoría de los grupos de investigación e investigadores en el marco de las convocatorias de MINCIENCIAS. | P67: 3 | Y67: =IFERROR(IF(AND(OR(R66="Preventivo", R66="Detectivo"),OR(R67="Preventivo", R67="Detectivo")),(Y66-(+Y66*T67)),IF(OR(R67="Preventivo", R67="Detectivo"),(Y65-(+Y65*T67)),IF(R67="Correctivo",Y66,""))),"") ->  | AA67: =IFERROR(IF(AND(R66="Correctivo",R67="Correctivo"),(AA66-(+AA66*T67)),IF(R67="Correctivo",(AA65-(+AA65*T67)),IF(OR(R67="Preventivo", R67="Detectivo"),AA66,""))),"") -> 
B68: 9 | C68: Posibilidad de afectación operacional por deficiencias en el cumplimiento de requisitos y tiempos establecidos de las convocatorias, debido a Inconvenientes en los procesos de gestión | D68: Operativo | E68: Operacional | F68: Deficiencias en el proceso de presentación a convocatorias. | G68: Inconvenientes en los procesos de gestión interna de la Universidad. (tiempos, firmas) | H68: Demoras en los tiempos de postulación y presentación a las convocatorias. | I68: Instituto de Investigación e Innovación en Ingenieria I3+ | J68: 3 | K68: =IF(J68<=0,"",IF(J68<=2,"Muy Baja",IF(J68<=12,"Baja",IF(J68<=365,"Media",IF(J68<=5000,"Alta","Muy Alta"))))) -> Baja | L68: =IF(K68="","",IF(K68="Muy Baja",0.2,IF(K68="Baja",0.4,IF(K68="Media",0.6,IF(K68="Alta",0.8,IF(K68="Muy Alta",1,)))))) -> 0.4 | M68: Leve | N68: =IF(M68="","",IF(M68="Leve",0.2,IF(M68="Menor",0.4,IF(M68="Moderado",0.6,IF(M68="Mayor",0.8,IF(M68="Catastrófico",1,)))))) -> 0.2 | O68: =IF(OR(AND(K68="Muy Baja",M68="Leve"),AND(K68="Muy Baja",M68="Menor"),AND(K68="Baja",M68="Leve")),"BAJA",IF(OR(AND(K68="Muy baja",M68="Moderado"),AND(K68="Baja",M68="Menor"),AND(K68="Baja",M68="Moderado"),AND(K68="Media",M68="Leve"),AND(K68="Media",M68="Menor"),AND(K68="Media",M68="Moderado"),AND(K68="Alta",M68="Leve"),AND(K68="Alta",M68="Menor")),"MODERADA",IF(OR(AND(K68="Muy Baja",M68="Mayor"),AND(K68="Baja",M68="Mayor"),AND(K68="Media",M68="Mayor"),AND(K68="Alta",M68="Moderado"),AND(K68="Alta",M68="Mayor"),AND(K68="Muy Alta",M68="Leve"),AND(K68="Muy Alta",M68="Menor"),AND(K68="Muy Alta",M68="Moderado"),AND(K68="Muy Alta",M68="Mayor")),"ALTA",IF(OR(AND(K68="Muy Baja",M68="Catastrófico"),AND(K68="Baja",M68="Catastrófico"),AND(K68="Media",M68="Catastrófico"),AND(K68="Alta",M68="Catastrófico"),AND(K68="Muy Alta",M68="Catastrófico")),"EXTREMA","")))) -> BAJA | P68: 1 | Q68: No hay controles establecidos | R68: Preventivo | S68: Manual | T68: =IF(AND(R68="Preventivo",S68="Automático"),"50%",IF(AND(R68="Preventivo",S68="Manual"),"40%",IF(AND(R68="Detectivo",S68="Automático"),"40%",IF(AND(R68="Detectivo",S68="Manual"),"30%",IF(AND(R68="Correctivo",S68="Automático"),"35%",IF(AND(R68="Correctivo",S68="Manual"),"25%","")))))) -> 40% | U68: Sin documentar | V68: Aleatoria | W68: Sin registro | X68: Baja | Y68: =IFERROR(IF(OR(R68="Preventivo", R68="Detectivo"),(L68-(+L68*T68)),IF(R68="Correctivo",L68,"")),"") -> 0.24 | Z68: Leve | AA68: =IFERROR(IF(R68="Correctivo",(N68-(+N68*T68)),IF(OR(R68="Preventivo", R68="Detectivo"),N68,"")),"") -> 0.2 | AB68: BAJA | AC68: =IF(ISBLANK(S68), O68,LOOKUP(2,1/(AB68:AB69<>""),AB68:AB69)) -> BAJA | AD68: Evitar | AE68: Establecer una guia de ruta para identificar demoras en el proceso de presentación. | AF68: Terminos de referencia de las convocatorias | AG68: Equipo I3+ | AH68: Toda la vigencia
P69: 2 | R69: Preventivo | S69: Manual | T69: =IF(AND(R69="Preventivo",S69="Automático"),"50%",IF(AND(R69="Preventivo",S69="Manual"),"40%",IF(AND(R69="Detectivo",S69="Automático"),"40%",IF(AND(R69="Detectivo",S69="Manual"),"30%",IF(AND(R69="Correctivo",S69="Automático"),"35%",IF(AND(R69="Correctivo",S69="Manual"),"25%","")))))) -> 40% | U69: Documentado | V69: Continua | W69: Con registro | X69: Muy Baja | Y69: =IFERROR(IF(AND(OR(R68="Preventivo", R68="Detectivo"),OR(R69="Preventivo", R69="Detectivo")),(Y68-(+Y68*T69)),IF(OR(R69="Preventivo", R69="Detectivo"),(L68-(+L68*T69)),IF(R69="Correctivo",Y68,""))),"") -> 0.144 | Z69: Leve | AA69: =IFERROR(IF(AND(R68="Correctivo",R69="Correctivo"),(AA68-(+AA68*T69)),IF(R69="Correctivo",(N68-(+N68*T69)),IF(OR(R69="Preventivo", R69="Detectivo"),AA68,""))),"") -> 0.2 | AB69: BAJA
B70: 10 | C70: Posibilidad de afectación reputacional por el desfinanciamiento de revistas no indexadas debido a la disminución del presupuesto de la Universidad | D70: Imagen o reputacional | E70: Afectación reputacional | F70: Restricción de apoyo económico institucional para las revistas no indexadas | G70: Alineamiento insitucional a las lógicas de evaluación de Publindex | H70: Desconocimiento de la contrucción social de conocimiento de las comunidades académicas | I70: Cátedra UNESCO en Desarrollo del Niño | J70: 365 | K70: =IF(J70<=0,"",IF(J70<=2,"Muy Baja",IF(J70<=12,"Baja",IF(J70<=365,"Media",IF(J70<=5000,"Alta","Muy Alta"))))) -> Media | L70: =IF(K70="","",IF(K70="Muy Baja",0.2,IF(K70="Baja",0.4,IF(K70="Media",0.6,IF(K70="Alta",0.8,IF(K70="Muy Alta",1,)))))) -> 0.6 | M70: Mayor | N70: =IF(M70="","",IF(M70="Leve",0.2,IF(M70="Menor",0.4,IF(M70="Moderado",0.6,IF(M70="Mayor",0.8,IF(M70="Catastrófico",1,)))))) -> 0.8 | O70: =IF(OR(AND(K70="Muy Baja",M70="Leve"),AND(K70="Muy Baja",M70="Menor"),AND(K70="Baja",M70="Leve")),"BAJA",IF(OR(AND(K70="Muy baja",M70="Moderado"),AND(K70="Baja",M70="Menor"),AND(K70="Baja",M70="Moderado"),AND(K70="Media",M70="Leve"),AND(K70="Media",M70="Menor"),AND(K70="Media",M70="Moderado"),AND(K70="Alta",M70="Leve"),AND(K70="Alta",M70="Menor")),"MODERADA",IF(OR(AND(K70="Muy Baja",M70="Mayor"),AND(K70="Baja",M70="Mayor"),AND(K70="Media",M70="Mayor"),AND(K70="Alta",M70="Moderado"),AND(K70="Alta",M70="Mayor"),AND(K70="Muy Alta",M70="Leve"),AND(K70="Muy Alta",M70="Menor"),AND(K70="Muy Alta",M70="Moderado"),AND(K70="Muy Alta",M70="Mayor")),"ALTA",IF(OR(AND(K70="Muy Baja",M70="Catastrófico"),AND(K70="Baja",M70="Catastrófico"),AND(K70="Media",M70="Catastrófico"),AND(K70="Alta",M70="Catastrófico"),AND(K70="Muy Alta",M70="Catastrófico")),"EXTREMA","")))) -> ALTA | P70: 1 | Q70: El jefe de la Cátedra UNESCO junto al equipo de contratación realiza todo el proceso de contratación de un proveedor que realice la gestión editorial, corrección de estilo y diagramación del volumen del año para aseguar la publicación y difusión de la revista Infancias Imágenes. Esto se evidencia en la documentación precontractual, contractual y poscontractual de los procesos. | R70: Correctivo | S70: Manual | T70: 25% | U70: Documentado | V70: Aleatoria | W70: Con registro | X70: Media | Y70: =IFERROR(IF(OR(R70="Preventivo", R70="Detectivo"),(L70-(+L70*T70)),IF(R70="Correctivo",L70,"")),"") -> 0.6 | Z70: Moderado | AA70: =IFERROR(IF(R70="Correctivo",(N70-(+N70*T70)),IF(OR(R70="Preventivo", R70="Detectivo"),N70,"")),"") -> 0.6 | AB70: MODERADA | AC70: =IF(ISBLANK(S70), O70,LOOKUP(2,1/(AB70:AB77<>""),AB70:AB77)) -> MODERADA | AD70: Reducir | AE70: Contratación de un proveedor que realice la gestión editorial, corrección de estilo y diagramación de un volumen de la revista | AF70: Documentación precontractual, contractual y poscontractual | AG70: Equipo Cátedra UNESCO y jefe de la dependencia | AH70: Toda la vigencia
G71: Privilegiamiento de los recursos financieros a revistas indexadas | H71: Falta de recursos para desarrollar actividades de gestión editorial, corrección de estilo y diagramación de las revistas no indexadas | P71: 2 | Q71: De manera diaria el equipo de trabajo de la Cátedra UNESCO (incluyendo a los monitores académicos) realiza parte de la gestión editorial del volumen del año en curso y de la próxima vigencia para garantizar el avance de la publicación de la revista infancias Imágenes, quedando como evidencia la matriz de control. | R71: Preventivo | S71: Manual | T71: =IF(AND(R71="Preventivo",S71="Automático"),"50%",IF(AND(R71="Preventivo",S71="Manual"),"40%",IF(AND(R71="Detectivo",S71="Automático"),"40%",IF(AND(R71="Detectivo",S71="Manual"),"30%",IF(AND(R71="Correctivo",S71="Automático"),"35%",IF(AND(R71="Correctivo",S71="Manual"),"25%","")))))) -> 40% | U71: Documentado | V71: Continua | W71: Con registro | X71: =IFERROR(IF(Y71="","",IF(Y71<=0.2,"Muy Baja",IF(Y71<=0.4,"Baja",IF(Y71<=0.6,"Media",IF(Y71<=0.8,"Alta","Muy Alta"))))),"") -> Baja | Y71: =IFERROR(IF(AND(OR(R70="Preventivo", R70="Detectivo"),OR(R71="Preventivo", R71="Detectivo")),(Y70-(+Y70*T71)),IF(OR(R71="Preventivo", R71="Detectivo"),(L70-(+L70*T71)),IF(R71="Correctivo",Y70,""))),"") -> 0.36 | Z71: Moderado | AA71: =IFERROR(IF(AND(R70="Correctivo",R71="Correctivo"),(AA70-(+AA70*T71)),IF(R71="Correctivo",(N70-(+N70*T71)),IF(OR(R71="Preventivo", R71="Detectivo"),AA70,""))),"") -> 0.6 | AB71: MODERADA | AE71: Uso de OJS para proceso editorial, comunicación permanente con autores, evalaudores y editores, difusión de contenidos en plataformas digitales, desarrollo de actividades de gestión editorial del volumen del año y de la próxima vigencia | AF71: Registros de gestión en la plataforma OJS en la matriz de seguimiento de los diferentes procesos de los artículos y correos electónicos | AG71: Equipo Cátedra UNESCO (iincluye monitores académicos ) y jefe de la dependencia | AH71: Toda la vigencia
H72: Exceso de trabajo de los editores de las revistas no indexadas y sus equipos | P72: 3 | Q72: Cada vez que se requiere el comité editorial de la revista Infancias Imágenes realiza Búsqueda e invitación de pares evaluadores y revisón de artículos para asegurar que los artículos transiten de la fase de envíos a la fase de corrección de estilo. Esto se evidencia en la matriz que lleva el proceso de los artículos. | R72: Preventivo | S72: Manual | T72: 40% | U72: Documentado | V72: Aleatoria | W72: Sin registro | X72: Baja | Y72: =IFERROR(IF(AND(OR(R71="Preventivo", R71="Detectivo"),OR(R72="Preventivo", R72="Detectivo")),(Y71-(+Y71*T72)),IF(OR(R72="Preventivo", R72="Detectivo"),(Y70-(+Y70*T72)),IF(R72="Correctivo",Y71,""))),"") -> 0.216 | Z72: Moderado | AA72: =IFERROR(IF(AND(R71="Correctivo",R72="Correctivo"),(AA71-(+AA71*T72)),IF(R72="Correctivo",(AA70-(+AA70*T72)),IF(OR(R72="Preventivo", R72="Detectivo"),AA71,""))),"") -> 0.6 | AB72: MODERADA | AE72: Búsqueda e invitación de pares evaluadores [revisores] y revisón de artículos | AF72: Correos electónicos | AG72: Comité editorial y científico de la revista Infancias Imágenes | AH72: Toda la vigencia
H73: Incumplimiento en la periodicidad de publicación de las revistas no indexadas | P73: 4 | Y73: =IFERROR(IF(AND(OR(R72="Preventivo", R72="Detectivo"),OR(R73="Preventivo", R73="Detectivo")),(Y72-(+Y72*T73)),IF(OR(R73="Preventivo", R73="Detectivo"),(Y71-(+Y71*T73)),IF(R73="Correctivo",Y72,""))),"") ->  | AA73: =IFERROR(IF(AND(R72="Correctivo",R73="Correctivo"),(AA72-(+AA72*T73)),IF(R73="Correctivo",(AA71-(+AA71*T73)),IF(OR(R73="Preventivo", R73="Detectivo"),AA72,""))),"") -> 
H74: Dificultades para cumplir con los requerimientos de líndices bibliográficos y bases de datos de Sistemas de Indexación y Resumen en los que se encuentran las revistas no indexadas | P74: 5 | Y74: =IFERROR(IF(AND(OR(R73="Preventivo", R73="Detectivo"),OR(R74="Preventivo", R74="Detectivo")),(Y73-(+Y73*T74)),IF(OR(R74="Preventivo", R74="Detectivo"),(Y72-(+Y72*T74)),IF(R74="Correctivo",Y73,""))),"") ->  | AA74: =IFERROR(IF(AND(R73="Correctivo",R74="Correctivo"),(AA73-(+AA73*T74)),IF(R74="Correctivo",(AA72-(+AA72*T74)),IF(OR(R74="Preventivo", R74="Detectivo"),AA73,""))),"") -> 
H75: Dificultades para postular la revistas no indexadas en índices bibliográficos y bases de datos de Sistemas de Indexación y Resumen. | P75: 6 | Y75: =IFERROR(IF(AND(OR(R74="Preventivo", R74="Detectivo"),OR(R75="Preventivo", R75="Detectivo")),(Y74-(+Y74*T75)),IF(OR(R75="Preventivo", R75="Detectivo"),(Y73-(+Y73*T75)),IF(R75="Correctivo",Y74,""))),"") ->  | AA75: =IFERROR(IF(AND(R74="Correctivo",R75="Correctivo"),(AA74-(+AA74*T75)),IF(R75="Correctivo",(AA73-(+AA73*T75)),IF(OR(R75="Preventivo", R75="Detectivo"),AA74,""))),"") -> 
H76: Dificultades para la difusión y apropiacion del conocimiento que se produce.
H77: Falta de respuesta oportuna a los autores que postulen sus artículos | P77: 7 | Y77: =IFERROR(IF(AND(OR(R75="Preventivo", R75="Detectivo"),OR(R77="Preventivo", R77="Detectivo")),(Y75-(+Y75*T77)),IF(OR(R77="Preventivo", R77="Detectivo"),(Y74-(+Y74*T77)),IF(R77="Correctivo",Y75,""))),"") ->  | AA77: =IFERROR(IF(AND(R75="Correctivo",R77="Correctivo"),(AA75-(+AA75*T77)),IF(R77="Correctivo",(AA74-(+AA74*T77)),IF(OR(R77="Preventivo", R77="Detectivo"),AA75,""))),"") -> 
C80: Elaboró | E80: Revisó | G80: Aprobó
C81: Nombre: Daniel Mauricio Peña / Alejandra Wilches / Katherine Chala Cargo: Contratista CIDC / Contratista Catedra Unesco / Contratista I3+ Fecha: 29/07/2022 | E81: Nombre: Angela Parrado Rosselli Cargo: Directora Centro de Investigación y Desarrollo Cientifico Fecha: 26/08/2022 | G81: Nombre: Angela Parrado Rosselli Cargo: Directora Centro de Investigación y Desarrollo Cientifico Fecha: 26/08/2022

Sheet 2) GI - Cor
D2: MAPA INTEGRAL DE RIESGOS | F2: Código: GI-MG-001-FR-014
D3: Macroproceso: Direccionamiento Estratégico | F3: Versión: 04
D4: Proceso: Gestión Integrada | F4: Fecha de Aprobación: 23/12/2021
B6: EJE DE CORRUPCIÓN
B8: Proceso: | D8: Gestión de Investigación
B9: Objetivo del Proceso: | D9: =IF(D8=0,"",VLOOKUP(D8,'[43]Datos SGC'!B50:C71,2)) -> Administrar los recursos destinados al desarrollo de estrategias, programas, proyectos investigativos y contar con las condiciones estructurales-organizacionales para proyectarse como una universidad investigativa que promueva y potencie la capacidad del investigador de la Universidad y su labor tenga eco en el desarrollo científico y sociocultural de la ciudad – región y país.
AM10: 44 | AO10: 4 | AS10: 4 | AT10: 4
B12: IDENTIFICACIÓN DEL RIESGO | I12: ANÁLISIS DEL RIESGO | P12: EVALUACIÓN DEL RIESGO | AD12: TRATAMIENTO DEL RIESGO
B13: N° | C13: Descripción del Riesgo | D13: Impacto | E13: Causa inmediata | F13: Causa raíz | G13: Consecuencias adicionales | H13: Unidad(es) que reportan al Riesgo | I13: Número de veces que se pasa por el punto de riesgo en el periodo de 1 año | J13: Probabilidad | K13: % P | L13: Impacto | M13: % I | N13: Zona de Riesgo Inherente | O13: Nº | P13: Controles existentes | Q13: Atributos de eficacia | T13: Atributos informativos | W13: Probabilidad Residual | X13: % P | Y13: Impacto Residual | Z13: % I | AA13: Zona de Riesgo después del Control | AB13: Zona de Riesgo Residual FINAL | AC13: Tratamiento al Riesgo | AD13: Acción para mitigar el riesgo | AE13: Evidencia de cumplimiento | AF13: Responsable | AG13: Periodo de ejecución
Q14: Tipo | R14: Implementación | S14: Calificación del control (%) | T14: Documentación | U14: Frecuencia | V14: Evidencia
B15: 1 | C15: Posibilidad de adjudicacion de contratos sin el lleno de requisitos por falta de cumplimiento del total de parametros establecidos | D15: Mayor | E15: Adelantamiento de procedimientos sin el cumplimiento total de los parametros establecidos | F15: Desconocimiento de los Procedimientos establecidos en el centro de Investigaciones y Desarrollo Científico. | G15: Mala gestión al interior del CIDC. | H15: Centro de Investigación y Desarrollo Cientifico / Institutito de Investigación e Innovación en Ingenieria I3+ | I15: 150 | J15: =IF(I15<=0,"",IF(I15<=2,"Muy Baja",IF(I15<=12,"Baja",IF(I15<=365,"Media",IF(I15<=5000,"Alta","Muy Alta"))))) -> Media | K15: =IF(J15="","",IF(J15="Muy Baja",0.2,IF(J15="Baja",0.4,IF(J15="Media",0.6,IF(J15="Alta",0.8,IF(J15="Muy Alta",1,)))))) -> 0.6 | L15: Mayor | M15: =IF(L15="","",IF(L15="Leve",0.2,IF(L15="Menor",0.4,IF(L15="Moderado",0.6,IF(L15="Mayor",0.8,IF(L15="Catastrófico",1,)))))) -> 0.8 | N15: =IF(OR(AND(J15="Muy Baja",L15="Leve"),AND(J15="Muy Baja",L15="Menor"),AND(J15="Baja",L15="Leve")),"BAJA",IF(OR(AND(J15="Muy baja",L15="Moderado"),AND(J15="Baja",L15="Menor"),AND(J15="Baja",L15="Moderado"),AND(J15="Media",L15="Leve"),AND(J15="Media",L15="Menor"),AND(J15="Media",L15="Moderado"),AND(J15="Alta",L15="Leve"),AND(J15="Alta",L15="Menor")),"MODERADA",IF(OR(AND(J15="Muy Baja",L15="Mayor"),AND(J15="Baja",L15="Mayor"),AND(J15="Media",L15="Mayor"),AND(J15="Alta",L15="Moderado"),AND(J15="Alta",L15="Mayor"),AND(J15="Muy Alta",L15="Leve"),AND(J15="Muy Alta",L15="Menor"),AND(J15="Muy Alta",L15="Moderado"),AND(J15="Muy Alta",L15="Mayor")),"ALTA",IF(OR(AND(J15="Muy Baja",L15="Catastrófico"),AND(J15="Baja",L15="Catastrófico"),AND(J15="Media",L15="Catastrófico"),AND(J15="Alta",L15="Catastrófico"),AND(J15="Muy Alta",L15="Catastrófico")),"EXTREMA","")))) -> ALTA | O15: 1 | P15: Los gestores de contratación realizan una primera revisión de la documentación de las solicitudes de contratación (Bienes o servicios) y posteriormente se realiza una segunda revisión por parte de la asistente de la direccion del CIDC, en caso de que se encuentre algun faltante se retrocede en el proceso bien sea a un gestor de contratación o al investigador solicitante, este proceso se realiza de manera constante con la llegada de cualquier solicitud. Se evidencia en el gestor BPM de la dependencia. | Q15: Preventivo | R15: Manual | S15: =IF(AND(Q15="Preventivo",R15="Automático"),"50%",IF(AND(Q15="Preventivo",R15="Manual"),"40%",IF(AND(Q15="Detectivo",R15="Automático"),"40%",IF(AND(Q15="Detectivo",R15="Manual"),"30%",IF(AND(Q15="Correctivo",R15="Automático"),"35%",IF(AND(Q15="Correctivo",R15="Manual"),"25%","")))))) -> 40% | W15: =IFERROR(IF(X15="","",IF(X15<=0.2,"Muy Baja",IF(X15<=0.4,"Baja",IF(X15<=0.6,"Media",IF(X15<=0.8,"Alta","Muy Alta"))))),"") -> Baja | X15: =IFERROR(IF(OR(Q15="Preventivo", Q15="Detectivo"),(K15-(+K15*S15)),IF(Q15="Correctivo",K15,"")),"") -> 0.36 | Y15: =IFERROR(IF(Z15="","",IF(Z15<=0.2,"Leve",IF(Z15<=0.4,"Menor",IF(Z15<=0.6,"Moderado",IF(Z15<=0.8,"Mayor","Catastrófico"))))),"") -> Mayor | Z15: =IFERROR(IF(Q15="Correctivo",(M15),IF(OR(Q15="Preventivo", Q15="Detectivo"),M15,"")),"") -> 0.8 | AA15: =IFERROR(IF(OR(AND(W15="Muy Baja",Y15="Leve"),AND(W15="Muy Baja",Y15="Menor"),AND(W15="Baja",Y15="Leve")),"BAJA",IF(OR(AND(W15="Muy baja",Y15="Moderado"),AND(W15="Baja",Y15="Menor"),AND(W15="Baja",Y15="Moderado"),AND(W15="Media",Y15="Leve"),AND(W15="Media",Y15="Menor"),AND(W15="Media",Y15="Moderado"),AND(W15="Alta",Y15="Leve"),AND(W15="Alta",Y15="Menor")),"MODERADA",IF(OR(AND(W15="Muy Baja",Y15="Mayor"),AND(W15="Baja",Y15="Mayor"),AND(W15="Media",Y15="Mayor"),AND(W15="Alta",Y15="Moderado"),AND(W15="Alta",Y15="Mayor"),AND(W15="Muy Alta",Y15="Leve"),AND(W15="Muy Alta",Y15="Menor"),AND(W15="Muy Alta",Y15="Moderado"),AND(W15="Muy Alta",Y15="Mayor")),"ALTA",IF(OR(AND(W15="Muy Baja",Y15="Catastrófico"),AND(W15="Baja",Y15="Catastrófico"),AND(W15="Media",Y15="Catastrófico"),AND(W15="Alta",Y15="Catastrófico"),AND(W15="Muy Alta",Y15="Catastrófico")),"EXTREMA","")))),"") -> ALTA | AB15: =IF(ISBLANK(R15), N15,LOOKUP(2,1/(AA15:AA21<>""),AA15:AA21)) -> ALTA | AC15: Reducir | AD15: Se efectua revisión de cada solicitud por parte de los integrantes del equipo del CIDC en 2 ocasiones previo a seguir el proceso de cualquier adquisicion | AE15: Registro en el motor BPM de los pasos seguidos en el procedimiento | AF15: Equipo de contratacion CIDC Asistente de Direccion CIDC | AG15: Toda la vigencia
F16: Aplicación errónea de la normatividad que concierne a cada procedimiento. | G16: Bajo nivel de eficiencia. | O16: 2 | P16: Los Gestores de contratacion hacen revisión del cumplimiento del procedimiento en las etapas de revisión y aprobación y cada paso del proceso debe ser documentado en el motor BPM del CIDC, en caso de no quedar documentado el gestor debe complementar la informacion faltante, este proceso se realiza de manera permanente con cada solicitud. Se evidencia en el motor BPM de la dependencia. | Q16: Preventivo | R16: Manual | S16: 40% | W16: Baja | X16: =IFERROR(IF(AND(OR(Q15="Preventivo", Q15="Detectivo"),OR(Q16="Preventivo", Q16="Detectivo")),(X15-(+X15*S16)),IF(OR(Q16="Preventivo", Q16="Detectivo"),(K15-(+K15*S16)),IF(Q16="Correctivo",X15,""))),"") -> 0.216 | Y16: Mayor | Z16: =IFERROR(IF(AND(Q15="Correctivo",Q16="Correctivo"),(Z15),IF(Q16="Correctivo",(M15),IF(OR(Q16="Preventivo", Q16="Detectivo"),Z15,""))),"") -> 0.8 | AA16: ALTA | AD16: Revision previa de la solicitud y de ser necesario acompañamiento al solicitante para la completitud de los requerimientos | AE16: Registro en el motor BPM de los pasos seguidos en el procedimiento | AF16: Equipo de seguimiento a proyectos del CIDC | AG16: Toda la vigencia
F17: Omisión de los conductos regulares de los procedimientos. | G17: Pérdida de la calidad de los procedimientos. | O17: 3 | P17: El gestor de planeación del CIDC realiza una revision anual de los procedimientos asociados a la dependencia, de encontrar alguna mejora este la informa al equipo SIGUD o a la dependencia responsable del proceso del que se sugiere mejora para su cambio. La evidencia se encuentra en correos de solicitud de cambios e informes de gestion. | Q17: Detectivo | R17: Manual | S17: 30% | W17: Muy Baja | X17: =IFERROR(IF(AND(OR(Q16="Preventivo", Q16="Detectivo"),OR(Q17="Preventivo", Q17="Detectivo")),(X16-(+X16*S17)),IF(OR(Q17="Preventivo", Q17="Detectivo"),(X15-(+X15*S17)),IF(Q17="Correctivo",X16,""))),"") -> 0.1512 | Y17: Mayor | Z17: =IFERROR(IF(AND(Q16="Correctivo",Q17="Correctivo"),(Z16),IF(Q17="Correctivo",(Z15),IF(OR(Q17="Preventivo", Q17="Detectivo"),Z16,""))),"") -> 0.8 | AA17: ALTA | AD17: Revision de los procedimiento y de ser necesario se realiza la solicitud de cambio o se informa al gestor de proceso para realizar la actualización de procedimiento | AE17: Solicitudes via correo electronico Informes de gestión | AF17: Gestor de planeacion CIDC | AG17: Toda la vigencia
F18: Solicitudes incompletas por parte de integrantes de la comunidad universitaria. | G18: Consecuencias disciplinarias. | O18: 4 | P18: Desde el área administrativa se realiza una primera revisión de la documentación de las solicitudes de contratación (Bienes o servicios) y posteriormente se realiza una segunda revisión por parte del área jurídica, en caso de que se encuentre algún faltante se devuelve el proceso esto se realiza de manera constante con la llegada de cualquier solicitud. | Q18: Preventivo | R18: Manual | S18: 40% | W18: Muy Baja | X18: =IFERROR(IF(AND(OR(Q17="Preventivo", Q17="Detectivo"),OR(Q18="Preventivo", Q18="Detectivo")),(X17-(+X17*S18)),IF(OR(Q18="Preventivo", Q18="Detectivo"),(X16-(+X16*S18)),IF(Q18="Correctivo",X17,""))),"") -> 0.09072 | Y18: Mayor | Z18: =IFERROR(IF(AND(Q17="Correctivo",Q18="Correctivo"),(Z17),IF(Q18="Correctivo",(Z16),IF(OR(Q18="Preventivo", Q18="Detectivo"),Z17,""))),"") -> 0.8 | AA18: ALTA | AD18: Se efectúa revisión de cada solicitud por parte de los integrantes del equipo 2 ocasiones previo a seguir el proceso de cualquier contratación. | AE18: Formato Interno de solicitud de trámite | AF18: Equipo de Contratación I3+ | AG18: Toda la vigencia
O19: 5 | X19: =IFERROR(IF(AND(OR(Q18="Preventivo", Q18="Detectivo"),OR(Q19="Preventivo", Q19="Detectivo")),(X18-(+X18*S19)),IF(OR(Q19="Preventivo", Q19="Detectivo"),(X17-(+X17*S19)),IF(Q19="Correctivo",X18,""))),"") -> 
O20: 6 | X20: =IFERROR(IF(AND(OR(Q19="Preventivo", Q19="Detectivo"),OR(Q20="Preventivo", Q20="Detectivo")),(X19-(+X19*S20)),IF(OR(Q20="Preventivo", Q20="Detectivo"),(X18-(+X18*S20)),IF(Q20="Correctivo",X19,""))),"") -> 
O21: 7 | X21: =IFERROR(IF(AND(OR(Q20="Preventivo", Q20="Detectivo"),OR(Q21="Preventivo", Q21="Detectivo")),(X20-(+X20*S21)),IF(OR(Q21="Preventivo", Q21="Detectivo"),(X19-(+X19*S21)),IF(Q21="Correctivo",X20,""))),"") -> 
B22: 2 | C22: Posibilidad de adjudicacion de contratos sin el lleno de requisitos por direccionamiento de los mismos | D22: Mayor | E22: Contratación dirigida | F22: Presentación de intención de contratos o convenios por parte de relacionados con funcionarios de la universidad. | G22: Riesgo e impactos legales. | H22: Centro de Investigación y Desarrollo Cientifico | I22: 150 | J22: =IF(I22<=0,"",IF(I22<=2,"Muy Baja",IF(I22<=12,"Baja",IF(I22<=365,"Media",IF(I22<=5000,"Alta","Muy Alta"))))) -> Media | K22: =IF(J22="","",IF(J22="Muy Baja",0.2,IF(J22="Baja",0.4,IF(J22="Media",0.6,IF(J22="Alta",0.8,IF(J22="Muy Alta",1,)))))) -> 0.6 | L22: Mayor | M22: =IF(L22="","",IF(L22="Leve",0.2,IF(L22="Menor",0.4,IF(L22="Moderado",0.6,IF(L22="Mayor",0.8,IF(L22="Catastrófico",1,)))))) -> 0.8 | N22: =IF(OR(AND(J22="Muy Baja",L22="Leve"),AND(J22="Muy Baja",L22="Menor"),AND(J22="Baja",L22="Leve")),"BAJA",IF(OR(AND(J22="Muy baja",L22="Moderado"),AND(J22="Baja",L22="Menor"),AND(J22="Baja",L22="Moderado"),AND(J22="Media",L22="Leve"),AND(J22="Media",L22="Menor"),AND(J22="Media",L22="Moderado"),AND(J22="Alta",L22="Leve"),AND(J22="Alta",L22="Menor")),"MODERADA",IF(OR(AND(J22="Muy Baja",L22="Mayor"),AND(J22="Baja",L22="Mayor"),AND(J22="Media",L22="Mayor"),AND(J22="Alta",L22="Moderado"),AND(J22="Alta",L22="Mayor"),AND(J22="Muy Alta",L22="Leve"),AND(J22="Muy Alta",L22="Menor"),AND(J22="Muy Alta",L22="Moderado"),AND(J22="Muy Alta",L22="Mayor")),"ALTA",IF(OR(AND(J22="Muy Baja",L22="Catastrófico"),AND(J22="Baja",L22="Catastrófico"),AND(J22="Media",L22="Catastrófico"),AND(J22="Alta",L22="Catastrófico"),AND(J22="Muy Alta",L22="Catastrófico")),"EXTREMA","")))) -> ALTA | O22: 1 | P22: El equipo de contrtacion del CIDC en apoyo del area juridica del CIDC y la asistente de Dirección del CIDC revisan y dan seguimiento al proceso de contratación relacionada con el area para generar una vision multidisciplinaria de los procedimientos y en caso de encontrarse algun fallo en el procedimiento se documenta esta y se devuelve al procedimiento anterior, esto se realiza de manera permanente y se evidencia en los correos enviados a los solicitantes y el motor BPM de la dependencia. | Q22: Preventivo | R22: Manual | S22: 40% | T22: Documentado | U22: Continua | V22: Con registro | W22: Baja | X22: =IFERROR(IF(OR(Q22="Preventivo", Q22="Detectivo"),(K22-(+K22*S22)),IF(Q22="Correctivo",K22,"")),"") -> 0.36 | Y22: Mayor | Z22: =IFERROR(IF(Q22="Correctivo",(M22-(+M22*S22)),IF(OR(Q22="Preventivo", Q22="Detectivo"),M22,"")),"") -> 0.8 | AA22: ALTA | AB22: =IF(ISBLANK(R22), N22,LOOKUP(2,1/(AA22:AA28<>""),AA22:AA28)) -> ALTA | AC22: Reducir | AD22: Se realiza revision de la solicitud de contratación por parte del interesado y de ser necesario se solicitan ajustes de encontrarse direccionamiento de la contratación | AE22: Correos a solicitantes aprobando o solicitando ajustes a su solicitud | AF22: Equipo de contratacion CIDC/ Area juridica CIDC/ Asistente CIDC | AG22: Toda la vigencia
F23: Propuestas de convenios o contratos con fines que benefician intereses particulares. | G23: Consecuencias disciplinarias. | O23: 2 | P23: Un abogado del CIDC hace revisión de los contratos y aspectos legales de los mismos previo a la firma del Director del CIDC para detectar cualquier inconsistencia o error en el contenido de estos, esto se realiza de manera permanente a la llegada de los contratos. Se evidencia en el motor BPM de la dependencia | Q23: Detectivo | R23: Manual | S23: 30% | T23: Documentado | U23: Continua | V23: Con registro | W23: Baja | X23: =IFERROR(IF(AND(OR(Q22="Preventivo", Q22="Detectivo"),OR(Q23="Preventivo", Q23="Detectivo")),(X22-(+X22*S23)),IF(OR(Q23="Preventivo", Q23="Detectivo"),(K22-(+K22*S23)),IF(Q23="Correctivo",X22,""))),"") -> 0.252 | Y23: Mayor | Z23: =IFERROR(IF(AND(Q22="Correctivo",Q23="Correctivo"),(Z22-(+Z22*S23)),IF(Q23="Correctivo",(M22-(+M22*S23)),IF(OR(Q23="Preventivo", Q23="Detectivo"),Z22,""))),"") -> 0.8 | AA23: ALTA | AD23: Se realiza revision por parte de un abogado del CIDC de todos los contratos que firme el Director y de ser necesario se envia al area encargada para su correción | AE23: Motor BPM CIDC | AF23: Abogado CIDC | AG23: Toda la vigencia
F24: Intervención indebida de funcionarios de la universidad Distrital Francisco José de Caldas en la contratación. | G24: Pérdida de la buena imagen institucional. | O24: 3 | P24: El equipo de contratcion del CIDC realiza la gestion para la contratacion de los bienes o servicios de acuerdo al procedimiento de selección de proveedores establecidos en el sistema integral de gestión (AGORA) con apoyo del uso de la herramienta SECOP II, esto se realiza de manera permanente acorde a las solicitudes de contratación. Se evidencia en el sistema AGORA y SECOP II | Q24: Preventivo | R24: Manual | S24: 40% | T24: Documentado | U24: Continua | V24: Con registro | W24: Muy Baja | X24: =IFERROR(IF(AND(OR(Q23="Preventivo", Q23="Detectivo"),OR(Q24="Preventivo", Q24="Detectivo")),(X23-(+X23*S24)),IF(OR(Q24="Preventivo", Q24="Detectivo"),(X22-(+X22*S24)),IF(Q24="Correctivo",X23,""))),"") -> 0.1512 | Y24: Mayor | Z24: =IFERROR(IF(AND(Q23="Correctivo",Q24="Correctivo"),(Z23-(+Z23*S24)),IF(Q24="Correctivo",(Z22-(+Z22*S24)),IF(OR(Q24="Preventivo", Q24="Detectivo"),Z23,""))),"") -> 0.8 | AA24: ALTA | AD24: Se esta da uso a la herramienta SECOP II para garantizar transparencia en la elección de proveedores, para la solicitud de cotizaciones se utiliza la herramienta AGORA | AE24: Solicitudes en las herramientas mencionadas | AF24: Equipo de contratacion CIDC | AG24: Toda la vigencia
F25: Convocatorias excluyentes y mal definidas. | O25: 4 | X25: =IFERROR(IF(AND(OR(Q24="Preventivo", Q24="Detectivo"),OR(Q25="Preventivo", Q25="Detectivo")),(X24-(+X24*S25)),IF(OR(Q25="Preventivo", Q25="Detectivo"),(X23-(+X23*S25)),IF(Q25="Correctivo",X24,""))),"") ->  | Z25: =IFERROR(IF(AND(Q24="Correctivo",Q25="Correctivo"),(Z24-(+Z24*S25)),IF(Q25="Correctivo",(Z23-(+Z23*S25)),IF(OR(Q25="Preventivo", Q25="Detectivo"),Z24,""))),"") -> 
O26: 5 | X26: =IFERROR(IF(AND(OR(Q25="Preventivo", Q25="Detectivo"),OR(Q26="Preventivo", Q26="Detectivo")),(X25-(+X25*S26)),IF(OR(Q26="Preventivo", Q26="Detectivo"),(X24-(+X24*S26)),IF(Q26="Correctivo",X25,""))),"") ->  | Z26: =IFERROR(IF(AND(Q25="Correctivo",Q26="Correctivo"),(Z25-(+Z25*S26)),IF(Q26="Correctivo",(Z24-(+Z24*S26)),IF(OR(Q26="Preventivo", Q26="Detectivo"),Z25,""))),"") -> 
O27: 6 | X27: =IFERROR(IF(AND(OR(Q26="Preventivo", Q26="Detectivo"),OR(Q27="Preventivo", Q27="Detectivo")),(X26-(+X26*S27)),IF(OR(Q27="Preventivo", Q27="Detectivo"),(X25-(+X25*S27)),IF(Q27="Correctivo",X26,""))),"") ->  | Z27: =IFERROR(IF(AND(Q26="Correctivo",Q27="Correctivo"),(Z26-(+Z26*S27)),IF(Q27="Correctivo",(Z25-(+Z25*S27)),IF(OR(Q27="Preventivo", Q27="Detectivo"),Z26,""))),"") -> 
O28: 7 | X28: =IFERROR(IF(AND(OR(Q27="Preventivo", Q27="Detectivo"),OR(Q28="Preventivo", Q28="Detectivo")),(X27-(+X27*S28)),IF(OR(Q28="Preventivo", Q28="Detectivo"),(X26-(+X26*S28)),IF(Q28="Correctivo",X27,""))),"") ->  | Z28: =IFERROR(IF(AND(Q27="Correctivo",Q28="Correctivo"),(Z27-(+Z27*S28)),IF(Q28="Correctivo",(Z26-(+Z26*S28)),IF(OR(Q28="Preventivo", Q28="Detectivo"),Z27,""))),"") -> 
B29: 3 | C29: Posibilidad de adjudicacion de contratos sin el lleno de requisitos por presion de parte de directivas | D29: Mayor | E29: Manipulacion de la contratacion por parte de directivas | F29: Beneficiar intereses de funcionarios de cargos altos. | G29: Pérdida de confiabilidad en los procesos del CIDC. | H29: Centro de Investigación y Desarrollo Cientifico | I29: 150 | J29: =IF(I29<=0,"",IF(I29<=2,"Muy Baja",IF(I29<=12,"Baja",IF(I29<=365,"Media",IF(I29<=5000,"Alta","Muy Alta"))))) -> Media | K29: =IF(J29="","",IF(J29="Muy Baja",0.2,IF(J29="Baja",0.4,IF(J29="Media",0.6,IF(J29="Alta",0.8,IF(J29="Muy Alta",1,)))))) -> 0.6 | L29: Mayor | M29: =IF(L29="","",IF(L29="Leve",0.2,IF(L29="Menor",0.4,IF(L29="Moderado",0.6,IF(L29="Mayor",0.8,IF(L29="Catastrófico",1,)))))) -> 0.8 | N29: =IF(OR(AND(J29="Muy Baja",L29="Leve"),AND(J29="Muy Baja",L29="Menor"),AND(J29="Baja",L29="Leve")),"BAJA",IF(OR(AND(J29="Muy baja",L29="Moderado"),AND(J29="Baja",L29="Menor"),AND(J29="Baja",L29="Moderado"),AND(J29="Media",L29="Leve"),AND(J29="Media",L29="Menor"),AND(J29="Media",L29="Moderado"),AND(J29="Alta",L29="Leve"),AND(J29="Alta",L29="Menor")),"MODERADA",IF(OR(AND(J29="Muy Baja",L29="Mayor"),AND(J29="Baja",L29="Mayor"),AND(J29="Media",L29="Mayor"),AND(J29="Alta",L29="Moderado"),AND(J29="Alta",L29="Mayor"),AND(J29="Muy Alta",L29="Leve"),AND(J29="Muy Alta",L29="Menor"),AND(J29="Muy Alta",L29="Moderado"),AND(J29="Muy Alta",L29="Mayor")),"ALTA",IF(OR(AND(J29="Muy Baja",L29="Catastrófico"),AND(J29="Baja",L29="Catastrófico"),AND(J29="Media",L29="Catastrófico"),AND(J29="Alta",L29="Catastrófico"),AND(J29="Muy Alta",L29="Catastrófico")),"EXTREMA","")))) -> ALTA | O29: 1 | P29: El equipo de contratacion del CIDC en apoyo del area juridica del CIDC y la asistente de Dirección del CIDC revisan y dan seguimiento al proceso de contratación relacionada con el area para generar una vision multidisciplinaria de los procedimientos y en caso de encontrarse algun fallo en el procedimiento se documenta esta y se devuelve al procedimiento anterior, esto se realiza de manera permanente y se evidencia en los correos enviados a los solicitantes. | Q29: Preventivo | R29: Manual | S29: 40% | T29: Documentado | U29: Continua | V29: Con registro | W29: Baja | X29: =IFERROR(IF(OR(Q29="Preventivo", Q29="Detectivo"),(K29-(+K29*S29)),IF(Q29="Correctivo",K29,"")),"") -> 0.36 | Y29: Mayor | Z29: =IFERROR(IF(Q29="Correctivo",(M29-(+M29*S29)),IF(OR(Q29="Preventivo", Q29="Detectivo"),M29,"")),"") -> 0.8 | AA29: ALTA | AB29: =IF(ISBLANK(R29), N29,LOOKUP(2,1/(AA29:AA35<>""),AA29:AA35)) -> ALTA | AC29: Reducir | AD29: Toda solicitud se realiza de acuerdo a lo establecido en los proyectos de investigación o lo estipulado en el proyecto de inversión de lo contrario es denegada y oportunamente se informa la razon de la denegación | AE29: Correos a solicitantes aprobando o solicitando ajustes a su solicitud | AF29: Equipo de contratacion CIDC/ Area juridica CIDC/ Asistente CIDC | AG29: Toda la vigencia
F30: Salto normativo y procedimental por provenir de un alto cargo. | G30: Desigualdad de beneficios y servicios prestados a la comunidad. | O30: 2 | P30: El comité de investigaciones revisa las solicitudes que sean consideradas de tipo extraordinario siempre que no incumplan con su accionar ninguna norma establecida en los normogramas de la Universidad y bajo criterios investigativos realiza aprobación o denegación de las mismas, este proceso se realzia de manera permanente acorde a las solicitudes allegadas. Se evidencia en actas del comite. | Q30: Detectivo | R30: Manual | S30: 30% | T30: Documentado | U30: Continua | V30: Con registro | W30: Baja | X30: =IFERROR(IF(AND(OR(Q29="Preventivo", Q29="Detectivo"),OR(Q30="Preventivo", Q30="Detectivo")),(X29-(+X29*S30)),IF(OR(Q30="Preventivo", Q30="Detectivo"),(K29-(+K29*S30)),IF(Q30="Correctivo",X29,""))),"") -> 0.252 | Y30: Mayor | Z30: =IFERROR(IF(AND(Q29="Correctivo",Q30="Correctivo"),(Z29-(+Z29*S30)),IF(Q30="Correctivo",(M29-(+M29*S30)),IF(OR(Q30="Preventivo", Q30="Detectivo"),Z29,""))),"") -> 0.8 | AA30: ALTA | AD30: Toda solicitud que sea de carácter extraordinario solo se aprueba bajo consenso con el comité de investigación o se remite a consideración del organo que se considere oportuno por la naturaleza de la misma | AE30: Actas de Comité | AF30: Comité de investigaciones | AG30: Toda la vigencia
F31: Miedo de seguir procedimientos estandarizados con funcionarios de altos rangos. | G31: Consecuencias Legales. | O31: 3 | X31: =IFERROR(IF(AND(OR(Q30="Preventivo", Q30="Detectivo"),OR(Q31="Preventivo", Q31="Detectivo")),(X30-(+X30*S31)),IF(OR(Q31="Preventivo", Q31="Detectivo"),(X29-(+X29*S31)),IF(Q31="Correctivo",X30,""))),"") ->  | Z31: =IFERROR(IF(AND(Q30="Correctivo",Q31="Correctivo"),(Z30-(+Z30*S31)),IF(Q31="Correctivo",(Z29-(+Z29*S31)),IF(OR(Q31="Preventivo", Q31="Detectivo"),Z30,""))),"") -> 
F32: Consecuencias negativas por seguir los procedimientos establecidos sin excepción con toda la comunidad. | G32: Consecuencias disciplinarias. | O32: 4 | X32: =IFERROR(IF(AND(OR(Q31="Preventivo", Q31="Detectivo"),OR(Q32="Preventivo", Q32="Detectivo")),(X31-(+X31*S32)),IF(OR(Q32="Preventivo", Q32="Detectivo"),(X30-(+X30*S32)),IF(Q32="Correctivo",X31,""))),"") ->  | Z32: =IFERROR(IF(AND(Q31="Correctivo",Q32="Correctivo"),(Z31-(+Z31*S32)),IF(Q32="Correctivo",(Z30-(+Z30*S32)),IF(OR(Q32="Preventivo", Q32="Detectivo"),Z31,""))),"") -> 
O33: 5 | X33: =IFERROR(IF(AND(OR(Q32="Preventivo", Q32="Detectivo"),OR(Q33="Preventivo", Q33="Detectivo")),(X32-(+X32*S33)),IF(OR(Q33="Preventivo", Q33="Detectivo"),(X31-(+X31*S33)),IF(Q33="Correctivo",X32,""))),"") ->  | Z33: =IFERROR(IF(AND(Q32="Correctivo",Q33="Correctivo"),(Z32-(+Z32*S33)),IF(Q33="Correctivo",(Z31-(+Z31*S33)),IF(OR(Q33="Preventivo", Q33="Detectivo"),Z32,""))),"") -> 
O34: 6 | X34: =IFERROR(IF(AND(OR(Q33="Preventivo", Q33="Detectivo"),OR(Q34="Preventivo", Q34="Detectivo")),(X33-(+X33*S34)),IF(OR(Q34="Preventivo", Q34="Detectivo"),(X32-(+X32*S34)),IF(Q34="Correctivo",X33,""))),"") ->  | Z34: =IFERROR(IF(AND(Q33="Correctivo",Q34="Correctivo"),(Z33-(+Z33*S34)),IF(Q34="Correctivo",(Z32-(+Z32*S34)),IF(OR(Q34="Preventivo", Q34="Detectivo"),Z33,""))),"") -> 
O35: 7 | X35: =IFERROR(IF(AND(OR(Q34="Preventivo", Q34="Detectivo"),OR(Q35="Preventivo", Q35="Detectivo")),(X34-(+X34*S35)),IF(OR(Q35="Preventivo", Q35="Detectivo"),(X33-(+X33*S35)),IF(Q35="Correctivo",X34,""))),"") ->  | Z35: =IFERROR(IF(AND(Q34="Correctivo",Q35="Correctivo"),(Z34-(+Z34*S35)),IF(Q35="Correctivo",(Z33-(+Z33*S35)),IF(OR(Q35="Preventivo", Q35="Detectivo"),Z34,""))),"") -> 
B36: 4 | C36: Posibilidad de que se adjudiquen contratos sin el lleno de requisitos debido al direccionamiento de los mismos | D36: Mayor | E36: Contratación dirigida | F36: Presentación de intención en contratos por parte de personas relacionados con funcionarios de la universidad. | G36: Riesgo e impactos legales | H36: Cátedra UNESCO en Desarrollo del Niño | I36: 5 | J36: =IF(I36<=0,"",IF(I36<=2,"Muy Baja",IF(I36<=12,"Baja",IF(I36<=365,"Media",IF(I36<=5000,"Alta","Muy Alta"))))) -> Baja | K36: =IF(J36="","",IF(J36="Muy Baja",0.2,IF(J36="Baja",0.4,IF(J36="Media",0.6,IF(J36="Alta",0.8,IF(J36="Muy Alta",1,)))))) -> 0.4 | L36: Leve | M36: =IF(L36="","",IF(L36="Leve",0.2,IF(L36="Menor",0.4,IF(L36="Moderado",0.6,IF(L36="Mayor",0.8,IF(L36="Catastrófico",1,)))))) -> 0.2 | N36: =IF(OR(AND(J36="Muy Baja",L36="Leve"),AND(J36="Muy Baja",L36="Menor"),AND(J36="Baja",L36="Leve")),"BAJA",IF(OR(AND(J36="Muy baja",L36="Moderado"),AND(J36="Baja",L36="Menor"),AND(J36="Baja",L36="Moderado"),AND(J36="Media",L36="Leve"),AND(J36="Media",L36="Menor"),AND(J36="Media",L36="Moderado"),AND(J36="Alta",L36="Leve"),AND(J36="Alta",L36="Menor")),"MODERADA",IF(OR(AND(J36="Muy Baja",L36="Mayor"),AND(J36="Baja",L36="Mayor"),AND(J36="Media",L36="Mayor"),AND(J36="Alta",L36="Moderado"),AND(J36="Alta",L36="Mayor"),AND(J36="Muy Alta",L36="Leve"),AND(J36="Muy Alta",L36="Menor"),AND(J36="Muy Alta",L36="Moderado"),AND(J36="Muy Alta",L36="Mayor")),"ALTA",IF(OR(AND(J36="Muy Baja",L36="Catastrófico"),AND(J36="Baja",L36="Catastrófico"),AND(J36="Media",L36="Catastrófico"),AND(J36="Alta",L36="Catastrófico"),AND(J36="Muy Alta",L36="Catastrófico")),"EXTREMA","")))) -> BAJA | O36: 1 | P36: Cada vez que se cierran convocatorias abiertas en ÁGORA el equipo de contratación del Cátedra UNESCO en Desarrollo del Niño se reune con el jefe de la depedencia para revisar y evaluar las cotizaciones allegadas a través de ÁGORA .La evalaución se realiza de manera objetiva conforme a lo establecido en los estudios previos. La evidencia de la evalaución queda consignada en el formato Cuadro comparativo de ofertas | Q36: Preventivo | R36: Manual | S36: 40% | T36: Documentado | U36: Continua | V36: Con registro | W36: Baja | X36: =IFERROR(IF(OR(Q36="Preventivo", Q36="Detectivo"),(K36-(+K36*S36)),IF(Q36="Correctivo",K36,"")),"") -> 0.24 | Y36: Leve | Z36: =IFERROR(IF(Q36="Correctivo",(M36-(+M36*S36)),IF(OR(Q36="Preventivo", Q36="Detectivo"),M36,"")),"") -> 0.2 | AA36: BAJA | AB36: =IF(ISBLANK(R36), N36,LOOKUP(2,1/(AA36:AA42<>""),AA36:AA42)) -> BAJA | AC36: Reducir | AD36: Se realiza la revisión y evaluación de las cotizaciones de manera objetiva conforme a lo establecido en los estudios previos | AE36: Formato Cuadro comparativo de ofertas (GC-PR-003-FR-011) y cotizaciones | AF36: Equipo de contratacion de la Cátedra UNESCO y jefe de la dependencia | AG36: Toda la vigencia
F37: Propuestas de contratos con fines que benefician intereses particulares. | G37: Consecuencias disciplinarias | O37: 2 | P37: La Vicerrectoría académica, como ordenadora del gasto de la Cátedra UNESCO en Desarrollo del Niño, hace la revisión de los contratos y aspectos legales de los mismos previo a la firma de la Vicerrectora para detectar cualquier inconsistencia o error en el contenido de estos, esto se realiza de manera permanente a la llegada de los contratos. Se evidencia la trazabilidad de los envíos y posibles devoluciones a través de correos electrónicos. | Q37: Preventivo | R37: Manual | S37: 40% | T37: Documentado | U37: Continua | V37: Con registro | W37: Muy Baja | X37: =IFERROR(IF(AND(OR(Q36="Preventivo", Q36="Detectivo"),OR(Q37="Preventivo", Q37="Detectivo")),(X36-(+X36*S37)),IF(OR(Q37="Preventivo", Q37="Detectivo"),(K36-(+K36*S37)),IF(Q37="Correctivo",X36,""))),"") -> 0.144 | Y37: Leve | Z37: =IFERROR(IF(AND(Q36="Correctivo",Q37="Correctivo"),(Z36-(+Z36*S37)),IF(Q37="Correctivo",(M36-(+M36*S37)),IF(OR(Q37="Preventivo", Q37="Detectivo"),Z36,""))),"") -> 0.2 | AA37: BAJA | AD37: Se realiza revisión por parte de la Vicerrectoría académica de todos los contratos que firme la Vicerrectora y de ser necesario se reenvian observaciones a la Cátedra UNESCO para su correción | AE37: Correos entre la Vicerrectoría académica y la Cátedra UNESCO solicitando correciones a las solicitudes | AF37: Vicerrectoría académica y equipo de contratación Cátedra UNESCO | AG37: Toda la vigencia
F38: Intervención indebida de funcionarios de la universidad Distrital Francisco José de Caldas en la contratación | G38: Pérdida de la buena imagen institucional de la Universidad y de la Cátedra UNESCO en Desarrollo del Niño | O38: 3 | P38: El equipo de contratación de la Cátedra UNESCO en Desarrollo del Niño cada vez que se inician procesos de contratación, realiza el reporte en el SECOP II para garantizar la publicidad de los procesos e invitar a los proveedores a que se inscriban en el sistema de proveedores ÁGORA para partiipar de las convocatorias. Esta actividad se realiza de manera permanente acorde a las solicitudes de contratación. Se evidencia en el sistema ÁGORA y SECOP II. | Q38: Preventivo | R38: Manual | S38: 40% | T38: Documentado | U38: Continua | V38: Con registro | W38: Muy Baja | X38: =IFERROR(IF(AND(OR(Q37="Preventivo", Q37="Detectivo"),OR(Q38="Preventivo", Q38="Detectivo")),(X37-(+X37*S38)),IF(OR(Q38="Preventivo", Q38="Detectivo"),(X36-(+X36*S38)),IF(Q38="Correctivo",X37,""))),"") -> 0.0864 | Y38: Leve | Z38: =IFERROR(IF(AND(Q37="Correctivo",Q38="Correctivo"),(Z37-(+Z37*S38)),IF(Q38="Correctivo",(Z36-(+Z36*S38)),IF(OR(Q38="Preventivo", Q38="Detectivo"),Z37,""))),"") -> 0.2 | AA38: BAJA | AD38: Se realiza la publicación del los procesos en el SECOP II, para garantizar la publicidad y transparencia en la elección de proveedores. La recepción de las ofertas se realizara única y exclusivamente a través del Banco de Proveedores GORA, no se aceptan por ningún otro medio. | AE38: Registro de las aperturas de procesos en SECOP IIy ÁGORA | AF38: Equipo de contratacion Cátedra UNESCO | AG38: Toda la vigencia
F39: Convocatorias excluyentes y mal diseñadas | G39: Desistimiento de los proveedores para presentarse en las convocatorias | O39: 4 | X39: =IFERROR(IF(AND(OR(Q38="Preventivo", Q38="Detectivo"),OR(Q39="Preventivo", Q39="Detectivo")),(X38-(+X38*S39)),IF(OR(Q39="Preventivo", Q39="Detectivo"),(X37-(+X37*S39)),IF(Q39="Correctivo",X38,""))),"") ->  | Z39: =IFERROR(IF(AND(Q38="Correctivo",Q39="Correctivo"),(Z38-(+Z38*S39)),IF(Q39="Correctivo",(Z37-(+Z37*S39)),IF(OR(Q39="Preventivo", Q39="Detectivo"),Z38,""))),"") -> 
O40: 5 | X40: =IFERROR(IF(AND(OR(Q39="Preventivo", Q39="Detectivo"),OR(Q40="Preventivo", Q40="Detectivo")),(X39-(+X39*S40)),IF(OR(Q40="Preventivo", Q40="Detectivo"),(X38-(+X38*S40)),IF(Q40="Correctivo",X39,""))),"") ->  | Z40: =IFERROR(IF(AND(Q39="Correctivo",Q40="Correctivo"),(Z39-(+Z39*S40)),IF(Q40="Correctivo",(Z38-(+Z38*S40)),IF(OR(Q40="Preventivo", Q40="Detectivo"),Z39,""))),"") -> 
O41: 6 | X41: =IFERROR(IF(AND(OR(Q40="Preventivo", Q40="Detectivo"),OR(Q41="Preventivo", Q41="Detectivo")),(X40-(+X40*S41)),IF(OR(Q41="Preventivo", Q41="Detectivo"),(X39-(+X39*S41)),IF(Q41="Correctivo",X40,""))),"") ->  | Z41: =IFERROR(IF(AND(Q40="Correctivo",Q41="Correctivo"),(Z40-(+Z40*S41)),IF(Q41="Correctivo",(Z39-(+Z39*S41)),IF(OR(Q41="Preventivo", Q41="Detectivo"),Z40,""))),"") -> 
O42: 7 | X42: =IFERROR(IF(AND(OR(Q41="Preventivo", Q41="Detectivo"),OR(Q42="Preventivo", Q42="Detectivo")),(X41-(+X41*S42)),IF(OR(Q42="Preventivo", Q42="Detectivo"),(X40-(+X40*S42)),IF(Q42="Correctivo",X41,""))),"") ->  | Z42: =IFERROR(IF(AND(Q41="Correctivo",Q42="Correctivo"),(Z41-(+Z41*S42)),IF(Q42="Correctivo",(Z40-(+Z40*S42)),IF(OR(Q42="Preventivo", Q42="Detectivo"),Z41,""))),"") -> 
B43: 5 | J43: =IF(I43<=0,"",IF(I43<=2,"Muy Baja",IF(I43<=12,"Baja",IF(I43<=365,"Media",IF(I43<=5000,"Alta","Muy Alta"))))) ->  | K43: =IF(J43="","",IF(J43="Muy Baja",0.2,IF(J43="Baja",0.4,IF(J43="Media",0.6,IF(J43="Alta",0.8,IF(J43="Muy Alta",1,)))))) ->  | M43: =IF(L43="","",IF(L43="Leve",0.2,IF(L43="Menor",0.4,IF(L43="Moderado",0.6,IF(L43="Mayor",0.8,IF(L43="Catastrófico",1,)))))) ->  | N43: =IF(OR(AND(J43="Muy Baja",L43="Leve"),AND(J43="Muy Baja",L43="Menor"),AND(J43="Baja",L43="Leve")),"BAJA",IF(OR(AND(J43="Muy baja",L43="Moderado"),AND(J43="Baja",L43="Menor"),AND(J43="Baja",L43="Moderado"),AND(J43="Media",L43="Leve"),AND(J43="Media",L43="Menor"),AND(J43="Media",L43="Moderado"),AND(J43="Alta",L43="Leve"),AND(J43="Alta",L43="Menor")),"MODERADA",IF(OR(AND(J43="Muy Baja",L43="Mayor"),AND(J43="Baja",L43="Mayor"),AND(J43="Media",L43="Mayor"),AND(J43="Alta",L43="Moderado"),AND(J43="Alta",L43="Mayor"),AND(J43="Muy Alta",L43="Leve"),AND(J43="Muy Alta",L43="Menor"),AND(J43="Muy Alta",L43="Moderado"),AND(J43="Muy Alta",L43="Mayor")),"ALTA",IF(OR(AND(J43="Muy Baja",L43="Catastrófico"),AND(J43="Baja",L43="Catastrófico"),AND(J43="Media",L43="Catastrófico"),AND(J43="Alta",L43="Catastrófico"),AND(J43="Muy Alta",L43="Catastrófico")),"EXTREMA","")))) ->  | O43: 1 | X43: =IFERROR(IF(OR(Q43="Preventivo", Q43="Detectivo"),(K43-(+K43*S43)),IF(Q43="Correctivo",K43,"")),"") ->  | Z43: =IFERROR(IF(Q43="Correctivo",(M43-(+M43*S43)),IF(OR(Q43="Preventivo", Q43="Detectivo"),M43,"")),"") ->  | AB43: =IF(ISBLANK(R43), N43,LOOKUP(2,1/(AA43:AA49<>""),AA43:AA49)) -> 
O44: 2 | X44: =IFERROR(IF(AND(OR(Q43="Preventivo", Q43="Detectivo"),OR(Q44="Preventivo", Q44="Detectivo")),(X43-(+X43*S44)),IF(OR(Q44="Preventivo", Q44="Detectivo"),(K43-(+K43*S44)),IF(Q44="Correctivo",X43,""))),"") ->  | Z44: =IFERROR(IF(AND(Q43="Correctivo",Q44="Correctivo"),(Z43-(+Z43*S44)),IF(Q44="Correctivo",(M43-(+M43*S44)),IF(OR(Q44="Preventivo", Q44="Detectivo"),Z43,""))),"") -> 
O45: 3 | X45: =IFERROR(IF(AND(OR(Q44="Preventivo", Q44="Detectivo"),OR(Q45="Preventivo", Q45="Detectivo")),(X44-(+X44*S45)),IF(OR(Q45="Preventivo", Q45="Detectivo"),(X43-(+X43*S45)),IF(Q45="Correctivo",X44,""))),"") ->  | Z45: =IFERROR(IF(AND(Q44="Correctivo",Q45="Correctivo"),(Z44-(+Z44*S45)),IF(Q45="Correctivo",(Z43-(+Z43*S45)),IF(OR(Q45="Preventivo", Q45="Detectivo"),Z44,""))),"") -> 
O46: 4 | X46: =IFERROR(IF(AND(OR(Q45="Preventivo", Q45="Detectivo"),OR(Q46="Preventivo", Q46="Detectivo")),(X45-(+X45*S46)),IF(OR(Q46="Preventivo", Q46="Detectivo"),(X44-(+X44*S46)),IF(Q46="Correctivo",X45,""))),"") ->  | Z46: =IFERROR(IF(AND(Q45="Correctivo",Q46="Correctivo"),(Z45-(+Z45*S46)),IF(Q46="Correctivo",(Z44-(+Z44*S46)),IF(OR(Q46="Preventivo", Q46="Detectivo"),Z45,""))),"") -> 
O47: 5 | X47: =IFERROR(IF(AND(OR(Q46="Preventivo", Q46="Detectivo"),OR(Q47="Preventivo", Q47="Detectivo")),(X46-(+X46*S47)),IF(OR(Q47="Preventivo", Q47="Detectivo"),(X45-(+X45*S47)),IF(Q47="Correctivo",X46,""))),"") ->  | Z47: =IFERROR(IF(AND(Q46="Correctivo",Q47="Correctivo"),(Z46-(+Z46*S47)),IF(Q47="Correctivo",(Z45-(+Z45*S47)),IF(OR(Q47="Preventivo", Q47="Detectivo"),Z46,""))),"") -> 
O48: 6 | X48: =IFERROR(IF(AND(OR(Q47="Preventivo", Q47="Detectivo"),OR(Q48="Preventivo", Q48="Detectivo")),(X47-(+X47*S48)),IF(OR(Q48="Preventivo", Q48="Detectivo"),(X46-(+X46*S48)),IF(Q48="Correctivo",X47,""))),"") ->  | Z48: =IFERROR(IF(AND(Q47="Correctivo",Q48="Correctivo"),(Z47-(+Z47*S48)),IF(Q48="Correctivo",(Z46-(+Z46*S48)),IF(OR(Q48="Preventivo", Q48="Detectivo"),Z47,""))),"") -> 
O49: 7 | X49: =IFERROR(IF(AND(OR(Q48="Preventivo", Q48="Detectivo"),OR(Q49="Preventivo", Q49="Detectivo")),(X48-(+X48*S49)),IF(OR(Q49="Preventivo", Q49="Detectivo"),(X47-(+X47*S49)),IF(Q49="Correctivo",X48,""))),"") ->  | Z49: =IFERROR(IF(AND(Q48="Correctivo",Q49="Correctivo"),(Z48-(+Z48*S49)),IF(Q49="Correctivo",(Z47-(+Z47*S49)),IF(OR(Q49="Preventivo", Q49="Detectivo"),Z48,""))),"") -> 
B50: 6 | J50: =IF(I50<=0,"",IF(I50<=2,"Muy Baja",IF(I50<=12,"Baja",IF(I50<=365,"Media",IF(I50<=5000,"Alta","Muy Alta"))))) ->  | K50: =IF(J50="","",IF(J50="Muy Baja",0.2,IF(J50="Baja",0.4,IF(J50="Media",0.6,IF(J50="Alta",0.8,IF(J50="Muy Alta",1,)))))) ->  | M50: =IF(L50="","",IF(L50="Leve",0.2,IF(L50="Menor",0.4,IF(L50="Moderado",0.6,IF(L50="Mayor",0.8,IF(L50="Catastrófico",1,)))))) ->  | N50: =IF(OR(AND(J50="Muy Baja",L50="Leve"),AND(J50="Muy Baja",L50="Menor"),AND(J50="Baja",L50="Leve")),"BAJA",IF(OR(AND(J50="Muy baja",L50="Moderado"),AND(J50="Baja",L50="Menor"),AND(J50="Baja",L50="Moderado"),AND(J50="Media",L50="Leve"),AND(J50="Media",L50="Menor"),AND(J50="Media",L50="Moderado"),AND(J50="Alta",L50="Leve"),AND(J50="Alta",L50="Menor")),"MODERADA",IF(OR(AND(J50="Muy Baja",L50="Mayor"),AND(J50="Baja",L50="Mayor"),AND(J50="Media",L50="Mayor"),AND(J50="Alta",L50="Moderado"),AND(J50="Alta",L50="Mayor"),AND(J50="Muy Alta",L50="Leve"),AND(J50="Muy Alta",L50="Menor"),AND(J50="Muy Alta",L50="Moderado"),AND(J50="Muy Alta",L50="Mayor")),"ALTA",IF(OR(AND(J50="Muy Baja",L50="Catastrófico"),AND(J50="Baja",L50="Catastrófico"),AND(J50="Media",L50="Catastrófico"),AND(J50="Alta",L50="Catastrófico"),AND(J50="Muy Alta",L50="Catastrófico")),"EXTREMA","")))) ->  | O50: 1 | X50: =IFERROR(IF(OR(Q50="Preventivo", Q50="Detectivo"),(K50-(+K50*S50)),IF(Q50="Correctivo",K50,"")),"") ->  | Z50: =IFERROR(IF(Q50="Correctivo",(M50-(+M50*S50)),IF(OR(Q50="Preventivo", Q50="Detectivo"),M50,"")),"") ->  | AB50: =IF(ISBLANK(R50), N50,LOOKUP(2,1/(AA50:AA56<>""),AA50:AA56)) -> 
O51: 2 | X51: =IFERROR(IF(AND(OR(Q50="Preventivo", Q50="Detectivo"),OR(Q51="Preventivo", Q51="Detectivo")),(X50-(+X50*S51)),IF(OR(Q51="Preventivo", Q51="Detectivo"),(K50-(+K50*S51)),IF(Q51="Correctivo",X50,""))),"") ->  | Z51: =IFERROR(IF(AND(Q50="Correctivo",Q51="Correctivo"),(Z50-(+Z50*S51)),IF(Q51="Correctivo",(M50-(+M50*S51)),IF(OR(Q51="Preventivo", Q51="Detectivo"),Z50,""))),"") -> 
O52: 3 | X52: =IFERROR(IF(AND(OR(Q51="Preventivo", Q51="Detectivo"),OR(Q52="Preventivo", Q52="Detectivo")),(X51-(+X51*S52)),IF(OR(Q52="Preventivo", Q52="Detectivo"),(X50-(+X50*S52)),IF(Q52="Correctivo",X51,""))),"") ->  | Z52: =IFERROR(IF(AND(Q51="Correctivo",Q52="Correctivo"),(Z51-(+Z51*S52)),IF(Q52="Correctivo",(Z50-(+Z50*S52)),IF(OR(Q52="Preventivo", Q52="Detectivo"),Z51,""))),"") -> 
O53: 4 | X53: =IFERROR(IF(AND(OR(Q52="Preventivo", Q52="Detectivo"),OR(Q53="Preventivo", Q53="Detectivo")),(X52-(+X52*S53)),IF(OR(Q53="Preventivo", Q53="Detectivo"),(X51-(+X51*S53)),IF(Q53="Correctivo",X52,""))),"") ->  | Z53: =IFERROR(IF(AND(Q52="Correctivo",Q53="Correctivo"),(Z52-(+Z52*S53)),IF(Q53="Correctivo",(Z51-(+Z51*S53)),IF(OR(Q53="Preventivo", Q53="Detectivo"),Z52,""))),"") -> 
O54: 5 | X54: =IFERROR(IF(AND(OR(Q53="Preventivo", Q53="Detectivo"),OR(Q54="Preventivo", Q54="Detectivo")),(X53-(+X53*S54)),IF(OR(Q54="Preventivo", Q54="Detectivo"),(X52-(+X52*S54)),IF(Q54="Correctivo",X53,""))),"") ->  | Z54: =IFERROR(IF(AND(Q53="Correctivo",Q54="Correctivo"),(Z53-(+Z53*S54)),IF(Q54="Correctivo",(Z52-(+Z52*S54)),IF(OR(Q54="Preventivo", Q54="Detectivo"),Z53,""))),"") -> 
O55: 6 | X55: =IFERROR(IF(AND(OR(Q54="Preventivo", Q54="Detectivo"),OR(Q55="Preventivo", Q55="Detectivo")),(X54-(+X54*S55)),IF(OR(Q55="Preventivo", Q55="Detectivo"),(X53-(+X53*S55)),IF(Q55="Correctivo",X54,""))),"") ->  | Z55: =IFERROR(IF(AND(Q54="Correctivo",Q55="Correctivo"),(Z54-(+Z54*S55)),IF(Q55="Correctivo",(Z53-(+Z53*S55)),IF(OR(Q55="Preventivo", Q55="Detectivo"),Z54,""))),"") -> 
O56: 7 | X56: =IFERROR(IF(AND(OR(Q55="Preventivo", Q55="Detectivo"),OR(Q56="Preventivo", Q56="Detectivo")),(X55-(+X55*S56)),IF(OR(Q56="Preventivo", Q56="Detectivo"),(X54-(+X54*S56)),IF(Q56="Correctivo",X55,""))),"") ->  | Z56: =IFERROR(IF(AND(Q55="Correctivo",Q56="Correctivo"),(Z55-(+Z55*S56)),IF(Q56="Correctivo",(Z54-(+Z54*S56)),IF(OR(Q56="Preventivo", Q56="Detectivo"),Z55,""))),"") -> 
B57: 7 | J57: =IF(I57<=0,"",IF(I57<=2,"Muy Baja",IF(I57<=12,"Baja",IF(I57<=365,"Media",IF(I57<=5000,"Alta","Muy Alta"))))) ->  | K57: =IF(J57="","",IF(J57="Muy Baja",0.2,IF(J57="Baja",0.4,IF(J57="Media",0.6,IF(J57="Alta",0.8,IF(J57="Muy Alta",1,)))))) ->  | M57: =IF(L57="","",IF(L57="Leve",0.2,IF(L57="Menor",0.4,IF(L57="Moderado",0.6,IF(L57="Mayor",0.8,IF(L57="Catastrófico",1,)))))) ->  | N57: =IF(OR(AND(J57="Muy Baja",L57="Leve"),AND(J57="Muy Baja",L57="Menor"),AND(J57="Baja",L57="Leve")),"BAJA",IF(OR(AND(J57="Muy baja",L57="Moderado"),AND(J57="Baja",L57="Menor"),AND(J57="Baja",L57="Moderado"),AND(J57="Media",L57="Leve"),AND(J57="Media",L57="Menor"),AND(J57="Media",L57="Moderado"),AND(J57="Alta",L57="Leve"),AND(J57="Alta",L57="Menor")),"MODERADA",IF(OR(AND(J57="Muy Baja",L57="Mayor"),AND(J57="Baja",L57="Mayor"),AND(J57="Media",L57="Mayor"),AND(J57="Alta",L57="Moderado"),AND(J57="Alta",L57="Mayor"),AND(J57="Muy Alta",L57="Leve"),AND(J57="Muy Alta",L57="Menor"),AND(J57="Muy Alta",L57="Moderado"),AND(J57="Muy Alta",L57="Mayor")),"ALTA",IF(OR(AND(J57="Muy Baja",L57="Catastrófico"),AND(J57="Baja",L57="Catastrófico"),AND(J57="Media",L57="Catastrófico"),AND(J57="Alta",L57="Catastrófico"),AND(J57="Muy Alta",L57="Catastrófico")),"EXTREMA","")))) ->  | O57: 1 | X57: =IFERROR(IF(OR(Q57="Preventivo", Q57="Detectivo"),(K57-(+K57*S57)),IF(Q57="Correctivo",K57,"")),"") ->  | Z57: =IFERROR(IF(Q57="Correctivo",(M57-(+M57*S57)),IF(OR(Q57="Preventivo", Q57="Detectivo"),M57,"")),"") ->  | AB57: =IF(ISBLANK(R57), N57,LOOKUP(2,1/(AA57:AA63<>""),AA57:AA63)) -> 
O58: 2 | X58: =IFERROR(IF(AND(OR(Q57="Preventivo", Q57="Detectivo"),OR(Q58="Preventivo", Q58="Detectivo")),(X57-(+X57*S58)),IF(OR(Q58="Preventivo", Q58="Detectivo"),(K57-(+K57*S58)),IF(Q58="Correctivo",X57,""))),"") ->  | Z58: =IFERROR(IF(AND(Q57="Correctivo",Q58="Correctivo"),(Z57-(+Z57*S58)),IF(Q58="Correctivo",(M57-(+M57*S58)),IF(OR(Q58="Preventivo", Q58="Detectivo"),Z57,""))),"") -> 
O59: 3 | X59: =IFERROR(IF(AND(OR(Q58="Preventivo", Q58="Detectivo"),OR(Q59="Preventivo", Q59="Detectivo")),(X58-(+X58*S59)),IF(OR(Q59="Preventivo", Q59="Detectivo"),(X57-(+X57*S59)),IF(Q59="Correctivo",X58,""))),"") ->  | Z59: =IFERROR(IF(AND(Q58="Correctivo",Q59="Correctivo"),(Z58-(+Z58*S59)),IF(Q59="Correctivo",(Z57-(+Z57*S59)),IF(OR(Q59="Preventivo", Q59="Detectivo"),Z58,""))),"") -> 
O60: 4 | X60: =IFERROR(IF(AND(OR(Q59="Preventivo", Q59="Detectivo"),OR(Q60="Preventivo", Q60="Detectivo")),(X59-(+X59*S60)),IF(OR(Q60="Preventivo", Q60="Detectivo"),(X58-(+X58*S60)),IF(Q60="Correctivo",X59,""))),"") ->  | Z60: =IFERROR(IF(AND(Q59="Correctivo",Q60="Correctivo"),(Z59-(+Z59*S60)),IF(Q60="Correctivo",(Z58-(+Z58*S60)),IF(OR(Q60="Preventivo", Q60="Detectivo"),Z59,""))),"") -> 
O61: 5 | X61: =IFERROR(IF(AND(OR(Q60="Preventivo", Q60="Detectivo"),OR(Q61="Preventivo", Q61="Detectivo")),(X60-(+X60*S61)),IF(OR(Q61="Preventivo", Q61="Detectivo"),(X59-(+X59*S61)),IF(Q61="Correctivo",X60,""))),"") ->  | Z61: =IFERROR(IF(AND(Q60="Correctivo",Q61="Correctivo"),(Z60-(+Z60*S61)),IF(Q61="Correctivo",(Z59-(+Z59*S61)),IF(OR(Q61="Preventivo", Q61="Detectivo"),Z60,""))),"") -> 
O62: 6 | X62: =IFERROR(IF(AND(OR(Q61="Preventivo", Q61="Detectivo"),OR(Q62="Preventivo", Q62="Detectivo")),(X61-(+X61*S62)),IF(OR(Q62="Preventivo", Q62="Detectivo"),(X60-(+X60*S62)),IF(Q62="Correctivo",X61,""))),"") ->  | Z62: =IFERROR(IF(AND(Q61="Correctivo",Q62="Correctivo"),(Z61-(+Z61*S62)),IF(Q62="Correctivo",(Z60-(+Z60*S62)),IF(OR(Q62="Preventivo", Q62="Detectivo"),Z61,""))),"") -> 
O63: 7 | X63: =IFERROR(IF(AND(OR(Q62="Preventivo", Q62="Detectivo"),OR(Q63="Preventivo", Q63="Detectivo")),(X62-(+X62*S63)),IF(OR(Q63="Preventivo", Q63="Detectivo"),(X61-(+X61*S63)),IF(Q63="Correctivo",X62,""))),"") ->  | Z63: =IFERROR(IF(AND(Q62="Correctivo",Q63="Correctivo"),(Z62-(+Z62*S63)),IF(Q63="Correctivo",(Z61-(+Z61*S63)),IF(OR(Q63="Preventivo", Q63="Detectivo"),Z62,""))),"") -> 
B65: Elaboró | D65: Revisó | F65: Aprobó
B66: Nombre: Daniel Mauricio Peña / Alejandra Wilches / Katherine Chala Cargo: Contratista CIDC / Contratista Catedra Unesco / Contratista I3+ Fecha: 29/07/2022 | D66: Nombre: Angela Parrado Rosselli Cargo: Directora Centro de Investigación y Desarrollo Cientifico Fecha: 26/08/2022 | F66: Nombre: Angela Parrado Rosselli Cargo: Directora Centro de Investigación y Desarrollo Cientifico Fecha: 26/08/2022

Sheet 3) EPS - Cal
D2: MAPA INTEGRAL DE RIESGOS | G2: Código: GI-MG-001-FR-014
D3: Macroproceso: Direccionamiento Estratégico | G3: Versión: 04
D4: Proceso: Gestión Integrada | G4: Fecha de Aprobación: 23/12/2021
B6: EJE DE CALIDAD
B8: Proceso: | D8: Extensión y Proyección Social
B9: Objetivo del Proceso: | D9: =IF(D8=0,"",VLOOKUP(D8,'[8]Datos SGC'!B50:C71,2)) -> Promover la vinculación de la Universidad Distrital Francisco José de Caldas con su entorno social, a través de la coordinación de los programas, planes y proyectos de Extensión y Proyección Social, en articulación a la Docencia y la Investigación.
AN10: 44 | AP10: 4 | AT10: 4 | AU10: 4
B12: IDENTIFICACIÓN DEL RIESGO | J12: ANÁLISIS DEL RIESGO | Q12: EVALUACIÓN DEL RIESGO | AE12: TRATAMIENTO DEL RIESGO
B13: N° | C13: Descripción del Riesgo | D13: Tipo de Riesgo | E13: Impacto | F13: Causa inmediata | G13: Causa raíz | H13: Consecuencias adicionales | I13: Unidad(es) que reportan al Riesgo | J13: Número de veces que se pasa por el punto de riesgo en el periodo de 1 año | K13: Probabilidad | L13: % P | M13: Impacto | N13: % I | O13: Zona de Riesgo Inherente | P13: Nº | Q13: Controles existentes | R13: Atributos de eficacia | U13: Atributos informativos | X13: Probabilidad Residual | Y13: % P | Z13: Impacto Residual | AA13: % I | AB13: Zona de Riesgo después del Control | AC13: Zona de Riesgo Residual FINAL | AD13: Tratamiento al Riesgo | AE13: Acción para mitigar el riesgo | AF13: Evidencia de cumplimiento | AG13: Responsable | AH13: Periodo de ejecución
R14: Tipo | S14: Implementación | T14: Calificación del control (%) | U14: Documentación | V14: Frecuencia | W14: Evidencia
B15: 1 | C15: Posibilidad en la falta de reconocimiento y la desinformación de la labor y las funciones del Instituto de Lenguas (ILUD), y Instituto de Extensión (IDEXUD) de la Universidad Distrital, por parte de la comunidad de la Universidad Distrital Francisco José de Caldas. | D15: Operativo | E15: Afectación de los procesos misionales | F15: Falta de coordinación de estrategias de comunicación para estandarización de documentos. | G15: Falta de inclusión del Instituto en algunas jornadas y actividades dentro de la Universidad. | H15: Falta de estandarización y normalización de la documentación asociada a los procedimientos y actualización de los procedimientos existentes o creación de nuevos procedimientos. | I15: IDEXUD ILUD | J15: 3000 | K15: =IF(J15<=0,"",IF(J15<=2,"Muy Baja",IF(J15<=12,"Baja",IF(J15<=365,"Media",IF(J15<=5000,"Alta","Muy Alta"))))) -> Alta | L15: =IF(K15="","",IF(K15="Muy Baja",0.2,IF(K15="Baja",0.4,IF(K15="Media",0.6,IF(K15="Alta",0.8,IF(K15="Muy Alta",1,)))))) -> 0.8 | M15: Menor | N15: =IF(M15="","",IF(M15="Leve",0.2,IF(M15="Menor",0.4,IF(M15="Moderado",0.6,IF(M15="Mayor",0.8,IF(M15="Catastrófico",1,)))))) -> 0.4 | O15: =IF(OR(AND(K15="Muy Baja",M15="Leve"),AND(K15="Muy Baja",M15="Menor"),AND(K15="Baja",M15="Leve")),"BAJA",IF(OR(AND(K15="Muy baja",M15="Moderado"),AND(K15="Baja",M15="Menor"),AND(K15="Baja",M15="Moderado"),AND(K15="Media",M15="Leve"),AND(K15="Media",M15="Menor"),AND(K15="Media",M15="Moderado"),AND(K15="Alta",M15="Leve"),AND(K15="Alta",M15="Menor")),"MODERADA",IF(OR(AND(K15="Muy Baja",M15="Mayor"),AND(K15="Baja",M15="Mayor"),AND(K15="Media",M15="Mayor"),AND(K15="Alta",M15="Moderado"),AND(K15="Alta",M15="Mayor"),AND(K15="Muy Alta",M15="Leve"),AND(K15="Muy Alta",M15="Menor"),AND(K15="Muy Alta",M15="Moderado"),AND(K15="Muy Alta",M15="Mayor")),"ALTA",IF(OR(AND(K15="Muy Baja",M15="Catastrófico"),AND(K15="Baja",M15="Catastrófico"),AND(K15="Media",M15="Catastrófico"),AND(K15="Alta",M15="Catastrófico"),AND(K15="Muy Alta",M15="Catastrófico")),"EXTREMA","")))) -> MODERADA | P15: 1 | Q15: Los profesionales del IDEXUD e ILUD realizan la Revisión y estandarización de documentos que falten por normalización dentro del Sistema. | R15: Preventivo | S15: Manual | T15: =IF(AND(R15="Preventivo",S15="Automático"),"50%",IF(AND(R15="Preventivo",S15="Manual"),"40%",IF(AND(R15="Detectivo",S15="Automático"),"40%",IF(AND(R15="Detectivo",S15="Manual"),"30%",IF(AND(R15="Correctivo",S15="Automático"),"35%",IF(AND(R15="Correctivo",S15="Manual"),"25%","")))))) -> 40% | U15: Sin documentar | V15: Continua | W15: Sin registro | X15: =IFERROR(IF(Y15="","",IF(Y15<=0.2,"Muy Baja",IF(Y15<=0.4,"Baja",IF(Y15<=0.6,"Media",IF(Y15<=0.8,"Alta","Muy Alta"))))),"") -> Media | Y15: =IFERROR(IF(OR(R15="Preventivo", R15="Detectivo"),(L15-(+L15*T15)),IF(R15="Correctivo",L15,"")),"") -> 0.48 | Z15: =IFERROR(IF(AA15="","",IF(AA15<=0.2,"Leve",IF(AA15<=0.4,"Menor",IF(AA15<=0.6,"Moderado",IF(AA15<=0.8,"Mayor","Catastrófico"))))),"") -> Menor | AA15: =IFERROR(IF(R15="Correctivo",(N15-(+N15*T15)),IF(OR(R15="Preventivo", R15="Detectivo"),N15,"")),"") -> 0.4 | AB15: =IFERROR(IF(OR(AND(X15="Muy Baja",Z15="Leve"),AND(X15="Muy Baja",Z15="Menor"),AND(X15="Baja",Z15="Leve")),"BAJA",IF(OR(AND(X15="Muy baja",Z15="Moderado"),AND(X15="Baja",Z15="Menor"),AND(X15="Baja",Z15="Moderado"),AND(X15="Media",Z15="Leve"),AND(X15="Media",Z15="Menor"),AND(X15="Media",Z15="Moderado"),AND(X15="Alta",Z15="Leve"),AND(X15="Alta",Z15="Menor")),"MODERADA",IF(OR(AND(X15="Muy Baja",Z15="Mayor"),AND(X15="Baja",Z15="Mayor"),AND(X15="Media",Z15="Mayor"),AND(X15="Alta",Z15="Moderado"),AND(X15="Alta",Z15="Mayor"),AND(X15="Muy Alta",Z15="Leve"),AND(X15="Muy Alta",Z15="Menor"),AND(X15="Muy Alta",Z15="Moderado"),AND(X15="Muy Alta",Z15="Mayor")),"ALTA",IF(OR(AND(X15="Muy Baja",Z15="Catastrófico"),AND(X15="Baja",Z15="Catastrófico"),AND(X15="Media",Z15="Catastrófico"),AND(X15="Alta",Z15="Catastrófico"),AND(X15="Muy Alta",Z15="Catastrófico")),"EXTREMA","")))),"") -> MODERADA | AC15: =IF(ISBLANK(S15), O15,LOOKUP(2,1/(AB15:AB21<>""),AB15:AB21)) -> BAJA | AD15: Reducir | AE15: Elaborar, actualizar, aprobar, publicar e implementar los diferentes instrumentos y herramientas necesarias para el cumplimiento de las actividades propias del proceso de Extensión y Proyección Social | AF15: Documentos | AG15: Profesionales de IDEXUD e ILUD | AH15: Toda la vigencia
G16: Interrupción de los procesos y procedimientos por cambio de gestor. | H16: Uso inadecuado de formatos y registros. Inadecuado reconocimiento o falta de reconocimiento de la misión del Instituto y su alcance. | P16: 2 | Q16: El equipo de calidad del IDEXUD es el responsable de realizar el Entrenamiento y sensibilización sobre formatos y el correcto manejo de los mismos. | R16: Preventivo | S16: Manual | T16: 40% | U16: Sin documentar | V16: Continua | W16: Sin registro | X16: Baja | Y16: =IFERROR(IF(AND(OR(R15="Preventivo", R15="Detectivo"),OR(R16="Preventivo", R16="Detectivo")),(Y15-(+Y15*T16)),IF(OR(R16="Preventivo", R16="Detectivo"),(L15-(+L15*T16)),IF(R16="Correctivo",Y15,""))),"") -> 0.288 | Z16: Menor | AA16: =IFERROR(IF(AND(R15="Correctivo",R16="Correctivo"),(AA15-(+AA15*T16)),IF(R16="Correctivo",(N15-(+N15*T16)),IF(OR(R16="Preventivo", R16="Detectivo"),AA15,""))),"") -> 0.4 | AB16: MODERADA
G17: Desactualización y/o duplicidad de la información. | H17: Duplicidad de la información manejada por el Instituto y demás dependencias de la Universidad Distrital. | P17: 3 | Q17: los profesionales de calidad del IDEXUD y del ILUD realizaran la Articulación con el SIGUD para homologación de formatos dentro del SGC del IDEXUD | R17: Preventivo | S17: Manual | T17: 40% | U17: Sin documentar | V17: Continua | W17: Sin registro | X17: Muy Baja | Y17: =IFERROR(IF(AND(OR(R16="Preventivo", R16="Detectivo"),OR(R17="Preventivo", R17="Detectivo")),(Y16-(+Y16*T17)),IF(OR(R17="Preventivo", R17="Detectivo"),(Y15-(+Y15*T17)),IF(R17="Correctivo",Y16,""))),"") -> 0.1728 | Z17: Menor | AA17: =IFERROR(IF(AND(R16="Correctivo",R17="Correctivo"),(AA16-(+AA16*T17)),IF(R17="Correctivo",(AA15-(+AA15*T17)),IF(OR(R17="Preventivo", R17="Detectivo"),AA16,""))),"") -> 0.4 | AB17: BAJA
G18: Retraso en la ejecución de procedimientos por parte de los contratistas debido al desconocimiento del mapa de procesos y del organigrama | H18: Reprocesamiento de actividades y procedimientos. | P18: 4 | Q18: El equipo de calidad es el encargado de la divulgación de procedimientos del Sistema Integrado con el fin de evitar el re proceso. | R18: Preventivo | S18: Manual | T18: 40% | U18: Sin documentar | V18: Continua | W18: Sin registro | X18: Muy Baja | Y18: =IFERROR(IF(AND(OR(R17="Preventivo", R17="Detectivo"),OR(R18="Preventivo", R18="Detectivo")),(Y17-(+Y17*T18)),IF(OR(R18="Preventivo", R18="Detectivo"),(Y16-(+Y16*T18)),IF(R18="Correctivo",Y17,""))),"") -> 0.10368 | Z18: Menor | AA18: =IFERROR(IF(AND(R17="Correctivo",R18="Correctivo"),(AA17-(+AA17*T18)),IF(R18="Correctivo",(AA16-(+AA16*T18)),IF(OR(R18="Preventivo", R18="Detectivo"),AA17,""))),"") -> 0.4 | AB18: BAJA
G19: Planteamiento erróneo de estrategias de divulgación y ampliación de la función del Instituto. | H19: Proyectar una imagen inadecuada los usuarios. | P19: 5 | Q19: El equipo del IDEXUD y del ILUD serán los responsables de la socialización constante de los procedimientos asociados al Instituto. | R19: Preventivo | S19: Manual | T19: 40% | U19: Sin documentar | V19: Continua | W19: Sin registro | X19: Muy Baja | Y19: =IFERROR(IF(AND(OR(R18="Preventivo", R18="Detectivo"),OR(R19="Preventivo", R19="Detectivo")),(Y18-(+Y18*T19)),IF(OR(R19="Preventivo", R19="Detectivo"),(Y17-(+Y17*T19)),IF(R19="Correctivo",Y18,""))),"") -> 0.062208 | Z19: Menor | AA19: =IFERROR(IF(AND(R18="Correctivo",R19="Correctivo"),(AA18-(+AA18*T19)),IF(R19="Correctivo",(AA17-(+AA17*T19)),IF(OR(R19="Preventivo", R19="Detectivo"),AA18,""))),"") -> 0.4 | AB19: BAJA
H20: Disminución de ingresos por concepto de matrículas. | P20: 6 | Q20: Los profesionales del ILUD son los responsables de la implementación de un equipo encargado de la comunicación interna y externa. | R20: Preventivo | S20: Manual | T20: 40% | U20: Sin documentar | V20: Continua | W20: Sin registro | X20: Muy Baja | Y20: =IFERROR(IF(AND(OR(R19="Preventivo", R19="Detectivo"),OR(R20="Preventivo", R20="Detectivo")),(Y19-(+Y19*T20)),IF(OR(R20="Preventivo", R20="Detectivo"),(Y18-(+Y18*T20)),IF(R20="Correctivo",Y19,""))),"") -> 0.0373248 | Z20: Menor | AA20: =IFERROR(IF(AND(R19="Correctivo",R20="Correctivo"),(AA19-(+AA19*T20)),IF(R20="Correctivo",(AA18-(+AA18*T20)),IF(OR(R20="Preventivo", R20="Detectivo"),AA19,""))),"") -> 0.4 | AB20: BAJA
P21: 7 | Y21: =IFERROR(IF(AND(OR(R20="Preventivo", R20="Detectivo"),OR(R21="Preventivo", R21="Detectivo")),(Y20-(+Y20*T21)),IF(OR(R21="Preventivo", R21="Detectivo"),(Y19-(+Y19*T21)),IF(R21="Correctivo",Y20,""))),"") ->  | AA21: =IFERROR(IF(AND(R20="Correctivo",R21="Correctivo"),(AA20-(+AA20*T21)),IF(R21="Correctivo",(AA19-(+AA19*T21)),IF(OR(R21="Preventivo", R21="Detectivo"),AA20,""))),"") -> 
B22: 2 | C22: Posibilidad en el retraso y/o demora de las actividades, por parte de los contratistas y funcionarios de planta del Instituto de Extensión de la Universidad Distrital (IDEXUD) y el ILUD por falta de sensibilización y socialización de procedimientos. | D22: Operativo | E22: Afectación de los procesos misionales | F22: Dificultad de realizar empalme de los contratistas al momento de llevar a cabo el cambio de contratistas. | G22: Falta de jornadas de sensibilización y socialización a los contratistas de Instituto. | H22: Desviación en el cumplimiento de actividades o metas. | I22: IDEXUD ILUD | J22: 1000 | K22: =IF(J22<=0,"",IF(J22<=2,"Muy Baja",IF(J22<=12,"Baja",IF(J22<=365,"Media",IF(J22<=5000,"Alta","Muy Alta"))))) -> Alta | L22: =IF(K22="","",IF(K22="Muy Baja",0.2,IF(K22="Baja",0.4,IF(K22="Media",0.6,IF(K22="Alta",0.8,IF(K22="Muy Alta",1,)))))) -> 0.8 | M22: Moderado | N22: =IF(M22="","",IF(M22="Leve",0.2,IF(M22="Menor",0.4,IF(M22="Moderado",0.6,IF(M22="Mayor",0.8,IF(M22="Catastrófico",1,)))))) -> 0.6 | O22: =IF(OR(AND(K22="Muy Baja",M22="Leve"),AND(K22="Muy Baja",M22="Menor"),AND(K22="Baja",M22="Leve")),"BAJA",IF(OR(AND(K22="Muy baja",M22="Moderado"),AND(K22="Baja",M22="Menor"),AND(K22="Baja",M22="Moderado"),AND(K22="Media",M22="Leve"),AND(K22="Media",M22="Menor"),AND(K22="Media",M22="Moderado"),AND(K22="Alta",M22="Leve"),AND(K22="Alta",M22="Menor")),"MODERADA",IF(OR(AND(K22="Muy Baja",M22="Mayor"),AND(K22="Baja",M22="Mayor"),AND(K22="Media",M22="Mayor"),AND(K22="Alta",M22="Moderado"),AND(K22="Alta",M22="Mayor"),AND(K22="Muy Alta",M22="Leve"),AND(K22="Muy Alta",M22="Menor"),AND(K22="Muy Alta",M22="Moderado"),AND(K22="Muy Alta",M22="Mayor")),"ALTA",IF(OR(AND(K22="Muy Baja",M22="Catastrófico"),AND(K22="Baja",M22="Catastrófico"),AND(K22="Media",M22="Catastrófico"),AND(K22="Alta",M22="Catastrófico"),AND(K22="Muy Alta",M22="Catastrófico")),"EXTREMA","")))) -> ALTA | P22: 1 | Q22: Los jefes del IDEXUD y del ILUD son los responsables de la Inducción y entrenamiento a todos los contratistas del IDEXUD y el ILUD y a cada puesto de trabajo. | R22: Preventivo | S22: Manual | T22: 40% | U22: Sin documentar | V22: Continua | W22: Sin registro | X22: Media | Y22: =IFERROR(IF(OR(R22="Preventivo", R22="Detectivo"),(L22-(+L22*T22)),IF(R22="Correctivo",L22,"")),"") -> 0.48 | Z22: Moderado | AA22: =IFERROR(IF(R22="Correctivo",(N22-(+N22*T22)),IF(OR(R22="Preventivo", R22="Detectivo"),N22,"")),"") -> 0.6 | AB22: MODERADA | AC22: =IF(ISBLANK(S22), O22,LOOKUP(2,1/(AB22:AB28<>""),AB22:AB28)) -> MODERADA | AD22: Reducir | AE22: Vincular el personal suficiente e idóneo para el desarrollo de las actividades propias del proceso de Extensión y Proyección Social | AF22: Estudios Previos, necesidades y Contratos | AG22: Jefes del IDEXUD e ILUD | AH22: Toda la vigencia
G23: Dificultad de entendimiento de las funciones, procedimientos y servicios realizados en el Instituto. | H23: Insatisfacción del cliente y/o usuario al no alcanzar las expectativas | P23: 2 | Q23: El equipo de calidad del Idexud y del ILUD son los responsables de socialización de misión, visión y procedimientos asociados a los Institutos. | R23: Preventivo | S23: Manual | T23: 40% | U23: Sin documentar | V23: Continua | W23: Sin registro | X23: Baja | Y23: =IFERROR(IF(AND(OR(R22="Preventivo", R22="Detectivo"),OR(R23="Preventivo", R23="Detectivo")),(Y22-(+Y22*T23)),IF(OR(R23="Preventivo", R23="Detectivo"),(L22-(+L22*T23)),IF(R23="Correctivo",Y22,""))),"") -> 0.288 | Z23: Moderado | AA23: =IFERROR(IF(AND(R22="Correctivo",R23="Correctivo"),(AA22-(+AA22*T23)),IF(R23="Correctivo",(N22-(+N22*T23)),IF(OR(R23="Preventivo", R23="Detectivo"),AA22,""))),"") -> 0.6 | AB23: MODERADA | AE23: El equipo del proceso de EPS , constantemente divulgará y sensibilizará la información institucional misional y estratégica de interés en todos los espacios del proceso, | AF23: lista de asistencia de las sensibilizaciones | AG23: Profesionales de IDEXUD e ILUD | AH23: Toda la vigencia
G24: Desinterés por parte del talento humano. | H24: Demoras en los tiempos de ejecución del proyecto y/o servicio. | P24: 3 | Q24: Los jefes del IDEXUD y del ILUD debe definir perfiles y roles de cargo con el fin de dar claridad a los contratistas respecto a sus actividades. | R24: Preventivo | S24: Manual | T24: 40% | U24: Sin documentar | V24: Continua | W24: Sin registro | X24: Muy Baja | Y24: =IFERROR(IF(AND(OR(R23="Preventivo", R23="Detectivo"),OR(R24="Preventivo", R24="Detectivo")),(Y23-(+Y23*T24)),IF(OR(R24="Preventivo", R24="Detectivo"),(Y22-(+Y22*T24)),IF(R24="Correctivo",Y23,""))),"") -> 0.1728 | Z24: Moderado | AA24: =IFERROR(IF(AND(R23="Correctivo",R24="Correctivo"),(AA23-(+AA23*T24)),IF(R24="Correctivo",(AA22-(+AA22*T24)),IF(OR(R24="Preventivo", R24="Detectivo"),AA23,""))),"") -> 0.6 | AB24: MODERADA
H25: Desempeño bajo o inadecuado de los contratistas. | P25: 4 | Q25: Los jefes del IDEXUD y del ILUD deben realizar constante seguimiento de los contratistas a través de instrumentos estandarizaos. | R25: Preventivo | S25: Manual | T25: 40% | U25: Sin documentar | V25: Continua | W25: Sin registro | X25: Muy Baja | Y25: =IFERROR(IF(AND(OR(R24="Preventivo", R24="Detectivo"),OR(R25="Preventivo", R25="Detectivo")),(Y24-(+Y24*T25)),IF(OR(R25="Preventivo", R25="Detectivo"),(Y23-(+Y23*T25)),IF(R25="Correctivo",Y24,""))),"") -> 0.10368 | Z25: Moderado | AA25: =IFERROR(IF(AND(R24="Correctivo",R25="Correctivo"),(AA24-(+AA24*T25)),IF(R25="Correctivo",(AA23-(+AA23*T25)),IF(OR(R25="Preventivo", R25="Detectivo"),AA24,""))),"") -> 0.6 | AB25: MODERADA
P26: 5 | Y26: =IFERROR(IF(AND(OR(R25="Preventivo", R25="Detectivo"),OR(R26="Preventivo", R26="Detectivo")),(Y25-(+Y25*T26)),IF(OR(R26="Preventivo", R26="Detectivo"),(Y24-(+Y24*T26)),IF(R26="Correctivo",Y25,""))),"") ->  | AA26: =IFERROR(IF(AND(R25="Correctivo",R26="Correctivo"),(AA25-(+AA25*T26)),IF(R26="Correctivo",(AA24-(+AA24*T26)),IF(OR(R26="Preventivo", R26="Detectivo"),AA25,""))),"") -> 
P27: 6 | Y27: =IFERROR(IF(AND(OR(R26="Preventivo", R26="Detectivo"),OR(R27="Preventivo", R27="Detectivo")),(Y26-(+Y26*T27)),IF(OR(R27="Preventivo", R27="Detectivo"),(Y25-(+Y25*T27)),IF(R27="Correctivo",Y26,""))),"") ->  | AA27: =IFERROR(IF(AND(R26="Correctivo",R27="Correctivo"),(AA26-(+AA26*T27)),IF(R27="Correctivo",(AA25-(+AA25*T27)),IF(OR(R27="Preventivo", R27="Detectivo"),AA26,""))),"") -> 
P28: 7 | Y28: =IFERROR(IF(AND(OR(R27="Preventivo", R27="Detectivo"),OR(R28="Preventivo", R28="Detectivo")),(Y27-(+Y27*T28)),IF(OR(R28="Preventivo", R28="Detectivo"),(Y26-(+Y26*T28)),IF(R28="Correctivo",Y27,""))),"") ->  | AA28: =IFERROR(IF(AND(R27="Correctivo",R28="Correctivo"),(AA27-(+AA27*T28)),IF(R28="Correctivo",(AA26-(+AA26*T28)),IF(OR(R28="Preventivo", R28="Detectivo"),AA27,""))),"") -> 
B29: 3 | C29: Posibilidad de retraso y/o demora que se puede presentar al momento de llevar a cabo la ejecución de los proyectos desarrollados por el Instituto de Extensión de la Universidad Distrital francisco José de Caldas (IDEXUD) generando baja satisfacción en el cliente. | D29: Gerencial | E29: Afectación de los procesos misionales | F29: Desconocimiento del mapa de proceso y el organigrama. | G29: Falta de jornadas de socialización y sensibilización para el desarrollo de las actividades. | H29: Demoras en los tiempos de ejecución del proyecto y/o servicio. | I29: IDEXUD | J29: 1000 | K29: =IF(J29<=0,"",IF(J29<=2,"Muy Baja",IF(J29<=12,"Baja",IF(J29<=365,"Media",IF(J29<=5000,"Alta","Muy Alta"))))) -> Alta | L29: =IF(K29="","",IF(K29="Muy Baja",0.2,IF(K29="Baja",0.4,IF(K29="Media",0.6,IF(K29="Alta",0.8,IF(K29="Muy Alta",1,)))))) -> 0.8 | M29: Moderado | N29: =IF(M29="","",IF(M29="Leve",0.2,IF(M29="Menor",0.4,IF(M29="Moderado",0.6,IF(M29="Mayor",0.8,IF(M29="Catastrófico",1,)))))) -> 0.6 | O29: =IF(OR(AND(K29="Muy Baja",M29="Leve"),AND(K29="Muy Baja",M29="Menor"),AND(K29="Baja",M29="Leve")),"BAJA",IF(OR(AND(K29="Muy baja",M29="Moderado"),AND(K29="Baja",M29="Menor"),AND(K29="Baja",M29="Moderado"),AND(K29="Media",M29="Leve"),AND(K29="Media",M29="Menor"),AND(K29="Media",M29="Moderado"),AND(K29="Alta",M29="Leve"),AND(K29="Alta",M29="Menor")),"MODERADA",IF(OR(AND(K29="Muy Baja",M29="Mayor"),AND(K29="Baja",M29="Mayor"),AND(K29="Media",M29="Mayor"),AND(K29="Alta",M29="Moderado"),AND(K29="Alta",M29="Mayor"),AND(K29="Muy Alta",M29="Leve"),AND(K29="Muy Alta",M29="Menor"),AND(K29="Muy Alta",M29="Moderado"),AND(K29="Muy Alta",M29="Mayor")),"ALTA",IF(OR(AND(K29="Muy Baja",M29="Catastrófico"),AND(K29="Baja",M29="Catastrófico"),AND(K29="Media",M29="Catastrófico"),AND(K29="Alta",M29="Catastrófico"),AND(K29="Muy Alta",M29="Catastrófico")),"EXTREMA","")))) -> ALTA | P29: 1 | Q29: El equipo de calidad del IDEXUD y el ILUD divulgación de la misión de la función de extensión a todos los grupos de interés. | R29: Preventivo | S29: Manual | T29: 40% | U29: Sin documentar | V29: Continua | W29: Sin registro | X29: Media | Y29: =IFERROR(IF(OR(R29="Preventivo", R29="Detectivo"),(L29-(+L29*T29)),IF(R29="Correctivo",L29,"")),"") -> 0.48 | Z29: Moderado | AA29: =IFERROR(IF(R29="Correctivo",(N29-(+N29*T29)),IF(OR(R29="Preventivo", R29="Detectivo"),N29,"")),"") -> 0.6 | AB29: MODERADA | AC29: =IF(ISBLANK(S29), O29,LOOKUP(2,1/(AB29:AB35<>""),AB29:AB35)) -> MODERADA | AD29: Reducir | AE29: El equipo del procesos , constantemente divulgará y sensibilizará la información institucional misional y estratégica de interés en todos de extensión y responsabilidad social de la universidad y de servicios, eventos, socializaciones y demás espacios que lo requiera o solicite la ciudadanía y comunidad universitaria. | AF29: lista de asistencia de las sensibilizaciones | AG29: Profesionales de IDEXUD e ILUD | AH29: Toda la vigencia
G30: Dificultad en el aseguramiento de la disposición de insumos y recursos tecnológicos, por condiciones de locación. | H30: Insatisfacción del cliente y/o usuario al no alcanzar las expectativas. | P30: 2 | Q30: Los profesionales del IDEXUD Implementaran canales de comunicación acertados con el fin de generar reconocimiento del Instituto. | R30: Preventivo | S30: Manual | T30: 40% | U30: Sin documentar | V30: Continua | W30: Sin registro | X30: Baja | Y30: =IFERROR(IF(AND(OR(R29="Preventivo", R29="Detectivo"),OR(R30="Preventivo", R30="Detectivo")),(Y29-(+Y29*T30)),IF(OR(R30="Preventivo", R30="Detectivo"),(L29-(+L29*T30)),IF(R30="Correctivo",Y29,""))),"") -> 0.288 | Z30: Moderado | AA30: =IFERROR(IF(AND(R29="Correctivo",R30="Correctivo"),(AA29-(+AA29*T30)),IF(R30="Correctivo",(N29-(+N29*T30)),IF(OR(R30="Preventivo", R30="Detectivo"),AA29,""))),"") -> 0.6 | AB30: MODERADA | AE30: Elaborar, actualizar, aprobar, publicar e implementar los diferentes instrumentos y herramientas necesarias para el cumplimiento de las actividades propias del proceso de Extensión y Proyección Social | AF30: Documentos | AG30: Profesionales de IDEXUD | AH30: Toda la vigencia
G31: Debilidad en la aplicación de acciones de seguimiento y control de proyectos | H31: Reprocesamiento de actividades y procedimientos. | P31: 3 | Q31: El equipo de calidad del IDEXUD y el ILUD son los responsables de programar mesas de trabajo de manera periódica para asegurar articulación con el Sistema de la Universidad. | R31: Preventivo | S31: Manual | T31: 40% | U31: Sin documentar | V31: Continua | W31: Sin registro | X31: Muy Baja | Y31: =IFERROR(IF(AND(OR(R30="Preventivo", R30="Detectivo"),OR(R31="Preventivo", R31="Detectivo")),(Y30-(+Y30*T31)),IF(OR(R31="Preventivo", R31="Detectivo"),(Y29-(+Y29*T31)),IF(R31="Correctivo",Y30,""))),"") -> 0.1728 | Z31: Moderado | AA31: =IFERROR(IF(AND(R30="Correctivo",R31="Correctivo"),(AA30-(+AA30*T31)),IF(R31="Correctivo",(AA29-(+AA29*T31)),IF(OR(R31="Preventivo", R31="Detectivo"),AA30,""))),"") -> 0.6 | AB31: MODERADA
H32: Cumplimiento no asertivo de la misión del proceso de Extensión y Proyección Social y los objetivos del Instituto. | P32: 4 | Q32: El equipo de calidad del IDEXUD y el ILUD serna los encargados de la estructuración de formatos e instrumentos que permitan hacer seguimiento adecuado. | R32: Preventivo | S32: Manual | T32: 40% | U32: Sin documentar | V32: Continua | W32: Sin registro | X32: Muy Baja | Y32: =IFERROR(IF(AND(OR(R31="Preventivo", R31="Detectivo"),OR(R32="Preventivo", R32="Detectivo")),(Y31-(+Y31*T32)),IF(OR(R32="Preventivo", R32="Detectivo"),(Y30-(+Y30*T32)),IF(R32="Correctivo",Y31,""))),"") -> 0.10368 | Z32: Moderado | AA32: =IFERROR(IF(AND(R31="Correctivo",R32="Correctivo"),(AA31-(+AA31*T32)),IF(R32="Correctivo",(AA30-(+AA30*T32)),IF(OR(R32="Preventivo", R32="Detectivo"),AA31,""))),"") -> 0.6 | AB32: MODERADA
P33: 5 | Y33: =IFERROR(IF(AND(OR(R32="Preventivo", R32="Detectivo"),OR(R33="Preventivo", R33="Detectivo")),(Y32-(+Y32*T33)),IF(OR(R33="Preventivo", R33="Detectivo"),(Y31-(+Y31*T33)),IF(R33="Correctivo",Y32,""))),"") ->  | AA33: =IFERROR(IF(AND(R32="Correctivo",R33="Correctivo"),(AA32-(+AA32*T33)),IF(R33="Correctivo",(AA31-(+AA31*T33)),IF(OR(R33="Preventivo", R33="Detectivo"),AA32,""))),"") -> 
P34: 6 | Y34: =IFERROR(IF(AND(OR(R33="Preventivo", R33="Detectivo"),OR(R34="Preventivo", R34="Detectivo")),(Y33-(+Y33*T34)),IF(OR(R34="Preventivo", R34="Detectivo"),(Y32-(+Y32*T34)),IF(R34="Correctivo",Y33,""))),"") ->  | AA34: =IFERROR(IF(AND(R33="Correctivo",R34="Correctivo"),(AA33-(+AA33*T34)),IF(R34="Correctivo",(AA32-(+AA32*T34)),IF(OR(R34="Preventivo", R34="Detectivo"),AA33,""))),"") -> 
P35: 7 | Y35: =IFERROR(IF(AND(OR(R34="Preventivo", R34="Detectivo"),OR(R35="Preventivo", R35="Detectivo")),(Y34-(+Y34*T35)),IF(OR(R35="Preventivo", R35="Detectivo"),(Y33-(+Y33*T35)),IF(R35="Correctivo",Y34,""))),"") ->  | AA35: =IFERROR(IF(AND(R34="Correctivo",R35="Correctivo"),(AA34-(+AA34*T35)),IF(R35="Correctivo",(AA33-(+AA33*T35)),IF(OR(R35="Preventivo", R35="Detectivo"),AA34,""))),"") -> 
B36: 4 | C36: Posibilidad de demoras en el desarrollo y ejecución de las actividades necesarias (Precontractual y contractual) para darle inicio a los proyectos del Instituto de Extensión de la Universidad Distrital Francisco José de Caldas (IDEXUD). | D36: Financiero | E36: Afectación de los procesos misionales | F36: Retraso y/o demora en las actividades, procedimientos por parte de los contratistas. | G36: Documentación incompleta y/o incorrecta. | H36: Demoras en los tiempos de ejecución del proyecto y/o servicio. | I36: IDEXUD | J36: 2000 | K36: =IF(J36<=0,"",IF(J36<=2,"Muy Baja",IF(J36<=12,"Baja",IF(J36<=365,"Media",IF(J36<=5000,"Alta","Muy Alta"))))) -> Alta | L36: =IF(K36="","",IF(K36="Muy Baja",0.2,IF(K36="Baja",0.4,IF(K36="Media",0.6,IF(K36="Alta",0.8,IF(K36="Muy Alta",1,)))))) -> 0.8 | M36: Mayor | N36: =IF(M36="","",IF(M36="Leve",0.2,IF(M36="Menor",0.4,IF(M36="Moderado",0.6,IF(M36="Mayor",0.8,IF(M36="Catastrófico",1,)))))) -> 0.8 | O36: =IF(OR(AND(K36="Muy Baja",M36="Leve"),AND(K36="Muy Baja",M36="Menor"),AND(K36="Baja",M36="Leve")),"BAJA",IF(OR(AND(K36="Muy baja",M36="Moderado"),AND(K36="Baja",M36="Menor"),AND(K36="Baja",M36="Moderado"),AND(K36="Media",M36="Leve"),AND(K36="Media",M36="Menor"),AND(K36="Media",M36="Moderado"),AND(K36="Alta",M36="Leve"),AND(K36="Alta",M36="Menor")),"MODERADA",IF(OR(AND(K36="Muy Baja",M36="Mayor"),AND(K36="Baja",M36="Mayor"),AND(K36="Media",M36="Mayor"),AND(K36="Alta",M36="Moderado"),AND(K36="Alta",M36="Mayor"),AND(K36="Muy Alta",M36="Leve"),AND(K36="Muy Alta",M36="Menor"),AND(K36="Muy Alta",M36="Moderado"),AND(K36="Muy Alta",M36="Mayor")),"ALTA",IF(OR(AND(K36="Muy Baja",M36="Catastrófico"),AND(K36="Baja",M36="Catastrófico"),AND(K36="Media",M36="Catastrófico"),AND(K36="Alta",M36="Catastrófico"),AND(K36="Muy Alta",M36="Catastrófico")),"EXTREMA","")))) -> ALTA | P36: 1 | Q36: El equipo de calidad del IDEXUD realizará el entrenamiento y sensibilización sobre formatos y el correcto manejo de los mismos. | R36: Preventivo | S36: Manual | T36: 40% | U36: Sin documentar | V36: Continua | W36: Sin registro | X36: Media | Y36: =IFERROR(IF(OR(R36="Preventivo", R36="Detectivo"),(L36-(+L36*T36)),IF(R36="Correctivo",L36,"")),"") -> 0.48 | Z36: Mayor | AA36: =IFERROR(IF(R36="Correctivo",(N36-(+N36*T36)),IF(OR(R36="Preventivo", R36="Detectivo"),N36,"")),"") -> 0.8 | AB36: ALTA | AC36: =IF(ISBLANK(S36), O36,LOOKUP(2,1/(AB36:AB42<>""),AB36:AB42)) -> ALTA | AD36: Reducir | AE36: Elaborar, actualizar, aprobar, publicar e implementar los diferentes instrumentos y herramientas necesarias para el cumplimiento de las actividades propias del proceso de Extensión y Proyección Social | AF36: Documentos | AG36: Profesionales de IDEXUD | AH36: Toda la vigencia
G37: Falta de estrategias de divulgación de la legislación y normativas vigentes. | H37: Cumplimiento no asertivo de la misión del proceso de Extensión y Proyección Social y los objetivos del Instituto. | P37: 2 | Q37: El jefe de del IDEXUD definirá perfiles y roles de cargo con el fin de dar claridad a los contratistas respecto a sus actividades. | R37: Preventivo | S37: Manual | T37: 40% | U37: Sin documentar | V37: Continua | W37: Sin registro | X37: Baja | Y37: =IFERROR(IF(AND(OR(R36="Preventivo", R36="Detectivo"),OR(R37="Preventivo", R37="Detectivo")),(Y36-(+Y36*T37)),IF(OR(R37="Preventivo", R37="Detectivo"),(L36-(+L36*T37)),IF(R37="Correctivo",Y36,""))),"") -> 0.288 | Z37: Mayor | AA37: =IFERROR(IF(AND(R36="Correctivo",R37="Correctivo"),(AA36-(+AA36*T37)),IF(R37="Correctivo",(N36-(+N36*T37)),IF(OR(R37="Preventivo", R37="Detectivo"),AA36,""))),"") -> 0.8 | AB37: ALTA
G38: Dificultad de realizar empalme de los contratistas al momento de llevar a cabo el cambio de los mismos. | H38: Insatisfacción del cliente y/o usuario al no alcanzar las expectativas | P38: 3 | Q38: El equipo de Calidad del IDEXUD será el responsable de la divulgación de procedimientos del Sistema Integrado con el fin de evitar el re proceso. | R38: Preventivo | S38: Manual | T38: 40% | U38: Sin documentar | V38: Continua | W38: Sin registro | X38: Muy Baja | Y38: =IFERROR(IF(AND(OR(R37="Preventivo", R37="Detectivo"),OR(R38="Preventivo", R38="Detectivo")),(Y37-(+Y37*T38)),IF(OR(R38="Preventivo", R38="Detectivo"),(Y36-(+Y36*T38)),IF(R38="Correctivo",Y37,""))),"") -> 0.1728 | Z38: Mayor | AA38: =IFERROR(IF(AND(R37="Correctivo",R38="Correctivo"),(AA37-(+AA37*T38)),IF(R38="Correctivo",(AA36-(+AA36*T38)),IF(OR(R38="Preventivo", R38="Detectivo"),AA37,""))),"") -> 0.8 | AB38: ALTA
H39: Reprocesamiento de actividades y procedimientos. | P39: 4 | Q39: El equipo de calidad del IDEXUD será el encargado de la estandarización de conservación de la documentación y proceso de inducción para nuevos contratista. | R39: Preventivo | S39: Manual | T39: 40% | U39: Sin documentar | V39: Continua | W39: Sin registro | X39: Muy Baja | Y39: =IFERROR(IF(AND(OR(R38="Preventivo", R38="Detectivo"),OR(R39="Preventivo", R39="Detectivo")),(Y38-(+Y38*T39)),IF(OR(R39="Preventivo", R39="Detectivo"),(Y37-(+Y37*T39)),IF(R39="Correctivo",Y38,""))),"") -> 0.10368 | Z39: Mayor | AA39: =IFERROR(IF(AND(R38="Correctivo",R39="Correctivo"),(AA38-(+AA38*T39)),IF(R39="Correctivo",(AA37-(+AA37*T39)),IF(OR(R39="Preventivo", R39="Detectivo"),AA38,""))),"") -> 0.8 | AB39: ALTA
P40: 5 | Y40: =IFERROR(IF(AND(OR(R39="Preventivo", R39="Detectivo"),OR(R40="Preventivo", R40="Detectivo")),(Y39-(+Y39*T40)),IF(OR(R40="Preventivo", R40="Detectivo"),(Y38-(+Y38*T40)),IF(R40="Correctivo",Y39,""))),"") ->  | AA40: =IFERROR(IF(AND(R39="Correctivo",R40="Correctivo"),(AA39-(+AA39*T40)),IF(R40="Correctivo",(AA38-(+AA38*T40)),IF(OR(R40="Preventivo", R40="Detectivo"),AA39,""))),"") -> 
P41: 6 | Y41: =IFERROR(IF(AND(OR(R40="Preventivo", R40="Detectivo"),OR(R41="Preventivo", R41="Detectivo")),(Y40-(+Y40*T41)),IF(OR(R41="Preventivo", R41="Detectivo"),(Y39-(+Y39*T41)),IF(R41="Correctivo",Y40,""))),"") ->  | AA41: =IFERROR(IF(AND(R40="Correctivo",R41="Correctivo"),(AA40-(+AA40*T41)),IF(R41="Correctivo",(AA39-(+AA39*T41)),IF(OR(R41="Preventivo", R41="Detectivo"),AA40,""))),"") -> 
P42: 7 | Y42: =IFERROR(IF(AND(OR(R41="Preventivo", R41="Detectivo"),OR(R42="Preventivo", R42="Detectivo")),(Y41-(+Y41*T42)),IF(OR(R42="Preventivo", R42="Detectivo"),(Y40-(+Y40*T42)),IF(R42="Correctivo",Y41,""))),"") ->  | AA42: =IFERROR(IF(AND(R41="Correctivo",R42="Correctivo"),(AA41-(+AA41*T42)),IF(R42="Correctivo",(AA40-(+AA40*T42)),IF(OR(R42="Preventivo", R42="Detectivo"),AA41,""))),"") -> 
